Workbook

Sheet Masque (hidden)
A1: Prestation | B1: Fonctions | C1: Nets | D1: Brut | E1: Charges | F1: Hébergement | I1: Ticket Resto | J1: Oui/Non | K1: Nom_feuilles | L1: Factures | M1: Paiement
A2: Concert | B2: Musicien(ne) | C2: (Vide) | D2: 0 | E2: 0 | F2: (Vide) | I2: 14 | J2: Oui | L2: Envoyée | M2: Reçu
A3: Résidence | B3: Chanteur(se) | C3: France | F3: Twin | G3: 0 | H3: 65 | J3: Non | L3: Pas envoyée | M3: Pas reçu
A4: Arrangements | B4: Danseur(se) | C4: 30 € | D4: 39 € | E4: =D4/2 -> 20 € | F4: Single | G4: 1 | H4: 60
A5: Conférence | B5: Son | C5: 40 € | D5: =C5*D4/C4 -> 52 € | E5: =D5/2 -> 26 € | G5: 2
A6: Projection | B6: Lumière | C6: 50 € | D6: =C6*D5/C5 -> 65 € | E6: 33 € | G6: 3
A7: Ateliers | B7: Régisseur(se) | C7: 60 € | D7: =C7*D6/C6 -> 78 € | E7: 39 € | G7: 4
B8: Manageur(se) | C8: 70 € | D8: 91 € | E8: 46 € | G8: 5
B9: Comédien(ne) | C9: 80 € | D9: 104 € | E9: 52 € | G9: 6
B10: Intervenant(e) | C10: 90 € | D10: 117 € | E10: 59 € | G10: 7
B11: Runner(euse) | C11: 100 € | D11: 130 € | E11: 65 € | G11: 8
C12: 110 € | D12: 143 € | E12: 72 € | G12: 9
C13: 120 € | D13: 156 € | E13: 78 € | G13: 10
C14: 130 € | D14: 169 € | E14: 85 € | G14: 11
C15: 140 € | D15: 182 € | E15: 91 € | G15: 12
C16: 150 € | D16: 195 € | E16: 98 € | G16: 13
C17: 160 € | D17: 208 € | E17: 104 € | G17: 14
C18: 170 € | D18: 221 € | E18: 111 € | G18: 15
C19: 180 € | D19: 234 € | E19: 117 € | G19: 16
C20: 190 € | D20: 247 € | E20: 124 € | G20: 17
C21: 200 € | D21: 260 € | E21: 130 € | G21: 18
C22: 210 € | D22: 273 € | E22: 137 € | G22: 19
C23: 220 € | D23: 286 € | E23: 143 € | G23: 20
C24: 230 € | D24: 299 € | E24: 150 € | G24: 21
C25: 240 € | D25: 312 € | E25: 156 € | G25: 22
C26: 250 € | D26: 325 € | E26: 163 € | G26: 23
C27: 260 € | D27: 338 € | E27: 169 € | G27: 24
C28: 270 € | D28: 351 € | E28: 176 € | G28: 25
C29: 280 € | D29: 364 € | E29: 182 € | G29: 26
C30: 290 € | D30: 377 € | E30: 189 €
C31: 300 € | D31: 390 € | E31: 195 €
C32: 400 € | D32: 520 € | E32: 260 €
C33: 500 € | D33: 650 € | E33: 325 €
C34: 600 € | D34: 780 € | E34: 390 €
C35: 700 € | D35: 910 € | E35: 455 €
C36: Etranger
C37: 30 € | D37: =C37*D45/C45 -> 41 € | E37: =E38*D37/D38 -> 20.72727273
C38: 40 € | D38: =C38*D37/C37 -> 55 € | E38: 27.63636364
C39: 50 € | D39: =C39*D38/C38 -> 69 € | E39: 34.54545455
C40: 60 € | D40: 83 € | E40: 41.45454545
C41: 70 € | D41: 97 € | E41: 48.36363636
C42: 80 € | D42: 111 € | E42: 55.27272727
C43: 90 € | D43: 124 € | E43: 62.18181818
C44: 100 € | D44: 138 € | E44: =E45*D44/D45 -> 69.09090909
C45: 110 € | D45: 152 € | E45: =228-152 -> 76
C46: 120 € | D46: =C46*D45/C45 -> 166 € | E46: =D46*E45/D45 -> 82.90909091
C47: 130 € | D47: =C47*D46/C46 -> 180 € | E47: =D47*E46/D46 -> 89.81818182
C48: 140 € | D48: 193 € | E48: 96.72727273
C49: 150 € | D49: 207 € | E49: 103.6363636
C50: 160 € | D50: 221 € | E50: 110.5454545
C51: 170 € | D51: 235 € | E51: 117.4545455
C52: 180 € | D52: 249 € | E52: 124.3636364
C53: 190 € | D53: 263 € | E53: 131.2727273
C54: 200 € | D54: 276 € | E54: 138.1818182
C55: 210 € | D55: 290 € | E55: 145.0909091
C56: 220 € | D56: 304 € | E56: 152
C57: 230 € | D57: 318 € | E57: 158.9090909
C58: 240 € | D58: 332 € | E58: 165.8181818
C59: 250 € | D59: 345 € | E59: 172.7272727
C60: 260 € | D60: 359 € | E60: 179.6363636
C61: 270 € | D61: 373 € | E61: 186.5454545
C62: 280 € | D62: 387 € | E62: 193.4545455
C63: 290 € | D63: 401 € | E63: 200.3636364
C64: 300 € | D64: 415 € | E64: 207.2727273
C65: 400 € | D65: 553 € | E65: 276.3636364
C66: 500 € | D66: 691 € | E66: 345.4545455
C67: 600 € | D67: 829 € | E67: 414.5454545
C68: 700 € | D68: 967 € | E68: 483.6363636

Sheet Récap-
A1: Tableau récapitulatif / Edition 2015 | T1: Tableau + que récapitulatif / Edition 2015
C3: Ne rien modifier, tout est automatisé sur cette page | T3: Ne rien modifier, tout est automatisé sur cette page
Z4: Convention Ville | AC4: Cession Groupes
A5: Lien>Feuille | B5: Feuille | C5: Date | D5: Ville | F5: Brut | G5: Charges | H5: Cession | I5: Frais de Prod | J5: Hôtel | K5: Repas | L5: Transport | M5: Location Son | N5: Location Studio | O5: Sous-Total Charges | P5: Total Charges | Q5: Total Recettes | R5: Résultat | T5: Date | U5: Ville | V5: Total Charges | W5: Total Recettes | X5: Résultat | Z5: Faite | AA5: Envoyée | AB5: Reçue | AC5: Faite | AD5: Envoyée | AE5: Reçue | AF5: SACEM | AG5: CNV
B6: =MID(INDEX(nom_feuilles,ROW(Masque!K1)),SEARCH("]",INDEX(nom_feuilles,ROW(Masque!K1)))+1,30) -> Masque | D6: =IF(B6="","",INDIRECT("'"&B6&"'!$A$4")) -> Arrangements | O6: =IF(B6="","",INDIRECT("'"&B6&"'!$B$5")) -> Son
B7: =MID(INDEX(nom_feuilles,ROW(Masque!K2)),SEARCH("]",INDEX(nom_feuilles,ROW(Masque!K2)))+1,30) -> Récap- | D7: =IF(B7="","",INDIRECT("'"&B7&"'!$A$4")) -> 0 | O7: =IF(B7="","",INDIRECT("'"&B7&"'!$B$7")) -> Récap- | Q7: =IF(B7="","",INDIRECT("'"&B7&"'!$B$11")) -> 0
B8: =MID(INDEX(nom_feuilles,ROW(Masque!K3)),SEARCH("]",INDEX(nom_feuilles,ROW(Masque!K3)))+1,30) -> RECAP | D8: =IF(B8="","",INDIRECT("'"&B8&"'!$A$5")) -> 0 | H8: =IF(B8="","",INDIRECT("'"&B8&"'!$B$13")) -> 0 | I8: =IF(B8="","",INDIRECT("'"&B8&"'!$B$15")) -> 0 | J8: =IF(B8="","",INDIRECT("'"&B8&"'!$D$18")) -> 0 | K8: =IF(B8="","",INDIRECT("'"&B8&"'!$c$22")) -> 0 | L8: =IF(B8="","",INDIRECT("'"&B8&"'!$B$27")) -> 0 | M8: =IF(B8="","",INDIRECT("'"&B8&"'!$B$29")) -> 0 | O8: =IF(B8="","",INDIRECT("'"&B8&"'!$B$7")) -> 0 | Q8: =IF(B8="","",INDIRECT("'"&B8&"'!$B$9")) -> 0
A9: Modèle | B9: =MID(INDEX(nom_feuilles,ROW(Masque!K4)),SEARCH("]",INDEX(nom_feuilles,ROW(Masque!K4)))+1,30) -> A-Modèle | D9: =IF(B9="","",INDIRECT("'"&B9&"'!$A$5")) -> 0 | F9: =IF(B9="","",INDIRECT("'"&B9&"'!$H$140")) -> 0 | G9: =IF(B9="","",INDIRECT("'"&B9&"'!$I$140")) -> 0 | H9: =IF(B9="","",INDIRECT("'"&B9&"'!$B$13")) -> 0 | I9: =IF(B9="","",INDIRECT("'"&B9&"'!$B$15")) -> 0 | J9: =IF(B9="","",INDIRECT("'"&B9&"'!$D$18")) -> 0 | K9: =IF(B9="","",INDIRECT("'"&B9&"'!$c$22")) -> 0 | L9: =IF(B9="","",INDIRECT("'"&B9&"'!$B$24")) -> 0 | M9: =IF(B9="","",INDIRECT("'"&B9&"'!$B$30")) -> 0 | O9: =SUM(F9:M9) -> 0 | Q9: =IF(B9="","",INDIRECT("'"&B9&"'!$B$9")) -> 0 | R9: =Q9-O9 -> 0
B10: =MID(INDEX(nom_feuilles,ROW(Masque!K5)),SEARCH("]",INDEX(nom_feuilles,ROW(Masque!K5)))+1,30) ->  | C10: =IF(B10="","",INDIRECT("'"&B10&"'!$A$1")) ->  | D10: =IF(B10="","",INDIRECT("'"&B10&"'!$A$2")) ->  | E10: =IF(B10="","",INDIRECT("'"&B10&"'!$A$8")) ->  | F10: =IF(B10="","",INDIRECT("'"&B10&"'!$K$30")) ->  | G10: =IF(B10="","",INDIRECT("'"&B10&"'!$L$30")) ->  | H10: =IF(B10="","",INDIRECT("'"&B10&"'!$H$30")) ->  | I10: =IF(B10="","",INDIRECT("'"&B10&"'!$I$30")) ->  | J10: =IF(B10="","",INDIRECT("'"&B10&"'!$R$30")) ->  | K10: =IF(B10="","",INDIRECT("'"&B10&"'!$U$30")) ->  | L10: =IF(B10="","",INDIRECT("'"&B10&"'!$X$30")) ->  | M10: =IF(B10="","",INDIRECT("'"&B10&"'!$Z$30")) ->  | N10: =IF(B10="","",INDIRECT("'"&B10&"'!$AA$30")) ->  | O10: =SUM(F10:N10) ->  | P10: =SUM(O10:O17) ->  | Q10: =IF(B10="","",INDIRECT("'"&B10&"'!$H$4")) ->  | R10: =P10-Q10 ->  | T10: =C10 ->  | U10: =D10 ->  | V10: =P10 ->  | W10: =Q10 ->  | X10: =V10-W10 -> 
E11: =IF(B10="","",INDIRECT("'"&B10&"'!$A$32")) ->  | F11: =IF(B10="","",INDIRECT("'"&B10&"'!$K$54")) ->  | G11: =IF(B10="","",INDIRECT("'"&B10&"'!$L$54")) ->  | H11: =IF(B10="","",INDIRECT("'"&B10&"'!$H$54")) ->  | I11: =IF(B10="","",INDIRECT("'"&B10&"'!$I$54")) ->  | J11: =IF(B10="","",INDIRECT("'"&B10&"'!$R$54")) ->  | K11: =IF(B10="","",INDIRECT("'"&B10&"'!$U$54")) ->  | L11: =IF(B10="","",INDIRECT("'"&B10&"'!$X$54")) ->  | M11: =IF(B10="","",INDIRECT("'"&B10&"'!$Z$54")) ->  | N11: =IF(B10="","",INDIRECT("'"&B10&"'!$AA$54")) ->  | O11: =SUM(F11:N11) ->  | T11: =C18 ->  | U11: =D18 ->  | V11: =P18 ->  | W11: =Q18 ->  | X11: =V11-W11 -> 
E12: =IF(B10="","",INDIRECT("'"&B10&"'!$A$56")) ->  | F12: =IF(B10="","",INDIRECT("'"&B10&"'!$K$78")) ->  | G12: =IF(B10="","",INDIRECT("'"&B10&"'!$L$78")) ->  | H12: =IF(B10="","",INDIRECT("'"&B10&"'!$H$78")) ->  | I12: =IF(B10="","",INDIRECT("'"&B10&"'!$I$78")) ->  | J12: =IF(B10="","",INDIRECT("'"&B10&"'!$R$78")) ->  | K12: =IF(B10="","",INDIRECT("'"&B10&"'!$U$78")) ->  | L12: =IF(B10="","",INDIRECT("'"&B10&"'!$X$78")) ->  | M12: =IF(B10="","",INDIRECT("'"&B10&"'!$Z$78")) ->  | N12: =IF(B10="","",INDIRECT("'"&B10&"'!$AA$78")) ->  | O12: =SUM(F12:N12) ->  | T12: =C26 ->  | U12: =D26 ->  | V12: =P26 ->  | W12: =Q26 -> 
E13: =IF(B10="","",INDIRECT("'"&B10&"'!$A$80")) ->  | F13: =IF(B10="","",INDIRECT("'"&B10&"'!$K$102")) ->  | G13: =IF(B10="","",INDIRECT("'"&B10&"'!$L$102")) ->  | H13: =IF(B10="","",INDIRECT("'"&B10&"'!$H$102")) ->  | I13: =IF(B10="","",INDIRECT("'"&B10&"'!$I$102")) ->  | J13: =IF(B10="","",INDIRECT("'"&B10&"'!$R$102")) ->  | K13: =IF(B10="","",INDIRECT("'"&B10&"'!$U$102")) ->  | L13: =IF(B10="","",INDIRECT("'"&B10&"'!$X$102")) ->  | M13: =IF(B10="","",INDIRECT("'"&B10&"'!$Z$102")) ->  | N13: =IF(B10="","",INDIRECT("'"&B10&"'!$AA$102")) ->  | T13: =C34 ->  | U13: =D34 ->  | V13: =P34 ->  | W13: =Q34 -> 
E14: =IF(B10="","",INDIRECT("'"&B10&"'!$A$104")) ->  | F14: =IF(B10="","",INDIRECT("'"&B10&"'!$K$111")) ->  | G14: =IF(B10="","",INDIRECT("'"&B10&"'!$L$111")) ->  | H14: =IF(B10="","",INDIRECT("'"&B10&"'!$H$111")) ->  | I14: =IF(B10="","",INDIRECT("'"&B10&"'!$I$111")) ->  | J14: =IF(B10="","",INDIRECT("'"&B10&"'!$R$111")) ->  | K14: =IF(B10="","",INDIRECT("'"&B10&"'!$U$111")) ->  | L14: =IF(B10="","",INDIRECT("'"&B10&"'!$X$111")) ->  | M14: =IF(B10="","",INDIRECT("'"&B10&"'!$Z$111")) ->  | N14: =IF(B10="","",INDIRECT("'"&B10&"'!$AA$111")) ->  | O14: =SUM(F14:N14) ->  | T14: =C42 ->  | U14: =D42 ->  | V14: =P42 ->  | W14: =Q42 -> 
E15: =IF(B10="","",INDIRECT("'"&B10&"'!$A$113")) ->  | F15: =IF(B10="","",INDIRECT("'"&B10&"'!$K$120")) ->  | G15: =IF(B10="","",INDIRECT("'"&B10&"'!$L$120")) ->  | H15: =IF(B10="","",INDIRECT("'"&B10&"'!$H$120")) ->  | I15: =IF(B10="","",INDIRECT("'"&B10&"'!$I$120")) ->  | J15: =IF(B10="","",INDIRECT("'"&B10&"'!$R$120")) ->  | K15: =IF(B10="","",INDIRECT("'"&B10&"'!$U$120")) ->  | L15: =IF(B10="","",INDIRECT("'"&B10&"'!$X$120")) ->  | M15: =IF(B10="","",INDIRECT("'"&B10&"'!$Z$120")) ->  | N15: =IF(B10="","",INDIRECT("'"&B10&"'!$AA$120")) ->  | T15: =C50 ->  | U15: =D50 ->  | V15: =P50 ->  | W15: =Q50 -> 
E16: =IF(B10="","",INDIRECT("'"&B10&"'!$A$122")) ->  | F16: =IF(B10="","",INDIRECT("'"&B10&"'!$K$129")) ->  | G16: =IF(B10="","",INDIRECT("'"&B10&"'!$L$129")) ->  | H16: =IF(B10="","",INDIRECT("'"&B10&"'!$H$129")) ->  | I16: =IF(B10="","",INDIRECT("'"&B10&"'!$I$129")) ->  | J16: =IF(B10="","",INDIRECT("'"&B10&"'!$R$129")) ->  | K16: =IF(B10="","",INDIRECT("'"&B10&"'!$U$129")) ->  | L16: =IF(B10="","",INDIRECT("'"&B10&"'!$X$129")) ->  | M16: =IF(B10="","",INDIRECT("'"&B10&"'!$Z$129")) ->  | N16: =IF(B10="","",INDIRECT("'"&B10&"'!$AA$129")) ->  | T16: =C58 ->  | U16: =D58 ->  | V16: =P58 ->  | W16: =Q58 -> 
E17: =IF(B10="","",INDIRECT("'"&B10&"'!$A$131")) ->  | F17: =IF(B10="","",INDIRECT("'"&B10&"'!$K$167")) ->  | G17: =IF(B10="","",INDIRECT("'"&B10&"'!$L$167")) ->  | H17: =IF(B10="","",INDIRECT("'"&B10&"'!$H$167")) ->  | I17: =IF(B10="","",INDIRECT("'"&B10&"'!$I$167")) ->  | J17: =IF(B10="","",INDIRECT("'"&B10&"'!$R$167")) ->  | K17: =IF(B10="","",INDIRECT("'"&B10&"'!$U$167")) ->  | L17: =IF(B10="","",INDIRECT("'"&B10&"'!$X$167")) ->  | M17: =IF(B10="","",INDIRECT("'"&B10&"'!$Z$167")) ->  | N17: =IF(B10="","",INDIRECT("'"&B10&"'!$AA$167")) ->  | T17: =C66 ->  | U17: =D66 ->  | V17: =P66 ->  | W17: =Q66 -> 
B18: =MID(INDEX(nom_feuilles,ROW(Masque!K6)),SEARCH("]",INDEX(nom_feuilles,ROW(Masque!K6)))+1,30) ->  | C18: =IF(B18="","",INDIRECT("'"&B18&"'!$A$1")) ->  | D18: =IF(B18="","",INDIRECT("'"&B18&"'!$A$2")) ->  | E18: =IF(B18="","",INDIRECT("'"&B18&"'!$A$8")) ->  | F18: =IF(B18="","",INDIRECT("'"&B18&"'!$K$30")) ->  | G18: =IF(B18="","",INDIRECT("'"&B18&"'!$L$30")) ->  | H18: =IF(B18="","",INDIRECT("'"&B18&"'!$H$30")) ->  | I18: =IF(B18="","",INDIRECT("'"&B18&"'!$I$30")) ->  | J18: =IF(B18="","",INDIRECT("'"&B18&"'!$R$30")) ->  | K18: =IF(B18="","",INDIRECT("'"&B18&"'!$U$30")) ->  | L18: =IF(B18="","",INDIRECT("'"&B18&"'!$X$30")) ->  | M18: =IF(B18="","",INDIRECT("'"&B18&"'!$Z$30")) ->  | N18: =IF(B18="","",INDIRECT("'"&B18&"'!$AA$30")) ->  | O18: =SUM(F18:N18) ->  | P18: =SUM(O18:O25) ->  | Q18: =IF(B18="","",INDIRECT("'"&B18&"'!$H$4")) ->  | R18: =P18-Q18 ->  | T18: =C74 ->  | U18: =D74 ->  | V18: =P74 ->  | W18: =Q74 -> 
E19: =IF(B18="","",INDIRECT("'"&B18&"'!$A$32")) ->  | F19: =IF(B18="","",INDIRECT("'"&B18&"'!$K$54")) ->  | G19: =IF(B18="","",INDIRECT("'"&B18&"'!$L$54")) ->  | H19: =IF(B18="","",INDIRECT("'"&B18&"'!$H$54")) ->  | I19: =IF(B18="","",INDIRECT("'"&B18&"'!$I$54")) ->  | J19: =IF(B18="","",INDIRECT("'"&B18&"'!$R$54")) ->  | K19: =IF(B18="","",INDIRECT("'"&B18&"'!$U$54")) ->  | L19: =IF(B18="","",INDIRECT("'"&B18&"'!$X$54")) ->  | M19: =IF(B18="","",INDIRECT("'"&B18&"'!$Z$54")) ->  | N19: =IF(B18="","",INDIRECT("'"&B18&"'!$AA$54")) ->  | O19: =SUM(F19:N19) ->  | T19: =C82 ->  | U19: =D82 ->  | V19: =P82 ->  | W19: =Q82 -> 
E20: =IF(B18="","",INDIRECT("'"&B18&"'!$A$56")) ->  | F20: =IF(B18="","",INDIRECT("'"&B18&"'!$K$78")) ->  | G20: =IF(B18="","",INDIRECT("'"&B18&"'!$L$78")) ->  | H20: =IF(B18="","",INDIRECT("'"&B18&"'!$H$78")) ->  | I20: =IF(B18="","",INDIRECT("'"&B18&"'!$I$78")) ->  | J20: =IF(B18="","",INDIRECT("'"&B18&"'!$R$78")) ->  | K20: =IF(B18="","",INDIRECT("'"&B18&"'!$U$78")) ->  | L20: =IF(B18="","",INDIRECT("'"&B18&"'!$X$78")) ->  | M20: =IF(B18="","",INDIRECT("'"&B18&"'!$Z$78")) ->  | N20: =IF(B18="","",INDIRECT("'"&B18&"'!$AA$78")) ->  | O20: =SUM(F20:N20) ->  | T20: =C90 ->  | U20: =D90 ->  | V20: =P90 ->  | W20: =Q90 -> 
E21: =IF(B18="","",INDIRECT("'"&B18&"'!$A$80")) ->  | F21: =IF(B18="","",INDIRECT("'"&B18&"'!$K$102")) ->  | G21: =IF(B18="","",INDIRECT("'"&B18&"'!$L$102")) ->  | H21: =IF(B18="","",INDIRECT("'"&B18&"'!$H$102")) ->  | I21: =IF(B18="","",INDIRECT("'"&B18&"'!$I$102")) ->  | J21: =IF(B18="","",INDIRECT("'"&B18&"'!$R$102")) ->  | K21: =IF(B18="","",INDIRECT("'"&B18&"'!$U$102")) ->  | L21: =IF(B18="","",INDIRECT("'"&B18&"'!$X$102")) ->  | M21: =IF(B18="","",INDIRECT("'"&B18&"'!$Z$102")) ->  | N21: =IF(B18="","",INDIRECT("'"&B18&"'!$AA$102")) ->  | T21: =C98 ->  | U21: =D98 ->  | V21: =P98 ->  | W21: =Q98 -> 
E22: =IF(B18="","",INDIRECT("'"&B18&"'!$A$104")) ->  | F22: =IF(B18="","",INDIRECT("'"&B18&"'!$K$111")) ->  | G22: =IF(B18="","",INDIRECT("'"&B18&"'!$L$111")) ->  | H22: =IF(B18="","",INDIRECT("'"&B18&"'!$H$111")) ->  | I22: =IF(B18="","",INDIRECT("'"&B18&"'!$I$111")) ->  | J22: =IF(B18="","",INDIRECT("'"&B18&"'!$R$111")) ->  | K22: =IF(B18="","",INDIRECT("'"&B18&"'!$U$111")) ->  | L22: =IF(B18="","",INDIRECT("'"&B18&"'!$X$111")) ->  | M22: =IF(B18="","",INDIRECT("'"&B18&"'!$Z$111")) ->  | N22: =IF(B18="","",INDIRECT("'"&B18&"'!$AA$111")) ->  | T22: =C106 ->  | U22: =D106 ->  | V22: =P106 ->  | W22: =Q106 -> 
E23: =IF(B18="","",INDIRECT("'"&B18&"'!$A$113")) ->  | F23: =IF(B18="","",INDIRECT("'"&B18&"'!$K$120")) ->  | G23: =IF(B18="","",INDIRECT("'"&B18&"'!$L$120")) ->  | H23: =IF(B18="","",INDIRECT("'"&B18&"'!$H$120")) ->  | I23: =IF(B18="","",INDIRECT("'"&B18&"'!$I$120")) ->  | J23: =IF(B18="","",INDIRECT("'"&B18&"'!$R$120")) ->  | K23: =IF(B18="","",INDIRECT("'"&B18&"'!$U$120")) ->  | L23: =IF(B18="","",INDIRECT("'"&B18&"'!$X$120")) ->  | M23: =IF(B18="","",INDIRECT("'"&B18&"'!$Z$120")) ->  | N23: =IF(B18="","",INDIRECT("'"&B18&"'!$AA$120")) ->  | T23: =C114 ->  | U23: =D114 ->  | V23: =P114 ->  | W23: =Q114 -> 
E24: =IF(B18="","",INDIRECT("'"&B18&"'!$A$122")) ->  | F24: =IF(B18="","",INDIRECT("'"&B18&"'!$K$129")) ->  | G24: =IF(B18="","",INDIRECT("'"&B18&"'!$L$129")) ->  | H24: =IF(B18="","",INDIRECT("'"&B18&"'!$H$129")) ->  | I24: =IF(B18="","",INDIRECT("'"&B18&"'!$I$129")) ->  | J24: =IF(B18="","",INDIRECT("'"&B18&"'!$R$129")) ->  | K24: =IF(B18="","",INDIRECT("'"&B18&"'!$U$129")) ->  | L24: =IF(B18="","",INDIRECT("'"&B18&"'!$X$129")) ->  | M24: =IF(B18="","",INDIRECT("'"&B18&"'!$Z$129")) ->  | N24: =IF(B18="","",INDIRECT("'"&B18&"'!$AA$129")) ->  | T24: =C122 ->  | U24: =D122 ->  | V24: =P122 ->  | W24: =Q122 -> 
E25: =IF(B18="","",INDIRECT("'"&B18&"'!$A$131")) ->  | F25: =IF(B18="","",INDIRECT("'"&B18&"'!$K$167")) ->  | G25: =IF(B18="","",INDIRECT("'"&B18&"'!$L$167")) ->  | H25: =IF(B18="","",INDIRECT("'"&B18&"'!$H$167")) ->  | I25: =IF(B18="","",INDIRECT("'"&B18&"'!$I$167")) ->  | J25: =IF(B18="","",INDIRECT("'"&B18&"'!$R$167")) ->  | K25: =IF(B18="","",INDIRECT("'"&B18&"'!$U$167")) ->  | L25: =IF(B18="","",INDIRECT("'"&B18&"'!$X$167")) ->  | M25: =IF(B18="","",INDIRECT("'"&B18&"'!$Z$167")) ->  | N25: =IF(B18="","",INDIRECT("'"&B18&"'!$AA$167")) ->  | T25: =C130 ->  | U25: =D130 ->  | V25: =P130 ->  | W25: =Q130 -> 
B26: =MID(INDEX(nom_feuilles,ROW(Masque!K7)),SEARCH("]",INDEX(nom_feuilles,ROW(Masque!K7)))+1,30) ->  | C26: =IF(B26="","",INDIRECT("'"&B26&"'!$A$1")) ->  | D26: =IF(B26="","",INDIRECT("'"&B26&"'!$A$2")) ->  | E26: =IF(B26="","",INDIRECT("'"&B26&"'!$A$8")) ->  | F26: =IF(B26="","",INDIRECT("'"&B26&"'!$K$30")) ->  | G26: =IF(B26="","",INDIRECT("'"&B26&"'!$L$30")) ->  | H26: =IF(B26="","",INDIRECT("'"&B26&"'!$H$30")) ->  | I26: =IF(B26="","",INDIRECT("'"&B26&"'!$I$30")) ->  | J26: =IF(B26="","",INDIRECT("'"&B26&"'!$R$30")) ->  | K26: =IF(B26="","",INDIRECT("'"&B26&"'!$U$30")) ->  | L26: =IF(B26="","",INDIRECT("'"&B26&"'!$X$30")) ->  | M26: =IF(B26="","",INDIRECT("'"&B26&"'!$Z$30")) ->  | N26: =IF(B26="","",INDIRECT("'"&B26&"'!$AA$30")) ->  | O26: =SUM(F26:N26) ->  | P26: =SUM(O26:O33) ->  | Q26: =IF(B26="","",INDIRECT("'"&B26&"'!$H$4")) ->  | R26: =P26-Q26 ->  | T26: =C138 ->  | U26: =D138 ->  | V26: =P138 ->  | W26: =Q138 -> 
E27: =IF(B26="","",INDIRECT("'"&B26&"'!$A$32")) ->  | F27: =IF(B26="","",INDIRECT("'"&B26&"'!$K$54")) ->  | G27: =IF(B26="","",INDIRECT("'"&B26&"'!$L$54")) ->  | H27: =IF(B26="","",INDIRECT("'"&B26&"'!$H$54")) ->  | I27: =IF(B26="","",INDIRECT("'"&B26&"'!$I$54")) ->  | J27: =IF(B26="","",INDIRECT("'"&B26&"'!$R$54")) ->  | K27: =IF(B26="","",INDIRECT("'"&B26&"'!$U$54")) ->  | L27: =IF(B26="","",INDIRECT("'"&B26&"'!$X$54")) ->  | M27: =IF(B26="","",INDIRECT("'"&B26&"'!$Z$54")) ->  | N27: =IF(B26="","",INDIRECT("'"&B26&"'!$AA$54")) ->  | O27: =SUM(F27:N27) ->  | T27: =C146 ->  | U27: =D146 ->  | V27: =P146 ->  | W27: =Q146 -> 
E28: =IF(B26="","",INDIRECT("'"&B26&"'!$A$56")) ->  | F28: =IF(B26="","",INDIRECT("'"&B26&"'!$K$78")) ->  | G28: =IF(B26="","",INDIRECT("'"&B26&"'!$L$78")) ->  | H28: =IF(B26="","",INDIRECT("'"&B26&"'!$H$78")) ->  | I28: =IF(B26="","",INDIRECT("'"&B26&"'!$I$78")) ->  | J28: =IF(B26="","",INDIRECT("'"&B26&"'!$R$78")) ->  | K28: =IF(B26="","",INDIRECT("'"&B26&"'!$U$78")) ->  | L28: =IF(B26="","",INDIRECT("'"&B26&"'!$X$78")) ->  | M28: =IF(B26="","",INDIRECT("'"&B26&"'!$Z$78")) ->  | N28: =IF(B26="","",INDIRECT("'"&B26&"'!$AA$78")) ->  | O28: =SUM(F28:N28) ->  | T28: =C154 ->  | U28: =D154 ->  | V28: =P154 ->  | W28: =Q154 -> 
E29: =IF(B26="","",INDIRECT("'"&B26&"'!$A$80")) ->  | F29: =IF(B26="","",INDIRECT("'"&B26&"'!$K$102")) ->  | G29: =IF(B26="","",INDIRECT("'"&B26&"'!$L$102")) ->  | H29: =IF(B26="","",INDIRECT("'"&B26&"'!$H$102")) ->  | I29: =IF(B26="","",INDIRECT("'"&B26&"'!$I$102")) ->  | J29: =IF(B26="","",INDIRECT("'"&B26&"'!$R$102")) ->  | K29: =IF(B26="","",INDIRECT("'"&B26&"'!$U$102")) ->  | L29: =IF(B26="","",INDIRECT("'"&B26&"'!$X$102")) ->  | M29: =IF(B26="","",INDIRECT("'"&B26&"'!$Z$102")) ->  | N29: =IF(B26="","",INDIRECT("'"&B26&"'!$AA$102")) ->  | T29: =C162 ->  | U29: =D162 ->  | V29: =P162 ->  | W29: =Q162 -> 
E30: =IF(B26="","",INDIRECT("'"&B26&"'!$A$104")) ->  | F30: =IF(B26="","",INDIRECT("'"&B26&"'!$K$111")) ->  | G30: =IF(B26="","",INDIRECT("'"&B26&"'!$L$111")) ->  | H30: =IF(B26="","",INDIRECT("'"&B26&"'!$H$111")) ->  | I30: =IF(B26="","",INDIRECT("'"&B26&"'!$I$111")) ->  | J30: =IF(B26="","",INDIRECT("'"&B26&"'!$R$111")) ->  | K30: =IF(B26="","",INDIRECT("'"&B26&"'!$U$111")) ->  | L30: =IF(B26="","",INDIRECT("'"&B26&"'!$X$111")) ->  | M30: =IF(B26="","",INDIRECT("'"&B26&"'!$Z$111")) ->  | N30: =IF(B26="","",INDIRECT("'"&B26&"'!$AA$111")) ->  | T30: =C170 ->  | U30: =D170 ->  | V30: =P170 ->  | W30: =Q170 -> 
E31: =IF(B26="","",INDIRECT("'"&B26&"'!$A$113")) ->  | F31: =IF(B26="","",INDIRECT("'"&B26&"'!$K$120")) ->  | G31: =IF(B26="","",INDIRECT("'"&B26&"'!$L$120")) ->  | H31: =IF(B26="","",INDIRECT("'"&B26&"'!$H$120")) ->  | I31: =IF(B26="","",INDIRECT("'"&B26&"'!$I$120")) ->  | J31: =IF(B26="","",INDIRECT("'"&B26&"'!$R$120")) ->  | K31: =IF(B26="","",INDIRECT("'"&B26&"'!$U$120")) ->  | L31: =IF(B26="","",INDIRECT("'"&B26&"'!$X$120")) ->  | M31: =IF(B26="","",INDIRECT("'"&B26&"'!$Z$120")) ->  | N31: =IF(B26="","",INDIRECT("'"&B26&"'!$AA$120")) ->  | T31: =C178 ->  | U31: =D178 ->  | V31: =P178 ->  | W31: =Q178 -> 
E32: =IF(B26="","",INDIRECT("'"&B26&"'!$A$122")) ->  | F32: =IF(B26="","",INDIRECT("'"&B26&"'!$K$129")) ->  | G32: =IF(B26="","",INDIRECT("'"&B26&"'!$L$129")) ->  | H32: =IF(B26="","",INDIRECT("'"&B26&"'!$H$129")) ->  | I32: =IF(B26="","",INDIRECT("'"&B26&"'!$I$129")) ->  | J32: =IF(B26="","",INDIRECT("'"&B26&"'!$R$129")) ->  | K32: =IF(B26="","",INDIRECT("'"&B26&"'!$U$129")) ->  | L32: =IF(B26="","",INDIRECT("'"&B26&"'!$X$129")) ->  | M32: =IF(B26="","",INDIRECT("'"&B26&"'!$Z$129")) ->  | N32: =IF(B26="","",INDIRECT("'"&B26&"'!$AA$129")) ->  | T32: =C186 ->  | U32: =D186 ->  | V32: =P186 ->  | W32: =Q186 -> 
E33: =IF(B26="","",INDIRECT("'"&B26&"'!$A$131")) ->  | F33: =IF(B26="","",INDIRECT("'"&B26&"'!$K$167")) ->  | G33: =IF(B26="","",INDIRECT("'"&B26&"'!$L$167")) ->  | H33: =IF(B26="","",INDIRECT("'"&B26&"'!$H$167")) ->  | I33: =IF(B26="","",INDIRECT("'"&B26&"'!$I$167")) ->  | J33: =IF(B26="","",INDIRECT("'"&B26&"'!$R$167")) ->  | K33: =IF(B26="","",INDIRECT("'"&B26&"'!$U$167")) ->  | L33: =IF(B26="","",INDIRECT("'"&B26&"'!$X$167")) ->  | M33: =IF(B26="","",INDIRECT("'"&B26&"'!$Z$167")) ->  | N33: =IF(B26="","",INDIRECT("'"&B26&"'!$AA$167")) ->  | T33: =C194 ->  | U33: =D194 ->  | V33: =P194 ->  | W33: =Q194 -> 
B34: =MID(INDEX(nom_feuilles,ROW(Masque!K8)),SEARCH("]",INDEX(nom_feuilles,ROW(Masque!K8)))+1,30) ->  | C34: =IF(B34="","",INDIRECT("'"&B34&"'!$A$1")) ->  | D34: =IF(B34="","",INDIRECT("'"&B34&"'!$A$2")) ->  | E34: =IF(B34="","",INDIRECT("'"&B34&"'!$A$8")) ->  | F34: =IF(B34="","",INDIRECT("'"&B34&"'!$K$30")) ->  | G34: =IF(B34="","",INDIRECT("'"&B34&"'!$L$30")) ->  | H34: =IF(B34="","",INDIRECT("'"&B34&"'!$H$30")) ->  | I34: =IF(B34="","",INDIRECT("'"&B34&"'!$I$30")) ->  | J34: =IF(B34="","",INDIRECT("'"&B34&"'!$R$30")) ->  | K34: =IF(B34="","",INDIRECT("'"&B34&"'!$U$30")) ->  | L34: =IF(B34="","",INDIRECT("'"&B34&"'!$X$30")) ->  | M34: =IF(B34="","",INDIRECT("'"&B34&"'!$Z$30")) ->  | N34: =IF(B34="","",INDIRECT("'"&B34&"'!$AA$30")) ->  | O34: =SUM(F34:N34) ->  | P34: =SUM(O34:O41) ->  | Q34: =IF(B34="","",INDIRECT("'"&B34&"'!$H$4")) ->  | R34: =P34-Q34 ->  | T34: =C202 ->  | U34: =D202 ->  | V34: =P202 ->  | W34: =Q202 -> 
E35: =IF(B34="","",INDIRECT("'"&B34&"'!$A$32")) ->  | F35: =IF(B34="","",INDIRECT("'"&B34&"'!$K$54")) ->  | G35: =IF(B34="","",INDIRECT("'"&B34&"'!$L$54")) ->  | H35: =IF(B34="","",INDIRECT("'"&B34&"'!$H$54")) ->  | I35: =IF(B34="","",INDIRECT("'"&B34&"'!$I$54")) ->  | J35: =IF(B34="","",INDIRECT("'"&B34&"'!$R$54")) ->  | K35: =IF(B34="","",INDIRECT("'"&B34&"'!$U$54")) ->  | L35: =IF(B34="","",INDIRECT("'"&B34&"'!$X$54")) ->  | M35: =IF(B34="","",INDIRECT("'"&B34&"'!$Z$54")) ->  | N35: =IF(B34="","",INDIRECT("'"&B34&"'!$AA$54")) ->  | O35: =SUM(F35:N35) ->  | T35: =C210 ->  | U35: =D210 ->  | V35: =P210 ->  | W35: =Q210 -> 
E36: =IF(B34="","",INDIRECT("'"&B34&"'!$A$56")) ->  | F36: =IF(B34="","",INDIRECT("'"&B34&"'!$K$78")) ->  | G36: =IF(B34="","",INDIRECT("'"&B34&"'!$L$78")) ->  | H36: =IF(B34="","",INDIRECT("'"&B34&"'!$H$78")) ->  | I36: =IF(B34="","",INDIRECT("'"&B34&"'!$I$78")) ->  | J36: =IF(B34="","",INDIRECT("'"&B34&"'!$R$78")) ->  | K36: =IF(B34="","",INDIRECT("'"&B34&"'!$U$78")) ->  | L36: =IF(B34="","",INDIRECT("'"&B34&"'!$X$78")) ->  | M36: =IF(B34="","",INDIRECT("'"&B34&"'!$Z$78")) ->  | N36: =IF(B34="","",INDIRECT("'"&B34&"'!$AA$78")) ->  | O36: =SUM(F36:N36) ->  | T36: =C218 ->  | U36: =D218 ->  | V36: =P218 ->  | W36: =Q218 -> 
E37: =IF(B34="","",INDIRECT("'"&B34&"'!$A$80")) ->  | F37: =IF(B34="","",INDIRECT("'"&B34&"'!$K$102")) ->  | G37: =IF(B34="","",INDIRECT("'"&B34&"'!$L$102")) ->  | H37: =IF(B34="","",INDIRECT("'"&B34&"'!$H$102")) ->  | I37: =IF(B34="","",INDIRECT("'"&B34&"'!$I$102")) ->  | J37: =IF(B34="","",INDIRECT("'"&B34&"'!$R$102")) ->  | K37: =IF(B34="","",INDIRECT("'"&B34&"'!$U$102")) ->  | L37: =IF(B34="","",INDIRECT("'"&B34&"'!$X$102")) ->  | M37: =IF(B34="","",INDIRECT("'"&B34&"'!$Z$102")) ->  | N37: =IF(B34="","",INDIRECT("'"&B34&"'!$AA$102")) ->  | T37: =C226 ->  | U37: =D226 ->  | V37: =P226 ->  | W37: =Q226 -> 
E38: =IF(B34="","",INDIRECT("'"&B34&"'!$A$104")) ->  | F38: =IF(B34="","",INDIRECT("'"&B34&"'!$K$111")) ->  | G38: =IF(B34="","",INDIRECT("'"&B34&"'!$L$111")) ->  | H38: =IF(B34="","",INDIRECT("'"&B34&"'!$H$111")) ->  | I38: =IF(B34="","",INDIRECT("'"&B34&"'!$I$111")) ->  | J38: =IF(B34="","",INDIRECT("'"&B34&"'!$R$111")) ->  | K38: =IF(B34="","",INDIRECT("'"&B34&"'!$U$111")) ->  | L38: =IF(B34="","",INDIRECT("'"&B34&"'!$X$111")) ->  | M38: =IF(B34="","",INDIRECT("'"&B34&"'!$Z$111")) ->  | N38: =IF(B34="","",INDIRECT("'"&B34&"'!$AA$111")) ->  | T38: =C234 ->  | U38: =D234 ->  | V38: =P234 ->  | W38: =Q234 -> 
E39: =IF(B34="","",INDIRECT("'"&B34&"'!$A$113")) ->  | F39: =IF(B34="","",INDIRECT("'"&B34&"'!$K$120")) ->  | G39: =IF(B34="","",INDIRECT("'"&B34&"'!$L$120")) ->  | H39: =IF(B34="","",INDIRECT("'"&B34&"'!$H$120")) ->  | I39: =IF(B34="","",INDIRECT("'"&B34&"'!$I$120")) ->  | J39: =IF(B34="","",INDIRECT("'"&B34&"'!$R$120")) ->  | K39: =IF(B34="","",INDIRECT("'"&B34&"'!$U$120")) ->  | L39: =IF(B34="","",INDIRECT("'"&B34&"'!$X$120")) ->  | M39: =IF(B34="","",INDIRECT("'"&B34&"'!$Z$120")) ->  | N39: =IF(B34="","",INDIRECT("'"&B34&"'!$AA$120")) ->  | T39: =C242 ->  | U39: =D242 ->  | V39: =P242 ->  | W39: =Q242 -> 
E40: =IF(B34="","",INDIRECT("'"&B34&"'!$A$122")) ->  | F40: =IF(B34="","",INDIRECT("'"&B34&"'!$K$129")) ->  | G40: =IF(B34="","",INDIRECT("'"&B34&"'!$L$129")) ->  | H40: =IF(B34="","",INDIRECT("'"&B34&"'!$H$129")) ->  | I40: =IF(B34="","",INDIRECT("'"&B34&"'!$I$129")) ->  | J40: =IF(B34="","",INDIRECT("'"&B34&"'!$R$129")) ->  | K40: =IF(B34="","",INDIRECT("'"&B34&"'!$U$129")) ->  | L40: =IF(B34="","",INDIRECT("'"&B34&"'!$X$129")) ->  | M40: =IF(B34="","",INDIRECT("'"&B34&"'!$Z$129")) ->  | N40: =IF(B34="","",INDIRECT("'"&B34&"'!$AA$129")) ->  | T40: =C250 ->  | U40: =D250 ->  | V40: =P250 ->  | W40: =Q250 -> 
E41: =IF(B34="","",INDIRECT("'"&B34&"'!$A$131")) ->  | F41: =IF(B34="","",INDIRECT("'"&B34&"'!$K$167")) ->  | G41: =IF(B34="","",INDIRECT("'"&B34&"'!$L$167")) ->  | H41: =IF(B34="","",INDIRECT("'"&B34&"'!$H$167")) ->  | I41: =IF(B34="","",INDIRECT("'"&B34&"'!$I$167")) ->  | J41: =IF(B34="","",INDIRECT("'"&B34&"'!$R$167")) ->  | K41: =IF(B34="","",INDIRECT("'"&B34&"'!$U$167")) ->  | L41: =IF(B34="","",INDIRECT("'"&B34&"'!$X$167")) ->  | M41: =IF(B34="","",INDIRECT("'"&B34&"'!$Z$167")) ->  | N41: =IF(B34="","",INDIRECT("'"&B34&"'!$AA$167")) ->  | T41: =C258 ->  | U41: =D258 ->  | V41: =P258 ->  | W41: =Q258 -> 
B42: =MID(INDEX(nom_feuilles,ROW(Masque!K9)),SEARCH("]",INDEX(nom_feuilles,ROW(Masque!K9)))+1,30) ->  | C42: =IF(B42="","",INDIRECT("'"&B42&"'!$A$1")) ->  | D42: =IF(B42="","",INDIRECT("'"&B42&"'!$A$2")) ->  | E42: =IF(B42="","",INDIRECT("'"&B42&"'!$A$8")) ->  | F42: =IF(B42="","",INDIRECT("'"&B42&"'!$K$30")) ->  | G42: =IF(B42="","",INDIRECT("'"&B42&"'!$L$30")) ->  | H42: =IF(B42="","",INDIRECT("'"&B42&"'!$H$30")) ->  | I42: =IF(B42="","",INDIRECT("'"&B42&"'!$I$30")) ->  | J42: =IF(B42="","",INDIRECT("'"&B42&"'!$R$30")) ->  | K42: =IF(B42="","",INDIRECT("'"&B42&"'!$U$30")) ->  | L42: =IF(B42="","",INDIRECT("'"&B42&"'!$X$30")) ->  | M42: =IF(B42="","",INDIRECT("'"&B42&"'!$Z$30")) ->  | N42: =IF(B42="","",INDIRECT("'"&B42&"'!$AA$30")) ->  | O42: =SUM(F42:N42) ->  | P42: =SUM(O42:O49) ->  | Q42: =IF(B42="","",INDIRECT("'"&B42&"'!$H$4")) ->  | R42: =P42-Q42 ->  | T42: =C266 ->  | U42: =D266 ->  | V42: =P266 ->  | W42: =Q266 -> 
E43: =IF(B42="","",INDIRECT("'"&B42&"'!$A$32")) ->  | F43: =IF(B42="","",INDIRECT("'"&B42&"'!$K$54")) ->  | G43: =IF(B42="","",INDIRECT("'"&B42&"'!$L$54")) ->  | H43: =IF(B42="","",INDIRECT("'"&B42&"'!$H$54")) ->  | I43: =IF(B42="","",INDIRECT("'"&B42&"'!$I$54")) ->  | J43: =IF(B42="","",INDIRECT("'"&B42&"'!$R$54")) ->  | K43: =IF(B42="","",INDIRECT("'"&B42&"'!$U$54")) ->  | L43: =IF(B42="","",INDIRECT("'"&B42&"'!$X$54")) ->  | M43: =IF(B42="","",INDIRECT("'"&B42&"'!$Z$54")) ->  | N43: =IF(B42="","",INDIRECT("'"&B42&"'!$AA$54")) ->  | O43: =SUM(F43:N43) ->  | T43: =C274 ->  | U43: =D274 ->  | V43: =P274 ->  | W43: =Q274 -> 
E44: =IF(B42="","",INDIRECT("'"&B42&"'!$A$56")) ->  | F44: =IF(B42="","",INDIRECT("'"&B42&"'!$K$78")) ->  | G44: =IF(B42="","",INDIRECT("'"&B42&"'!$L$78")) ->  | H44: =IF(B42="","",INDIRECT("'"&B42&"'!$H$78")) ->  | I44: =IF(B42="","",INDIRECT("'"&B42&"'!$I$78")) ->  | J44: =IF(B42="","",INDIRECT("'"&B42&"'!$R$78")) ->  | K44: =IF(B42="","",INDIRECT("'"&B42&"'!$U$78")) ->  | L44: =IF(B42="","",INDIRECT("'"&B42&"'!$X$78")) ->  | M44: =IF(B42="","",INDIRECT("'"&B42&"'!$Z$78")) ->  | N44: =IF(B42="","",INDIRECT("'"&B42&"'!$AA$78")) ->  | O44: =SUM(F44:N44) ->  | T44: =C282 ->  | U44: =D282 ->  | V44: =P282 ->  | W44: =Q282 -> 
E45: =IF(B42="","",INDIRECT("'"&B42&"'!$A$80")) ->  | F45: =IF(B42="","",INDIRECT("'"&B42&"'!$K$102")) ->  | G45: =IF(B42="","",INDIRECT("'"&B42&"'!$L$102")) ->  | H45: =IF(B42="","",INDIRECT("'"&B42&"'!$H$102")) ->  | I45: =IF(B42="","",INDIRECT("'"&B42&"'!$I$102")) ->  | J45: =IF(B42="","",INDIRECT("'"&B42&"'!$R$102")) ->  | K45: =IF(B42="","",INDIRECT("'"&B42&"'!$U$102")) ->  | L45: =IF(B42="","",INDIRECT("'"&B42&"'!$X$102")) ->  | M45: =IF(B42="","",INDIRECT("'"&B42&"'!$Z$102")) ->  | N45: =IF(B42="","",INDIRECT("'"&B42&"'!$AA$102")) ->  | T45: =C290 ->  | U45: =D290 ->  | V45: =P290 ->  | W45: =Q290 -> 
E46: =IF(B42="","",INDIRECT("'"&B42&"'!$A$104")) ->  | F46: =IF(B42="","",INDIRECT("'"&B42&"'!$K$111")) ->  | G46: =IF(B42="","",INDIRECT("'"&B42&"'!$L$111")) ->  | H46: =IF(B42="","",INDIRECT("'"&B42&"'!$H$111")) ->  | I46: =IF(B42="","",INDIRECT("'"&B42&"'!$I$111")) ->  | J46: =IF(B42="","",INDIRECT("'"&B42&"'!$R$111")) ->  | K46: =IF(B42="","",INDIRECT("'"&B42&"'!$U$111")) ->  | L46: =IF(B42="","",INDIRECT("'"&B42&"'!$X$111")) ->  | M46: =IF(B42="","",INDIRECT("'"&B42&"'!$Z$111")) ->  | N46: =IF(B42="","",INDIRECT("'"&B42&"'!$AA$111")) ->  | T46: =C298 ->  | U46: =D298 ->  | V46: =P298 ->  | W46: =Q298 -> 
E47: =IF(B42="","",INDIRECT("'"&B42&"'!$A$113")) ->  | F47: =IF(B42="","",INDIRECT("'"&B42&"'!$K$120")) ->  | G47: =IF(B42="","",INDIRECT("'"&B42&"'!$L$120")) ->  | H47: =IF(B42="","",INDIRECT("'"&B42&"'!$H$120")) ->  | I47: =IF(B42="","",INDIRECT("'"&B42&"'!$I$120")) ->  | J47: =IF(B42="","",INDIRECT("'"&B42&"'!$R$120")) ->  | K47: =IF(B42="","",INDIRECT("'"&B42&"'!$U$120")) ->  | L47: =IF(B42="","",INDIRECT("'"&B42&"'!$X$120")) ->  | M47: =IF(B42="","",INDIRECT("'"&B42&"'!$Z$120")) ->  | N47: =IF(B42="","",INDIRECT("'"&B42&"'!$AA$120")) ->  | T47: =C306 ->  | U47: =D306 ->  | V47: =P306 ->  | W47: =Q306 -> 
E48: =IF(B42="","",INDIRECT("'"&B42&"'!$A$122")) ->  | F48: =IF(B42="","",INDIRECT("'"&B42&"'!$K$129")) ->  | G48: =IF(B42="","",INDIRECT("'"&B42&"'!$L$129")) ->  | H48: =IF(B42="","",INDIRECT("'"&B42&"'!$H$129")) ->  | I48: =IF(B42="","",INDIRECT("'"&B42&"'!$I$129")) ->  | J48: =IF(B42="","",INDIRECT("'"&B42&"'!$R$129")) ->  | K48: =IF(B42="","",INDIRECT("'"&B42&"'!$U$129")) ->  | L48: =IF(B42="","",INDIRECT("'"&B42&"'!$X$129")) ->  | M48: =IF(B42="","",INDIRECT("'"&B42&"'!$Z$129")) ->  | N48: =IF(B42="","",INDIRECT("'"&B42&"'!$AA$129")) ->  | T48: =C314 ->  | U48: =D314 ->  | V48: =P314 ->  | W48: =Q314 -> 
E49: =IF(B42="","",INDIRECT("'"&B42&"'!$A$131")) ->  | F49: =IF(B42="","",INDIRECT("'"&B42&"'!$K$167")) ->  | G49: =IF(B42="","",INDIRECT("'"&B42&"'!$L$167")) ->  | H49: =IF(B42="","",INDIRECT("'"&B42&"'!$H$167")) ->  | I49: =IF(B42="","",INDIRECT("'"&B42&"'!$I$167")) ->  | J49: =IF(B42="","",INDIRECT("'"&B42&"'!$R$167")) ->  | K49: =IF(B42="","",INDIRECT("'"&B42&"'!$U$167")) ->  | L49: =IF(B42="","",INDIRECT("'"&B42&"'!$X$167")) ->  | M49: =IF(B42="","",INDIRECT("'"&B42&"'!$Z$167")) ->  | N49: =IF(B42="","",INDIRECT("'"&B42&"'!$AA$167")) ->  | T49: TOTAUX | V49: =SUM(V5:V48) ->  | W49: =SUM(W5:W48) -> 
B50: =MID(INDEX(nom_feuilles,ROW(Masque!K10)),SEARCH("]",INDEX(nom_feuilles,ROW(Masque!K10)))+1,30) ->  | C50: =IF(B50="","",INDIRECT("'"&B50&"'!$A$1")) ->  | D50: =IF(B50="","",INDIRECT("'"&B50&"'!$A$2")) ->  | E50: =IF(B50="","",INDIRECT("'"&B50&"'!$A$8")) ->  | F50: =IF(B50="","",INDIRECT("'"&B50&"'!$K$30")) ->  | G50: =IF(B50="","",INDIRECT("'"&B50&"'!$L$30")) ->  | H50: =IF(B50="","",INDIRECT("'"&B50&"'!$H$30")) ->  | I50: =IF(B50="","",INDIRECT("'"&B50&"'!$I$30")) ->  | J50: =IF(B50="","",INDIRECT("'"&B50&"'!$R$30")) ->  | K50: =IF(B50="","",INDIRECT("'"&B50&"'!$U$30")) ->  | L50: =IF(B50="","",INDIRECT("'"&B50&"'!$X$30")) ->  | M50: =IF(B50="","",INDIRECT("'"&B50&"'!$Z$30")) ->  | N50: =IF(B50="","",INDIRECT("'"&B50&"'!$AA$30")) ->  | O50: =SUM(F50:N50) ->  | P50: =SUM(O50:O57) ->  | Q50: =IF(B50="","",INDIRECT("'"&B50&"'!$H$4")) ->  | R50: =P50-Q50 -> 
E51: =IF(B50="","",INDIRECT("'"&B50&"'!$A$32")) ->  | F51: =IF(B50="","",INDIRECT("'"&B50&"'!$K$54")) ->  | G51: =IF(B50="","",INDIRECT("'"&B50&"'!$L$54")) ->  | H51: =IF(B50="","",INDIRECT("'"&B50&"'!$H$54")) ->  | I51: =IF(B50="","",INDIRECT("'"&B50&"'!$I$54")) ->  | J51: =IF(B50="","",INDIRECT("'"&B50&"'!$R$54")) ->  | K51: =IF(B50="","",INDIRECT("'"&B50&"'!$U$54")) ->  | L51: =IF(B50="","",INDIRECT("'"&B50&"'!$X$54")) ->  | M51: =IF(B50="","",INDIRECT("'"&B50&"'!$Z$54")) ->  | N51: =IF(B50="","",INDIRECT("'"&B50&"'!$AA$54")) ->  | O51: =SUM(F51:N51) -> 
E52: =IF(B50="","",INDIRECT("'"&B50&"'!$A$56")) ->  | F52: =IF(B50="","",INDIRECT("'"&B50&"'!$K$78")) ->  | G52: =IF(B50="","",INDIRECT("'"&B50&"'!$L$78")) ->  | H52: =IF(B50="","",INDIRECT("'"&B50&"'!$H$78")) ->  | I52: =IF(B50="","",INDIRECT("'"&B50&"'!$I$78")) ->  | J52: =IF(B50="","",INDIRECT("'"&B50&"'!$R$78")) ->  | K52: =IF(B50="","",INDIRECT("'"&B50&"'!$U$78")) ->  | L52: =IF(B50="","",INDIRECT("'"&B50&"'!$X$78")) ->  | M52: =IF(B50="","",INDIRECT("'"&B50&"'!$Z$78")) ->  | N52: =IF(B50="","",INDIRECT("'"&B50&"'!$AA$78")) ->  | O52: =SUM(F52:N52) -> 
E53: =IF(B50="","",INDIRECT("'"&B50&"'!$A$80")) ->  | F53: =IF(B50="","",INDIRECT("'"&B50&"'!$K$102")) ->  | G53: =IF(B50="","",INDIRECT("'"&B50&"'!$L$102")) ->  | H53: =IF(B50="","",INDIRECT("'"&B50&"'!$H$102")) ->  | I53: =IF(B50="","",INDIRECT("'"&B50&"'!$I$102")) ->  | J53: =IF(B50="","",INDIRECT("'"&B50&"'!$R$102")) ->  | K53: =IF(B50="","",INDIRECT("'"&B50&"'!$U$102")) ->  | L53: =IF(B50="","",INDIRECT("'"&B50&"'!$X$102")) ->  | M53: =IF(B50="","",INDIRECT("'"&B50&"'!$Z$102")) ->  | N53: =IF(B50="","",INDIRECT("'"&B50&"'!$AA$102")) -> 
E54: =IF(B50="","",INDIRECT("'"&B50&"'!$A$104")) ->  | F54: =IF(B50="","",INDIRECT("'"&B50&"'!$K$111")) ->  | G54: =IF(B50="","",INDIRECT("'"&B50&"'!$L$111")) ->  | H54: =IF(B50="","",INDIRECT("'"&B50&"'!$H$111")) ->  | I54: =IF(B50="","",INDIRECT("'"&B50&"'!$I$111")) ->  | J54: =IF(B50="","",INDIRECT("'"&B50&"'!$R$111")) ->  | K54: =IF(B50="","",INDIRECT("'"&B50&"'!$U$111")) ->  | L54: =IF(B50="","",INDIRECT("'"&B50&"'!$X$111")) ->  | M54: =IF(B50="","",INDIRECT("'"&B50&"'!$Z$111")) ->  | N54: =IF(B50="","",INDIRECT("'"&B50&"'!$AA$111")) -> 
E55: =IF(B50="","",INDIRECT("'"&B50&"'!$A$113")) ->  | F55: =IF(B50="","",INDIRECT("'"&B50&"'!$K$120")) ->  | G55: =IF(B50="","",INDIRECT("'"&B50&"'!$L$120")) ->  | H55: =IF(B50="","",INDIRECT("'"&B50&"'!$H$120")) ->  | I55: =IF(B50="","",INDIRECT("'"&B50&"'!$I$120")) ->  | J55: =IF(B50="","",INDIRECT("'"&B50&"'!$R$120")) ->  | K55: =IF(B50="","",INDIRECT("'"&B50&"'!$U$120")) ->  | L55: =IF(B50="","",INDIRECT("'"&B50&"'!$X$120")) ->  | M55: =IF(B50="","",INDIRECT("'"&B50&"'!$Z$120")) ->  | N55: =IF(B50="","",INDIRECT("'"&B50&"'!$AA$120")) -> 
E56: =IF(B50="","",INDIRECT("'"&B50&"'!$A$122")) ->  | F56: =IF(B50="","",INDIRECT("'"&B50&"'!$K$129")) ->  | G56: =IF(B50="","",INDIRECT("'"&B50&"'!$L$129")) ->  | H56: =IF(B50="","",INDIRECT("'"&B50&"'!$H$129")) ->  | I56: =IF(B50="","",INDIRECT("'"&B50&"'!$I$129")) ->  | J56: =IF(B50="","",INDIRECT("'"&B50&"'!$R$129")) ->  | K56: =IF(B50="","",INDIRECT("'"&B50&"'!$U$129")) ->  | L56: =IF(B50="","",INDIRECT("'"&B50&"'!$X$129")) ->  | M56: =IF(B50="","",INDIRECT("'"&B50&"'!$Z$129")) ->  | N56: =IF(B50="","",INDIRECT("'"&B50&"'!$AA$129")) -> 
E57: =IF(B50="","",INDIRECT("'"&B50&"'!$A$131")) ->  | F57: =IF(B50="","",INDIRECT("'"&B50&"'!$K$167")) ->  | G57: =IF(B50="","",INDIRECT("'"&B50&"'!$L$167")) ->  | H57: =IF(B50="","",INDIRECT("'"&B50&"'!$H$167")) ->  | I57: =IF(B50="","",INDIRECT("'"&B50&"'!$I$167")) ->  | J57: =IF(B50="","",INDIRECT("'"&B50&"'!$R$167")) ->  | K57: =IF(B50="","",INDIRECT("'"&B50&"'!$U$167")) ->  | L57: =IF(B50="","",INDIRECT("'"&B50&"'!$X$167")) ->  | M57: =IF(B50="","",INDIRECT("'"&B50&"'!$Z$167")) ->  | N57: =IF(B50="","",INDIRECT("'"&B50&"'!$AA$167")) -> 
B58: =MID(INDEX(nom_feuilles,ROW(Masque!K11)),SEARCH("]",INDEX(nom_feuilles,ROW(Masque!K11)))+1,30) ->  | C58: =IF(B58="","",INDIRECT("'"&B58&"'!$A$1")) ->  | D58: =IF(B58="","",INDIRECT("'"&B58&"'!$A$2")) ->  | E58: =IF(B58="","",INDIRECT("'"&B58&"'!$A$8")) ->  | F58: =IF(B58="","",INDIRECT("'"&B58&"'!$K$30")) ->  | G58: =IF(B58="","",INDIRECT("'"&B58&"'!$L$30")) ->  | H58: =IF(B58="","",INDIRECT("'"&B58&"'!$H$30")) ->  | I58: =IF(B58="","",INDIRECT("'"&B58&"'!$I$30")) ->  | J58: =IF(B58="","",INDIRECT("'"&B58&"'!$R$30")) ->  | K58: =IF(B58="","",INDIRECT("'"&B58&"'!$U$30")) ->  | L58: =IF(B58="","",INDIRECT("'"&B58&"'!$X$30")) ->  | M58: =IF(B58="","",INDIRECT("'"&B58&"'!$Z$30")) ->  | N58: =IF(B58="","",INDIRECT("'"&B58&"'!$AA$30")) ->  | O58: =SUM(F58:N58) ->  | P58: =SUM(O58:O65) ->  | Q58: =IF(B58="","",INDIRECT("'"&B58&"'!$H$4")) ->  | R58: =P58-Q58 -> 
E59: =IF(B58="","",INDIRECT("'"&B58&"'!$A$32")) ->  | F59: =IF(B58="","",INDIRECT("'"&B58&"'!$K$54")) ->  | G59: =IF(B58="","",INDIRECT("'"&B58&"'!$L$54")) ->  | H59: =IF(B58="","",INDIRECT("'"&B58&"'!$H$54")) ->  | I59: =IF(B58="","",INDIRECT("'"&B58&"'!$I$54")) ->  | J59: =IF(B58="","",INDIRECT("'"&B58&"'!$R$54")) ->  | K59: =IF(B58="","",INDIRECT("'"&B58&"'!$U$54")) ->  | L59: =IF(B58="","",INDIRECT("'"&B58&"'!$X$54")) ->  | M59: =IF(B58="","",INDIRECT("'"&B58&"'!$Z$54")) ->  | N59: =IF(B58="","",INDIRECT("'"&B58&"'!$AA$54")) ->  | O59: =SUM(F59:N59) -> 
E60: =IF(B58="","",INDIRECT("'"&B58&"'!$A$56")) ->  | F60: =IF(B58="","",INDIRECT("'"&B58&"'!$K$78")) ->  | G60: =IF(B58="","",INDIRECT("'"&B58&"'!$L$78")) ->  | H60: =IF(B58="","",INDIRECT("'"&B58&"'!$H$78")) ->  | I60: =IF(B58="","",INDIRECT("'"&B58&"'!$I$78")) ->  | J60: =IF(B58="","",INDIRECT("'"&B58&"'!$R$78")) ->  | K60: =IF(B58="","",INDIRECT("'"&B58&"'!$U$78")) ->  | L60: =IF(B58="","",INDIRECT("'"&B58&"'!$X$78")) ->  | M60: =IF(B58="","",INDIRECT("'"&B58&"'!$Z$78")) ->  | N60: =IF(B58="","",INDIRECT("'"&B58&"'!$AA$78")) ->  | O60: =SUM(F60:N60) -> 
E61: =IF(B58="","",INDIRECT("'"&B58&"'!$A$80")) ->  | F61: =IF(B58="","",INDIRECT("'"&B58&"'!$K$102")) ->  | G61: =IF(B58="","",INDIRECT("'"&B58&"'!$L$102")) ->  | H61: =IF(B58="","",INDIRECT("'"&B58&"'!$H$102")) ->  | I61: =IF(B58="","",INDIRECT("'"&B58&"'!$I$102")) ->  | J61: =IF(B58="","",INDIRECT("'"&B58&"'!$R$102")) ->  | K61: =IF(B58="","",INDIRECT("'"&B58&"'!$U$102")) ->  | L61: =IF(B58="","",INDIRECT("'"&B58&"'!$X$102")) ->  | M61: =IF(B58="","",INDIRECT("'"&B58&"'!$Z$102")) ->  | N61: =IF(B58="","",INDIRECT("'"&B58&"'!$AA$102")) -> 
E62: =IF(B58="","",INDIRECT("'"&B58&"'!$A$104")) ->  | F62: =IF(B58="","",INDIRECT("'"&B58&"'!$K$111")) ->  | G62: =IF(B58="","",INDIRECT("'"&B58&"'!$L$111")) ->  | H62: =IF(B58="","",INDIRECT("'"&B58&"'!$H$111")) ->  | I62: =IF(B58="","",INDIRECT("'"&B58&"'!$I$111")) ->  | J62: =IF(B58="","",INDIRECT("'"&B58&"'!$R$111")) ->  | K62: =IF(B58="","",INDIRECT("'"&B58&"'!$U$111")) ->  | L62: =IF(B58="","",INDIRECT("'"&B58&"'!$X$111")) ->  | M62: =IF(B58="","",INDIRECT("'"&B58&"'!$Z$111")) ->  | N62: =IF(B58="","",INDIRECT("'"&B58&"'!$AA$111")) -> 
E63: =IF(B58="","",INDIRECT("'"&B58&"'!$A$113")) ->  | F63: =IF(B58="","",INDIRECT("'"&B58&"'!$K$120")) ->  | G63: =IF(B58="","",INDIRECT("'"&B58&"'!$L$120")) ->  | H63: =IF(B58="","",INDIRECT("'"&B58&"'!$H$120")) ->  | I63: =IF(B58="","",INDIRECT("'"&B58&"'!$I$120")) ->  | J63: =IF(B58="","",INDIRECT("'"&B58&"'!$R$120")) ->  | K63: =IF(B58="","",INDIRECT("'"&B58&"'!$U$120")) ->  | L63: =IF(B58="","",INDIRECT("'"&B58&"'!$X$120")) ->  | M63: =IF(B58="","",INDIRECT("'"&B58&"'!$Z$120")) ->  | N63: =IF(B58="","",INDIRECT("'"&B58&"'!$AA$120")) -> 
E64: =IF(B58="","",INDIRECT("'"&B58&"'!$A$122")) ->  | F64: =IF(B58="","",INDIRECT("'"&B58&"'!$K$129")) ->  | G64: =IF(B58="","",INDIRECT("'"&B58&"'!$L$129")) ->  | H64: =IF(B58="","",INDIRECT("'"&B58&"'!$H$129")) ->  | I64: =IF(B58="","",INDIRECT("'"&B58&"'!$I$129")) ->  | J64: =IF(B58="","",INDIRECT("'"&B58&"'!$R$129")) ->  | K64: =IF(B58="","",INDIRECT("'"&B58&"'!$U$129")) ->  | L64: =IF(B58="","",INDIRECT("'"&B58&"'!$X$129")) ->  | M64: =IF(B58="","",INDIRECT("'"&B58&"'!$Z$129")) ->  | N64: =IF(B58="","",INDIRECT("'"&B58&"'!$AA$129")) -> 
E65: =IF(B58="","",INDIRECT("'"&B58&"'!$A$131")) ->  | F65: =IF(B58="","",INDIRECT("'"&B58&"'!$K$167")) ->  | G65: =IF(B58="","",INDIRECT("'"&B58&"'!$L$167")) ->  | H65: =IF(B58="","",INDIRECT("'"&B58&"'!$H$167")) ->  | I65: =IF(B58="","",INDIRECT("'"&B58&"'!$I$167")) ->  | J65: =IF(B58="","",INDIRECT("'"&B58&"'!$R$167")) ->  | K65: =IF(B58="","",INDIRECT("'"&B58&"'!$U$167")) ->  | L65: =IF(B58="","",INDIRECT("'"&B58&"'!$X$167")) ->  | M65: =IF(B58="","",INDIRECT("'"&B58&"'!$Z$167")) ->  | N65: =IF(B58="","",INDIRECT("'"&B58&"'!$AA$167")) -> 
B66: =MID(INDEX(nom_feuilles,ROW(Masque!K12)),SEARCH("]",INDEX(nom_feuilles,ROW(Masque!K12)))+1,30) ->  | C66: =IF(B66="","",INDIRECT("'"&B66&"'!$A$1")) ->  | D66: =IF(B66="","",INDIRECT("'"&B66&"'!$A$2")) ->  | E66: =IF(B66="","",INDIRECT("'"&B66&"'!$A$8")) ->  | F66: =IF(B66="","",INDIRECT("'"&B66&"'!$K$30")) ->  | G66: =IF(B66="","",INDIRECT("'"&B66&"'!$L$30")) ->  | H66: =IF(B66="","",INDIRECT("'"&B66&"'!$H$30")) ->  | I66: =IF(B66="","",INDIRECT("'"&B66&"'!$I$30")) ->  | J66: =IF(B66="","",INDIRECT("'"&B66&"'!$R$30")) ->  | K66: =IF(B66="","",INDIRECT("'"&B66&"'!$U$30")) ->  | L66: =IF(B66="","",INDIRECT("'"&B66&"'!$X$30")) ->  | M66: =IF(B66="","",INDIRECT("'"&B66&"'!$Z$30")) ->  | N66: =IF(B66="","",INDIRECT("'"&B66&"'!$AA$30")) ->  | O66: =SUM(F66:N66) ->  | P66: =SUM(O66:O73) ->  | Q66: =IF(B66="","",INDIRECT("'"&B66&"'!$H$4")) ->  | R66: =P66-Q66 -> 
E67: =IF(B66="","",INDIRECT("'"&B66&"'!$A$32")) ->  | F67: =IF(B66="","",INDIRECT("'"&B66&"'!$K$54")) ->  | G67: =IF(B66="","",INDIRECT("'"&B66&"'!$L$54")) ->  | H67: =IF(B66="","",INDIRECT("'"&B66&"'!$H$54")) ->  | I67: =IF(B66="","",INDIRECT("'"&B66&"'!$I$54")) ->  | J67: =IF(B66="","",INDIRECT("'"&B66&"'!$R$54")) ->  | K67: =IF(B66="","",INDIRECT("'"&B66&"'!$U$54")) ->  | L67: =IF(B66="","",INDIRECT("'"&B66&"'!$X$54")) ->  | M67: =IF(B66="","",INDIRECT("'"&B66&"'!$Z$54")) ->  | N67: =IF(B66="","",INDIRECT("'"&B66&"'!$AA$54")) ->  | O67: =SUM(F67:N67) -> 
E68: =IF(B66="","",INDIRECT("'"&B66&"'!$A$56")) ->  | F68: =IF(B66="","",INDIRECT("'"&B66&"'!$K$78")) ->  | G68: =IF(B66="","",INDIRECT("'"&B66&"'!$L$78")) ->  | H68: =IF(B66="","",INDIRECT("'"&B66&"'!$H$78")) ->  | I68: =IF(B66="","",INDIRECT("'"&B66&"'!$I$78")) ->  | J68: =IF(B66="","",INDIRECT("'"&B66&"'!$R$78")) ->  | K68: =IF(B66="","",INDIRECT("'"&B66&"'!$U$78")) ->  | L68: =IF(B66="","",INDIRECT("'"&B66&"'!$X$78")) ->  | M68: =IF(B66="","",INDIRECT("'"&B66&"'!$Z$78")) ->  | N68: =IF(B66="","",INDIRECT("'"&B66&"'!$AA$78")) ->  | O68: =SUM(F68:N68) -> 
E69: =IF(B66="","",INDIRECT("'"&B66&"'!$A$80")) ->  | F69: =IF(B66="","",INDIRECT("'"&B66&"'!$K$102")) ->  | G69: =IF(B66="","",INDIRECT("'"&B66&"'!$L$102")) ->  | H69: =IF(B66="","",INDIRECT("'"&B66&"'!$H$102")) ->  | I69: =IF(B66="","",INDIRECT("'"&B66&"'!$I$102")) ->  | J69: =IF(B66="","",INDIRECT("'"&B66&"'!$R$102")) ->  | K69: =IF(B66="","",INDIRECT("'"&B66&"'!$U$102")) ->  | L69: =IF(B66="","",INDIRECT("'"&B66&"'!$X$102")) ->  | M69: =IF(B66="","",INDIRECT("'"&B66&"'!$Z$102")) ->  | N69: =IF(B66="","",INDIRECT("'"&B66&"'!$AA$102")) -> 
E70: =IF(B66="","",INDIRECT("'"&B66&"'!$A$104")) ->  | F70: =IF(B66="","",INDIRECT("'"&B66&"'!$K$111")) ->  | G70: =IF(B66="","",INDIRECT("'"&B66&"'!$L$111")) ->  | H70: =IF(B66="","",INDIRECT("'"&B66&"'!$H$111")) ->  | I70: =IF(B66="","",INDIRECT("'"&B66&"'!$I$111")) ->  | J70: =IF(B66="","",INDIRECT("'"&B66&"'!$R$111")) ->  | K70: =IF(B66="","",INDIRECT("'"&B66&"'!$U$111")) ->  | L70: =IF(B66="","",INDIRECT("'"&B66&"'!$X$111")) ->  | M70: =IF(B66="","",INDIRECT("'"&B66&"'!$Z$111")) ->  | N70: =IF(B66="","",INDIRECT("'"&B66&"'!$AA$111")) -> 
E71: =IF(B66="","",INDIRECT("'"&B66&"'!$A$113")) ->  | F71: =IF(B66="","",INDIRECT("'"&B66&"'!$K$120")) ->  | G71: =IF(B66="","",INDIRECT("'"&B66&"'!$L$120")) ->  | H71: =IF(B66="","",INDIRECT("'"&B66&"'!$H$120")) ->  | I71: =IF(B66="","",INDIRECT("'"&B66&"'!$I$120")) ->  | J71: =IF(B66="","",INDIRECT("'"&B66&"'!$R$120")) ->  | K71: =IF(B66="","",INDIRECT("'"&B66&"'!$U$120")) ->  | L71: =IF(B66="","",INDIRECT("'"&B66&"'!$X$120")) ->  | M71: =IF(B66="","",INDIRECT("'"&B66&"'!$Z$120")) ->  | N71: =IF(B66="","",INDIRECT("'"&B66&"'!$AA$120")) -> 
E72: =IF(B66="","",INDIRECT("'"&B66&"'!$A$122")) ->  | F72: =IF(B66="","",INDIRECT("'"&B66&"'!$K$129")) ->  | G72: =IF(B66="","",INDIRECT("'"&B66&"'!$L$129")) ->  | H72: =IF(B66="","",INDIRECT("'"&B66&"'!$H$129")) ->  | I72: =IF(B66="","",INDIRECT("'"&B66&"'!$I$129")) ->  | J72: =IF(B66="","",INDIRECT("'"&B66&"'!$R$129")) ->  | K72: =IF(B66="","",INDIRECT("'"&B66&"'!$U$129")) ->  | L72: =IF(B66="","",INDIRECT("'"&B66&"'!$X$129")) ->  | M72: =IF(B66="","",INDIRECT("'"&B66&"'!$Z$129")) ->  | N72: =IF(B66="","",INDIRECT("'"&B66&"'!$AA$129")) -> 
E73: =IF(B66="","",INDIRECT("'"&B66&"'!$A$131")) ->  | F73: =IF(B66="","",INDIRECT("'"&B66&"'!$K$167")) ->  | G73: =IF(B66="","",INDIRECT("'"&B66&"'!$L$167")) ->  | H73: =IF(B66="","",INDIRECT("'"&B66&"'!$H$167")) ->  | I73: =IF(B66="","",INDIRECT("'"&B66&"'!$I$167")) ->  | J73: =IF(B66="","",INDIRECT("'"&B66&"'!$R$167")) ->  | K73: =IF(B66="","",INDIRECT("'"&B66&"'!$U$167")) ->  | L73: =IF(B66="","",INDIRECT("'"&B66&"'!$X$167")) ->  | M73: =IF(B66="","",INDIRECT("'"&B66&"'!$Z$167")) ->  | N73: =IF(B66="","",INDIRECT("'"&B66&"'!$AA$167")) -> 
B74: =MID(INDEX(nom_feuilles,ROW(Masque!K13)),SEARCH("]",INDEX(nom_feuilles,ROW(Masque!K13)))+1,30) ->  | C74: =IF(B74="","",INDIRECT("'"&B74&"'!$A$1")) ->  | D74: =IF(B74="","",INDIRECT("'"&B74&"'!$A$2")) ->  | E74: =IF(B74="","",INDIRECT("'"&B74&"'!$A$8")) ->  | F74: =IF(B74="","",INDIRECT("'"&B74&"'!$K$30")) ->  | G74: =IF(B74="","",INDIRECT("'"&B74&"'!$L$30")) ->  | H74: =IF(B74="","",INDIRECT("'"&B74&"'!$H$30")) ->  | I74: =IF(B74="","",INDIRECT("'"&B74&"'!$I$30")) ->  | J74: =IF(B74="","",INDIRECT("'"&B74&"'!$R$30")) ->  | K74: =IF(B74="","",INDIRECT("'"&B74&"'!$U$30")) ->  | L74: =IF(B74="","",INDIRECT("'"&B74&"'!$X$30")) ->  | M74: =IF(B74="","",INDIRECT("'"&B74&"'!$Z$30")) ->  | N74: =IF(B74="","",INDIRECT("'"&B74&"'!$AA$30")) ->  | O74: =SUM(F74:N74) ->  | P74: =SUM(O74:O81) ->  | Q74: =IF(B74="","",INDIRECT("'"&B74&"'!$H$4")) ->  | R74: =P74-Q74 -> 
E75: =IF(B74="","",INDIRECT("'"&B74&"'!$A$32")) ->  | F75: =IF(B74="","",INDIRECT("'"&B74&"'!$K$54")) ->  | G75: =IF(B74="","",INDIRECT("'"&B74&"'!$L$54")) ->  | H75: =IF(B74="","",INDIRECT("'"&B74&"'!$H$54")) ->  | I75: =IF(B74="","",INDIRECT("'"&B74&"'!$I$54")) ->  | J75: =IF(B74="","",INDIRECT("'"&B74&"'!$R$54")) ->  | K75: =IF(B74="","",INDIRECT("'"&B74&"'!$U$54")) ->  | L75: =IF(B74="","",INDIRECT("'"&B74&"'!$X$54")) ->  | M75: =IF(B74="","",INDIRECT("'"&B74&"'!$Z$54")) ->  | N75: =IF(B74="","",INDIRECT("'"&B74&"'!$AA$54")) ->  | O75: =SUM(F75:N75) -> 
E76: =IF(B74="","",INDIRECT("'"&B74&"'!$A$56")) ->  | F76: =IF(B74="","",INDIRECT("'"&B74&"'!$K$78")) ->  | G76: =IF(B74="","",INDIRECT("'"&B74&"'!$L$78")) ->  | H76: =IF(B74="","",INDIRECT("'"&B74&"'!$H$78")) ->  | I76: =IF(B74="","",INDIRECT("'"&B74&"'!$I$78")) ->  | J76: =IF(B74="","",INDIRECT("'"&B74&"'!$R$78")) ->  | K76: =IF(B74="","",INDIRECT("'"&B74&"'!$U$78")) ->  | L76: =IF(B74="","",INDIRECT("'"&B74&"'!$X$78")) ->  | M76: =IF(B74="","",INDIRECT("'"&B74&"'!$Z$78")) ->  | N76: =IF(B74="","",INDIRECT("'"&B74&"'!$AA$78")) ->  | O76: =SUM(F76:N76) -> 
E77: =IF(B74="","",INDIRECT("'"&B74&"'!$A$80")) ->  | F77: =IF(B74="","",INDIRECT("'"&B74&"'!$K$102")) ->  | G77: =IF(B74="","",INDIRECT("'"&B74&"'!$L$102")) ->  | H77: =IF(B74="","",INDIRECT("'"&B74&"'!$H$102")) ->  | I77: =IF(B74="","",INDIRECT("'"&B74&"'!$I$102")) ->  | J77: =IF(B74="","",INDIRECT("'"&B74&"'!$R$102")) ->  | K77: =IF(B74="","",INDIRECT("'"&B74&"'!$U$102")) ->  | L77: =IF(B74="","",INDIRECT("'"&B74&"'!$X$102")) ->  | M77: =IF(B74="","",INDIRECT("'"&B74&"'!$Z$102")) ->  | N77: =IF(B74="","",INDIRECT("'"&B74&"'!$AA$102")) -> 
E78: =IF(B74="","",INDIRECT("'"&B74&"'!$A$104")) ->  | F78: =IF(B74="","",INDIRECT("'"&B74&"'!$K$111")) ->  | G78: =IF(B74="","",INDIRECT("'"&B74&"'!$L$111")) ->  | H78: =IF(B74="","",INDIRECT("'"&B74&"'!$H$111")) ->  | I78: =IF(B74="","",INDIRECT("'"&B74&"'!$I$111")) ->  | J78: =IF(B74="","",INDIRECT("'"&B74&"'!$R$111")) ->  | K78: =IF(B74="","",INDIRECT("'"&B74&"'!$U$111")) ->  | L78: =IF(B74="","",INDIRECT("'"&B74&"'!$X$111")) ->  | M78: =IF(B74="","",INDIRECT("'"&B74&"'!$Z$111")) ->  | N78: =IF(B74="","",INDIRECT("'"&B74&"'!$AA$111")) -> 
E79: =IF(B74="","",INDIRECT("'"&B74&"'!$A$113")) ->  | F79: =IF(B74="","",INDIRECT("'"&B74&"'!$K$120")) ->  | G79: =IF(B74="","",INDIRECT("'"&B74&"'!$L$120")) ->  | H79: =IF(B74="","",INDIRECT("'"&B74&"'!$H$120")) ->  | I79: =IF(B74="","",INDIRECT("'"&B74&"'!$I$120")) ->  | J79: =IF(B74="","",INDIRECT("'"&B74&"'!$R$120")) ->  | K79: =IF(B74="","",INDIRECT("'"&B74&"'!$U$120")) ->  | L79: =IF(B74="","",INDIRECT("'"&B74&"'!$X$120")) ->  | M79: =IF(B74="","",INDIRECT("'"&B74&"'!$Z$120")) ->  | N79: =IF(B74="","",INDIRECT("'"&B74&"'!$AA$120")) -> 
E80: =IF(B74="","",INDIRECT("'"&B74&"'!$A$122")) ->  | F80: =IF(B74="","",INDIRECT("'"&B74&"'!$K$129")) ->  | G80: =IF(B74="","",INDIRECT("'"&B74&"'!$L$129")) ->  | H80: =IF(B74="","",INDIRECT("'"&B74&"'!$H$129")) ->  | I80: =IF(B74="","",INDIRECT("'"&B74&"'!$I$129")) ->  | J80: =IF(B74="","",INDIRECT("'"&B74&"'!$R$129")) ->  | K80: =IF(B74="","",INDIRECT("'"&B74&"'!$U$129")) ->  | L80: =IF(B74="","",INDIRECT("'"&B74&"'!$X$129")) ->  | M80: =IF(B74="","",INDIRECT("'"&B74&"'!$Z$129")) ->  | N80: =IF(B74="","",INDIRECT("'"&B74&"'!$AA$129")) -> 
E81: =IF(B74="","",INDIRECT("'"&B74&"'!$A$131")) ->  | F81: =IF(B74="","",INDIRECT("'"&B74&"'!$K$167")) ->  | G81: =IF(B74="","",INDIRECT("'"&B74&"'!$L$167")) ->  | H81: =IF(B74="","",INDIRECT("'"&B74&"'!$H$167")) ->  | I81: =IF(B74="","",INDIRECT("'"&B74&"'!$I$167")) ->  | J81: =IF(B74="","",INDIRECT("'"&B74&"'!$R$167")) ->  | K81: =IF(B74="","",INDIRECT("'"&B74&"'!$U$167")) ->  | L81: =IF(B74="","",INDIRECT("'"&B74&"'!$X$167")) ->  | M81: =IF(B74="","",INDIRECT("'"&B74&"'!$Z$167")) ->  | N81: =IF(B74="","",INDIRECT("'"&B74&"'!$AA$167")) -> 
B82: =MID(INDEX(nom_feuilles,ROW(Masque!K14)),SEARCH("]",INDEX(nom_feuilles,ROW(Masque!K14)))+1,30) ->  | C82: =IF(B82="","",INDIRECT("'"&B82&"'!$A$1")) ->  | D82: =IF(B82="","",INDIRECT("'"&B82&"'!$A$2")) ->  | E82: =IF(B82="","",INDIRECT("'"&B82&"'!$A$8")) ->  | F82: =IF(B82="","",INDIRECT("'"&B82&"'!$K$30")) ->  | G82: =IF(B82="","",INDIRECT("'"&B82&"'!$L$30")) ->  | H82: =IF(B82="","",INDIRECT("'"&B82&"'!$H$30")) ->  | I82: =IF(B82="","",INDIRECT("'"&B82&"'!$I$30")) ->  | J82: =IF(B82="","",INDIRECT("'"&B82&"'!$R$30")) ->  | K82: =IF(B82="","",INDIRECT("'"&B82&"'!$U$30")) ->  | L82: =IF(B82="","",INDIRECT("'"&B82&"'!$X$30")) ->  | M82: =IF(B82="","",INDIRECT("'"&B82&"'!$Z$30")) ->  | N82: =IF(B82="","",INDIRECT("'"&B82&"'!$AA$30")) ->  | O82: =SUM(F82:N82) ->  | P82: =SUM(O82:O89) ->  | Q82: =IF(B82="","",INDIRECT("'"&B82&"'!$H$4")) ->  | R82: =P82-Q82 -> 
E83: =IF(B82="","",INDIRECT("'"&B82&"'!$A$32")) ->  | F83: =IF(B82="","",INDIRECT("'"&B82&"'!$K$54")) ->  | G83: =IF(B82="","",INDIRECT("'"&B82&"'!$L$54")) ->  | H83: =IF(B82="","",INDIRECT("'"&B82&"'!$H$54")) ->  | I83: =IF(B82="","",INDIRECT("'"&B82&"'!$I$54")) ->  | J83: =IF(B82="","",INDIRECT("'"&B82&"'!$R$54")) ->  | K83: =IF(B82="","",INDIRECT("'"&B82&"'!$U$54")) ->  | L83: =IF(B82="","",INDIRECT("'"&B82&"'!$X$54")) ->  | M83: =IF(B82="","",INDIRECT("'"&B82&"'!$Z$54")) ->  | N83: =IF(B82="","",INDIRECT("'"&B82&"'!$AA$54")) ->  | O83: =SUM(F83:N83) -> 
E84: =IF(B82="","",INDIRECT("'"&B82&"'!$A$56")) ->  | F84: =IF(B82="","",INDIRECT("'"&B82&"'!$K$78")) ->  | G84: =IF(B82="","",INDIRECT("'"&B82&"'!$L$78")) ->  | H84: =IF(B82="","",INDIRECT("'"&B82&"'!$H$78")) ->  | I84: =IF(B82="","",INDIRECT("'"&B82&"'!$I$78")) ->  | J84: =IF(B82="","",INDIRECT("'"&B82&"'!$R$78")) ->  | K84: =IF(B82="","",INDIRECT("'"&B82&"'!$U$78")) ->  | L84: =IF(B82="","",INDIRECT("'"&B82&"'!$X$78")) ->  | M84: =IF(B82="","",INDIRECT("'"&B82&"'!$Z$78")) ->  | N84: =IF(B82="","",INDIRECT("'"&B82&"'!$AA$78")) ->  | O84: =SUM(F84:N84) -> 
E85: =IF(B82="","",INDIRECT("'"&B82&"'!$A$80")) ->  | F85: =IF(B82="","",INDIRECT("'"&B82&"'!$K$102")) ->  | G85: =IF(B82="","",INDIRECT("'"&B82&"'!$L$102")) ->  | H85: =IF(B82="","",INDIRECT("'"&B82&"'!$H$102")) ->  | I85: =IF(B82="","",INDIRECT("'"&B82&"'!$I$102")) ->  | J85: =IF(B82="","",INDIRECT("'"&B82&"'!$R$102")) ->  | K85: =IF(B82="","",INDIRECT("'"&B82&"'!$U$102")) ->  | L85: =IF(B82="","",INDIRECT("'"&B82&"'!$X$102")) ->  | M85: =IF(B82="","",INDIRECT("'"&B82&"'!$Z$102")) ->  | N85: =IF(B82="","",INDIRECT("'"&B82&"'!$AA$102")) -> 
E86: =IF(B82="","",INDIRECT("'"&B82&"'!$A$104")) ->  | F86: =IF(B82="","",INDIRECT("'"&B82&"'!$K$111")) ->  | G86: =IF(B82="","",INDIRECT("'"&B82&"'!$L$111")) ->  | H86: =IF(B82="","",INDIRECT("'"&B82&"'!$H$111")) ->  | I86: =IF(B82="","",INDIRECT("'"&B82&"'!$I$111")) ->  | J86: =IF(B82="","",INDIRECT("'"&B82&"'!$R$111")) ->  | K86: =IF(B82="","",INDIRECT("'"&B82&"'!$U$111")) ->  | L86: =IF(B82="","",INDIRECT("'"&B82&"'!$X$111")) ->  | M86: =IF(B82="","",INDIRECT("'"&B82&"'!$Z$111")) ->  | N86: =IF(B82="","",INDIRECT("'"&B82&"'!$AA$111")) -> 
E87: =IF(B82="","",INDIRECT("'"&B82&"'!$A$113")) ->  | F87: =IF(B82="","",INDIRECT("'"&B82&"'!$K$120")) ->  | G87: =IF(B82="","",INDIRECT("'"&B82&"'!$L$120")) ->  | H87: =IF(B82="","",INDIRECT("'"&B82&"'!$H$120")) ->  | I87: =IF(B82="","",INDIRECT("'"&B82&"'!$I$120")) ->  | J87: =IF(B82="","",INDIRECT("'"&B82&"'!$R$120")) ->  | K87: =IF(B82="","",INDIRECT("'"&B82&"'!$U$120")) ->  | L87: =IF(B82="","",INDIRECT("'"&B82&"'!$X$120")) ->  | M87: =IF(B82="","",INDIRECT("'"&B82&"'!$Z$120")) ->  | N87: =IF(B82="","",INDIRECT("'"&B82&"'!$AA$120")) -> 
E88: =IF(B82="","",INDIRECT("'"&B82&"'!$A$122")) ->  | F88: =IF(B82="","",INDIRECT("'"&B82&"'!$K$129")) ->  | G88: =IF(B82="","",INDIRECT("'"&B82&"'!$L$129")) ->  | H88: =IF(B82="","",INDIRECT("'"&B82&"'!$H$129")) ->  | I88: =IF(B82="","",INDIRECT("'"&B82&"'!$I$129")) ->  | J88: =IF(B82="","",INDIRECT("'"&B82&"'!$R$129")) ->  | K88: =IF(B82="","",INDIRECT("'"&B82&"'!$U$129")) ->  | L88: =IF(B82="","",INDIRECT("'"&B82&"'!$X$129")) ->  | M88: =IF(B82="","",INDIRECT("'"&B82&"'!$Z$129")) ->  | N88: =IF(B82="","",INDIRECT("'"&B82&"'!$AA$129")) -> 
E89: =IF(B82="","",INDIRECT("'"&B82&"'!$A$131")) ->  | F89: =IF(B82="","",INDIRECT("'"&B82&"'!$K$167")) ->  | G89: =IF(B82="","",INDIRECT("'"&B82&"'!$L$167")) ->  | H89: =IF(B82="","",INDIRECT("'"&B82&"'!$H$167")) ->  | I89: =IF(B82="","",INDIRECT("'"&B82&"'!$I$167")) ->  | J89: =IF(B82="","",INDIRECT("'"&B82&"'!$R$167")) ->  | K89: =IF(B82="","",INDIRECT("'"&B82&"'!$U$167")) ->  | L89: =IF(B82="","",INDIRECT("'"&B82&"'!$X$167")) ->  | M89: =IF(B82="","",INDIRECT("'"&B82&"'!$Z$167")) ->  | N89: =IF(B82="","",INDIRECT("'"&B82&"'!$AA$167")) -> 
B90: =MID(INDEX(nom_feuilles,ROW(Masque!K15)),SEARCH("]",INDEX(nom_feuilles,ROW(Masque!K15)))+1,30) ->  | C90: =IF(B90="","",INDIRECT("'"&B90&"'!$A$1")) ->  | D90: =IF(B90="","",INDIRECT("'"&B90&"'!$A$2")) ->  | E90: =IF(B90="","",INDIRECT("'"&B90&"'!$A$8")) ->  | F90: =IF(B90="","",INDIRECT("'"&B90&"'!$K$30")) ->  | G90: =IF(B90="","",INDIRECT("'"&B90&"'!$L$30")) ->  | H90: =IF(B90="","",INDIRECT("'"&B90&"'!$H$30")) ->  | I90: =IF(B90="","",INDIRECT("'"&B90&"'!$I$30")) ->  | J90: =IF(B90="","",INDIRECT("'"&B90&"'!$R$30")) ->  | K90: =IF(B90="","",INDIRECT("'"&B90&"'!$U$30")) ->  | L90: =IF(B90="","",INDIRECT("'"&B90&"'!$X$30")) ->  | M90: =IF(B90="","",INDIRECT("'"&B90&"'!$Z$30")) ->  | N90: =IF(B90="","",INDIRECT("'"&B90&"'!$AA$30")) ->  | O90: =SUM(F90:N90) ->  | P90: =SUM(O90:O97) ->  | Q90: =IF(B90="","",INDIRECT("'"&B90&"'!$H$4")) ->  | R90: =P90-Q90 -> 
E91: =IF(B90="","",INDIRECT("'"&B90&"'!$A$32")) ->  | F91: =IF(B90="","",INDIRECT("'"&B90&"'!$K$54")) ->  | G91: =IF(B90="","",INDIRECT("'"&B90&"'!$L$54")) ->  | H91: =IF(B90="","",INDIRECT("'"&B90&"'!$H$54")) ->  | I91: =IF(B90="","",INDIRECT("'"&B90&"'!$I$54")) ->  | J91: =IF(B90="","",INDIRECT("'"&B90&"'!$R$54")) ->  | K91: =IF(B90="","",INDIRECT("'"&B90&"'!$U$54")) ->  | L91: =IF(B90="","",INDIRECT("'"&B90&"'!$X$54")) ->  | M91: =IF(B90="","",INDIRECT("'"&B90&"'!$Z$54")) ->  | N91: =IF(B90="","",INDIRECT("'"&B90&"'!$AA$54")) ->  | O91: =SUM(F91:N91) -> 
E92: =IF(B90="","",INDIRECT("'"&B90&"'!$A$56")) ->  | F92: =IF(B90="","",INDIRECT("'"&B90&"'!$K$78")) ->  | G92: =IF(B90="","",INDIRECT("'"&B90&"'!$L$78")) ->  | H92: =IF(B90="","",INDIRECT("'"&B90&"'!$H$78")) ->  | I92: =IF(B90="","",INDIRECT("'"&B90&"'!$I$78")) ->  | J92: =IF(B90="","",INDIRECT("'"&B90&"'!$R$78")) ->  | K92: =IF(B90="","",INDIRECT("'"&B90&"'!$U$78")) ->  | L92: =IF(B90="","",INDIRECT("'"&B90&"'!$X$78")) ->  | M92: =IF(B90="","",INDIRECT("'"&B90&"'!$Z$78")) ->  | N92: =IF(B90="","",INDIRECT("'"&B90&"'!$AA$78")) ->  | O92: =SUM(F92:N92) -> 
E93: =IF(B90="","",INDIRECT("'"&B90&"'!$A$80")) ->  | F93: =IF(B90="","",INDIRECT("'"&B90&"'!$K$102")) ->  | G93: =IF(B90="","",INDIRECT("'"&B90&"'!$L$102")) ->  | H93: =IF(B90="","",INDIRECT("'"&B90&"'!$H$102")) ->  | I93: =IF(B90="","",INDIRECT("'"&B90&"'!$I$102")) ->  | J93: =IF(B90="","",INDIRECT("'"&B90&"'!$R$102")) ->  | K93: =IF(B90="","",INDIRECT("'"&B90&"'!$U$102")) ->  | L93: =IF(B90="","",INDIRECT("'"&B90&"'!$X$102")) ->  | M93: =IF(B90="","",INDIRECT("'"&B90&"'!$Z$102")) ->  | N93: =IF(B90="","",INDIRECT("'"&B90&"'!$AA$102")) -> 
E94: =IF(B90="","",INDIRECT("'"&B90&"'!$A$104")) ->  | F94: =IF(B90="","",INDIRECT("'"&B90&"'!$K$111")) ->  | G94: =IF(B90="","",INDIRECT("'"&B90&"'!$L$111")) ->  | H94: =IF(B90="","",INDIRECT("'"&B90&"'!$H$111")) ->  | I94: =IF(B90="","",INDIRECT("'"&B90&"'!$I$111")) ->  | J94: =IF(B90="","",INDIRECT("'"&B90&"'!$R$111")) ->  | K94: =IF(B90="","",INDIRECT("'"&B90&"'!$U$111")) ->  | L94: =IF(B90="","",INDIRECT("'"&B90&"'!$X$111")) ->  | M94: =IF(B90="","",INDIRECT("'"&B90&"'!$Z$111")) ->  | N94: =IF(B90="","",INDIRECT("'"&B90&"'!$AA$111")) -> 
E95: =IF(B90="","",INDIRECT("'"&B90&"'!$A$113")) ->  | F95: =IF(B90="","",INDIRECT("'"&B90&"'!$K$120")) ->  | G95: =IF(B90="","",INDIRECT("'"&B90&"'!$L$120")) ->  | H95: =IF(B90="","",INDIRECT("'"&B90&"'!$H$120")) ->  | I95: =IF(B90="","",INDIRECT("'"&B90&"'!$I$120")) ->  | J95: =IF(B90="","",INDIRECT("'"&B90&"'!$R$120")) ->  | K95: =IF(B90="","",INDIRECT("'"&B90&"'!$U$120")) ->  | L95: =IF(B90="","",INDIRECT("'"&B90&"'!$X$120")) ->  | M95: =IF(B90="","",INDIRECT("'"&B90&"'!$Z$120")) ->  | N95: =IF(B90="","",INDIRECT("'"&B90&"'!$AA$120")) -> 
E96: =IF(B90="","",INDIRECT("'"&B90&"'!$A$122")) ->  | F96: =IF(B90="","",INDIRECT("'"&B90&"'!$K$129")) ->  | G96: =IF(B90="","",INDIRECT("'"&B90&"'!$L$129")) ->  | H96: =IF(B90="","",INDIRECT("'"&B90&"'!$H$129")) ->  | I96: =IF(B90="","",INDIRECT("'"&B90&"'!$I$129")) ->  | J96: =IF(B90="","",INDIRECT("'"&B90&"'!$R$129")) ->  | K96: =IF(B90="","",INDIRECT("'"&B90&"'!$U$129")) ->  | L96: =IF(B90="","",INDIRECT("'"&B90&"'!$X$129")) ->  | M96: =IF(B90="","",INDIRECT("'"&B90&"'!$Z$129")) ->  | N96: =IF(B90="","",INDIRECT("'"&B90&"'!$AA$129")) -> 
E97: =IF(B90="","",INDIRECT("'"&B90&"'!$A$131")) ->  | F97: =IF(B90="","",INDIRECT("'"&B90&"'!$K$167")) ->  | G97: =IF(B90="","",INDIRECT("'"&B90&"'!$L$167")) ->  | H97: =IF(B90="","",INDIRECT("'"&B90&"'!$H$167")) ->  | I97: =IF(B90="","",INDIRECT("'"&B90&"'!$I$167")) ->  | J97: =IF(B90="","",INDIRECT("'"&B90&"'!$R$167")) ->  | K97: =IF(B90="","",INDIRECT("'"&B90&"'!$U$167")) ->  | L97: =IF(B90="","",INDIRECT("'"&B90&"'!$X$167")) ->  | M97: =IF(B90="","",INDIRECT("'"&B90&"'!$Z$167")) ->  | N97: =IF(B90="","",INDIRECT("'"&B90&"'!$AA$167")) -> 
B98: =MID(INDEX(nom_feuilles,ROW(Masque!K16)),SEARCH("]",INDEX(nom_feuilles,ROW(Masque!K16)))+1,30) ->  | C98: =IF(B98="","",INDIRECT("'"&B98&"'!$A$1")) ->  | D98: =IF(B98="","",INDIRECT("'"&B98&"'!$A$2")) ->  | E98: =IF(B98="","",INDIRECT("'"&B98&"'!$A$8")) ->  | F98: =IF(B98="","",INDIRECT("'"&B98&"'!$K$30")) ->  | G98: =IF(B98="","",INDIRECT("'"&B98&"'!$L$30")) ->  | H98: =IF(B98="","",INDIRECT("'"&B98&"'!$H$30")) ->  | I98: =IF(B98="","",INDIRECT("'"&B98&"'!$I$30")) ->  | J98: =IF(B98="","",INDIRECT("'"&B98&"'!$R$30")) ->  | K98: =IF(B98="","",INDIRECT("'"&B98&"'!$U$30")) ->  | L98: =IF(B98="","",INDIRECT("'"&B98&"'!$X$30")) ->  | M98: =IF(B98="","",INDIRECT("'"&B98&"'!$Z$30")) ->  | N98: =IF(B98="","",INDIRECT("'"&B98&"'!$AA$30")) ->  | O98: =SUM(F98:N98) ->  | P98: =SUM(O98:O105) ->  | Q98: =IF(B98="","",INDIRECT("'"&B98&"'!$H$4")) ->  | R98: =P98-Q98 -> 
E99: =IF(B98="","",INDIRECT("'"&B98&"'!$A$32")) ->  | F99: =IF(B98="","",INDIRECT("'"&B98&"'!$K$54")) ->  | G99: =IF(B98="","",INDIRECT("'"&B98&"'!$L$54")) ->  | H99: =IF(B98="","",INDIRECT("'"&B98&"'!$H$54")) ->  | I99: =IF(B98="","",INDIRECT("'"&B98&"'!$I$54")) ->  | J99: =IF(B98="","",INDIRECT("'"&B98&"'!$R$54")) ->  | K99: =IF(B98="","",INDIRECT("'"&B98&"'!$U$54")) ->  | L99: =IF(B98="","",INDIRECT("'"&B98&"'!$X$54")) ->  | M99: =IF(B98="","",INDIRECT("'"&B98&"'!$Z$54")) ->  | N99: =IF(B98="","",INDIRECT("'"&B98&"'!$AA$54")) ->  | O99: =SUM(F99:N99) -> 
E100: =IF(B98="","",INDIRECT("'"&B98&"'!$A$56")) ->  | F100: =IF(B98="","",INDIRECT("'"&B98&"'!$K$78")) ->  | G100: =IF(B98="","",INDIRECT("'"&B98&"'!$L$78")) ->  | H100: =IF(B98="","",INDIRECT("'"&B98&"'!$H$78")) ->  | I100: =IF(B98="","",INDIRECT("'"&B98&"'!$I$78")) ->  | J100: =IF(B98="","",INDIRECT("'"&B98&"'!$R$78")) ->  | K100: =IF(B98="","",INDIRECT("'"&B98&"'!$U$78")) ->  | L100: =IF(B98="","",INDIRECT("'"&B98&"'!$X$78")) ->  | M100: =IF(B98="","",INDIRECT("'"&B98&"'!$Z$78")) ->  | N100: =IF(B98="","",INDIRECT("'"&B98&"'!$AA$78")) ->  | O100: =SUM(F100:N100) -> 
E101: =IF(B98="","",INDIRECT("'"&B98&"'!$A$80")) ->  | F101: =IF(B98="","",INDIRECT("'"&B98&"'!$K$102")) ->  | G101: =IF(B98="","",INDIRECT("'"&B98&"'!$L$102")) ->  | H101: =IF(B98="","",INDIRECT("'"&B98&"'!$H$102")) ->  | I101: =IF(B98="","",INDIRECT("'"&B98&"'!$I$102")) ->  | J101: =IF(B98="","",INDIRECT("'"&B98&"'!$R$102")) ->  | K101: =IF(B98="","",INDIRECT("'"&B98&"'!$U$102")) ->  | L101: =IF(B98="","",INDIRECT("'"&B98&"'!$X$102")) ->  | M101: =IF(B98="","",INDIRECT("'"&B98&"'!$Z$102")) ->  | N101: =IF(B98="","",INDIRECT("'"&B98&"'!$AA$102")) -> 
E102: =IF(B98="","",INDIRECT("'"&B98&"'!$A$104")) ->  | F102: =IF(B98="","",INDIRECT("'"&B98&"'!$K$111")) ->  | G102: =IF(B98="","",INDIRECT("'"&B98&"'!$L$111")) ->  | H102: =IF(B98="","",INDIRECT("'"&B98&"'!$H$111")) ->  | I102: =IF(B98="","",INDIRECT("'"&B98&"'!$I$111")) ->  | J102: =IF(B98="","",INDIRECT("'"&B98&"'!$R$111")) ->  | K102: =IF(B98="","",INDIRECT("'"&B98&"'!$U$111")) ->  | L102: =IF(B98="","",INDIRECT("'"&B98&"'!$X$111")) ->  | M102: =IF(B98="","",INDIRECT("'"&B98&"'!$Z$111")) ->  | N102: =IF(B98="","",INDIRECT("'"&B98&"'!$AA$111")) -> 
E103: =IF(B98="","",INDIRECT("'"&B98&"'!$A$113")) ->  | F103: =IF(B98="","",INDIRECT("'"&B98&"'!$K$120")) ->  | G103: =IF(B98="","",INDIRECT("'"&B98&"'!$L$120")) ->  | H103: =IF(B98="","",INDIRECT("'"&B98&"'!$H$120")) ->  | I103: =IF(B98="","",INDIRECT("'"&B98&"'!$I$120")) ->  | J103: =IF(B98="","",INDIRECT("'"&B98&"'!$R$120")) ->  | K103: =IF(B98="","",INDIRECT("'"&B98&"'!$U$120")) ->  | L103: =IF(B98="","",INDIRECT("'"&B98&"'!$X$120")) ->  | M103: =IF(B98="","",INDIRECT("'"&B98&"'!$Z$120")) ->  | N103: =IF(B98="","",INDIRECT("'"&B98&"'!$AA$120")) -> 
E104: =IF(B98="","",INDIRECT("'"&B98&"'!$A$122")) ->  | F104: =IF(B98="","",INDIRECT("'"&B98&"'!$K$129")) ->  | G104: =IF(B98="","",INDIRECT("'"&B98&"'!$L$129")) ->  | H104: =IF(B98="","",INDIRECT("'"&B98&"'!$H$129")) ->  | I104: =IF(B98="","",INDIRECT("'"&B98&"'!$I$129")) ->  | J104: =IF(B98="","",INDIRECT("'"&B98&"'!$R$129")) ->  | K104: =IF(B98="","",INDIRECT("'"&B98&"'!$U$129")) ->  | L104: =IF(B98="","",INDIRECT("'"&B98&"'!$X$129")) ->  | M104: =IF(B98="","",INDIRECT("'"&B98&"'!$Z$129")) ->  | N104: =IF(B98="","",INDIRECT("'"&B98&"'!$AA$129")) -> 
E105: =IF(B98="","",INDIRECT("'"&B98&"'!$A$131")) ->  | F105: =IF(B98="","",INDIRECT("'"&B98&"'!$K$167")) ->  | G105: =IF(B98="","",INDIRECT("'"&B98&"'!$L$167")) ->  | H105: =IF(B98="","",INDIRECT("'"&B98&"'!$H$167")) ->  | I105: =IF(B98="","",INDIRECT("'"&B98&"'!$I$167")) ->  | J105: =IF(B98="","",INDIRECT("'"&B98&"'!$R$167")) ->  | K105: =IF(B98="","",INDIRECT("'"&B98&"'!$U$167")) ->  | L105: =IF(B98="","",INDIRECT("'"&B98&"'!$X$167")) ->  | M105: =IF(B98="","",INDIRECT("'"&B98&"'!$Z$167")) ->  | N105: =IF(B98="","",INDIRECT("'"&B98&"'!$AA$167")) -> 
B106: =MID(INDEX(nom_feuilles,ROW(Masque!K17)),SEARCH("]",INDEX(nom_feuilles,ROW(Masque!K17)))+1,30) ->  | C106: =IF(B106="","",INDIRECT("'"&B106&"'!$A$1")) ->  | D106: =IF(B106="","",INDIRECT("'"&B106&"'!$A$2")) ->  | E106: =IF(B106="","",INDIRECT("'"&B106&"'!$A$8")) ->  | F106: =IF(B106="","",INDIRECT("'"&B106&"'!$K$30")) ->  | G106: =IF(B106="","",INDIRECT("'"&B106&"'!$L$30")) ->  | H106: =IF(B106="","",INDIRECT("'"&B106&"'!$H$30")) ->  | I106: =IF(B106="","",INDIRECT("'"&B106&"'!$I$30")) ->  | J106: =IF(B106="","",INDIRECT("'"&B106&"'!$R$30")) ->  | K106: =IF(B106="","",INDIRECT("'"&B106&"'!$U$30")) ->  | L106: =IF(B106="","",INDIRECT("'"&B106&"'!$X$30")) ->  | M106: =IF(B106="","",INDIRECT("'"&B106&"'!$Z$30")) ->  | N106: =IF(B106="","",INDIRECT("'"&B106&"'!$AA$30")) ->  | O106: =SUM(F106:N106) ->  | P106: =SUM(O106:O113) ->  | Q106: =IF(B106="","",INDIRECT("'"&B106&"'!$H$4")) ->  | R106: =P106-Q106 -> 
E107: =IF(B106="","",INDIRECT("'"&B106&"'!$A$32")) ->  | F107: =IF(B106="","",INDIRECT("'"&B106&"'!$K$54")) ->  | G107: =IF(B106="","",INDIRECT("'"&B106&"'!$L$54")) ->  | H107: =IF(B106="","",INDIRECT("'"&B106&"'!$H$54")) ->  | I107: =IF(B106="","",INDIRECT("'"&B106&"'!$I$54")) ->  | J107: =IF(B106="","",INDIRECT("'"&B106&"'!$R$54")) ->  | K107: =IF(B106="","",INDIRECT("'"&B106&"'!$U$54")) ->  | L107: =IF(B106="","",INDIRECT("'"&B106&"'!$X$54")) ->  | M107: =IF(B106="","",INDIRECT("'"&B106&"'!$Z$54")) ->  | N107: =IF(B106="","",INDIRECT("'"&B106&"'!$AA$54")) ->  | O107: =SUM(F107:N107) -> 
E108: =IF(B106="","",INDIRECT("'"&B106&"'!$A$56")) ->  | F108: =IF(B106="","",INDIRECT("'"&B106&"'!$K$78")) ->  | G108: =IF(B106="","",INDIRECT("'"&B106&"'!$L$78")) ->  | H108: =IF(B106="","",INDIRECT("'"&B106&"'!$H$78")) ->  | I108: =IF(B106="","",INDIRECT("'"&B106&"'!$I$78")) ->  | J108: =IF(B106="","",INDIRECT("'"&B106&"'!$R$78")) ->  | K108: =IF(B106="","",INDIRECT("'"&B106&"'!$U$78")) ->  | L108: =IF(B106="","",INDIRECT("'"&B106&"'!$X$78")) ->  | M108: =IF(B106="","",INDIRECT("'"&B106&"'!$Z$78")) ->  | N108: =IF(B106="","",INDIRECT("'"&B106&"'!$AA$78")) ->  | O108: =SUM(F108:N108) -> 
E109: =IF(B106="","",INDIRECT("'"&B106&"'!$A$80")) ->  | F109: =IF(B106="","",INDIRECT("'"&B106&"'!$K$102")) ->  | G109: =IF(B106="","",INDIRECT("'"&B106&"'!$L$102")) ->  | H109: =IF(B106="","",INDIRECT("'"&B106&"'!$H$102")) ->  | I109: =IF(B106="","",INDIRECT("'"&B106&"'!$I$102")) ->  | J109: =IF(B106="","",INDIRECT("'"&B106&"'!$R$102")) ->  | K109: =IF(B106="","",INDIRECT("'"&B106&"'!$U$102")) ->  | L109: =IF(B106="","",INDIRECT("'"&B106&"'!$X$102")) ->  | M109: =IF(B106="","",INDIRECT("'"&B106&"'!$Z$102")) ->  | N109: =IF(B106="","",INDIRECT("'"&B106&"'!$AA$102")) -> 
E110: =IF(B106="","",INDIRECT("'"&B106&"'!$A$104")) ->  | F110: =IF(B106="","",INDIRECT("'"&B106&"'!$K$111")) ->  | G110: =IF(B106="","",INDIRECT("'"&B106&"'!$L$111")) ->  | H110: =IF(B106="","",INDIRECT("'"&B106&"'!$H$111")) ->  | I110: =IF(B106="","",INDIRECT("'"&B106&"'!$I$111")) ->  | J110: =IF(B106="","",INDIRECT("'"&B106&"'!$R$111")) ->  | K110: =IF(B106="","",INDIRECT("'"&B106&"'!$U$111")) ->  | L110: =IF(B106="","",INDIRECT("'"&B106&"'!$X$111")) ->  | M110: =IF(B106="","",INDIRECT("'"&B106&"'!$Z$111")) ->  | N110: =IF(B106="","",INDIRECT("'"&B106&"'!$AA$111")) -> 
E111: =IF(B106="","",INDIRECT("'"&B106&"'!$A$113")) ->  | F111: =IF(B106="","",INDIRECT("'"&B106&"'!$K$120")) ->  | G111: =IF(B106="","",INDIRECT("'"&B106&"'!$L$120")) ->  | H111: =IF(B106="","",INDIRECT("'"&B106&"'!$H$120")) ->  | I111: =IF(B106="","",INDIRECT("'"&B106&"'!$I$120")) ->  | J111: =IF(B106="","",INDIRECT("'"&B106&"'!$R$120")) ->  | K111: =IF(B106="","",INDIRECT("'"&B106&"'!$U$120")) ->  | L111: =IF(B106="","",INDIRECT("'"&B106&"'!$X$120")) ->  | M111: =IF(B106="","",INDIRECT("'"&B106&"'!$Z$120")) ->  | N111: =IF(B106="","",INDIRECT("'"&B106&"'!$AA$120")) -> 
E112: =IF(B106="","",INDIRECT("'"&B106&"'!$A$122")) ->  | F112: =IF(B106="","",INDIRECT("'"&B106&"'!$K$129")) ->  | G112: =IF(B106="","",INDIRECT("'"&B106&"'!$L$129")) ->  | H112: =IF(B106="","",INDIRECT("'"&B106&"'!$H$129")) ->  | I112: =IF(B106="","",INDIRECT("'"&B106&"'!$I$129")) ->  | J112: =IF(B106="","",INDIRECT("'"&B106&"'!$R$129")) ->  | K112: =IF(B106="","",INDIRECT("'"&B106&"'!$U$129")) ->  | L112: =IF(B106="","",INDIRECT("'"&B106&"'!$X$129")) ->  | M112: =IF(B106="","",INDIRECT("'"&B106&"'!$Z$129")) ->  | N112: =IF(B106="","",INDIRECT("'"&B106&"'!$AA$129")) -> 
E113: =IF(B106="","",INDIRECT("'"&B106&"'!$A$131")) ->  | F113: =IF(B106="","",INDIRECT("'"&B106&"'!$K$167")) ->  | G113: =IF(B106="","",INDIRECT("'"&B106&"'!$L$167")) ->  | H113: =IF(B106="","",INDIRECT("'"&B106&"'!$H$167")) ->  | I113: =IF(B106="","",INDIRECT("'"&B106&"'!$I$167")) ->  | J113: =IF(B106="","",INDIRECT("'"&B106&"'!$R$167")) ->  | K113: =IF(B106="","",INDIRECT("'"&B106&"'!$U$167")) ->  | L113: =IF(B106="","",INDIRECT("'"&B106&"'!$X$167")) ->  | M113: =IF(B106="","",INDIRECT("'"&B106&"'!$Z$167")) ->  | N113: =IF(B106="","",INDIRECT("'"&B106&"'!$AA$167")) -> 
B114: =MID(INDEX(nom_feuilles,ROW(Masque!K18)),SEARCH("]",INDEX(nom_feuilles,ROW(Masque!K18)))+1,30) ->  | C114: =IF(B114="","",INDIRECT("'"&B114&"'!$A$1")) ->  | D114: =IF(B114="","",INDIRECT("'"&B114&"'!$A$2")) ->  | E114: =IF(B114="","",INDIRECT("'"&B114&"'!$A$8")) ->  | F114: =IF(B114="","",INDIRECT("'"&B114&"'!$K$30")) ->  | G114: =IF(B114="","",INDIRECT("'"&B114&"'!$L$30")) ->  | H114: =IF(B114="","",INDIRECT("'"&B114&"'!$H$30")) ->  | I114: =IF(B114="","",INDIRECT("'"&B114&"'!$I$30")) ->  | J114: =IF(B114="","",INDIRECT("'"&B114&"'!$R$30")) ->  | K114: =IF(B114="","",INDIRECT("'"&B114&"'!$U$30")) ->  | L114: =IF(B114="","",INDIRECT("'"&B114&"'!$X$30")) ->  | M114: =IF(B114="","",INDIRECT("'"&B114&"'!$Z$30")) ->  | N114: =IF(B114="","",INDIRECT("'"&B114&"'!$AA$30")) ->  | O114: =SUM(F114:N114) ->  | P114: =SUM(O114:O121) ->  | Q114: =IF(B114="","",INDIRECT("'"&B114&"'!$H$4")) ->  | R114: =P114-Q114 -> 
E115: =IF(B114="","",INDIRECT("'"&B114&"'!$A$32")) ->  | F115: =IF(B114="","",INDIRECT("'"&B114&"'!$K$54")) ->  | G115: =IF(B114="","",INDIRECT("'"&B114&"'!$L$54")) ->  | H115: =IF(B114="","",INDIRECT("'"&B114&"'!$H$54")) ->  | I115: =IF(B114="","",INDIRECT("'"&B114&"'!$I$54")) ->  | J115: =IF(B114="","",INDIRECT("'"&B114&"'!$R$54")) ->  | K115: =IF(B114="","",INDIRECT("'"&B114&"'!$U$54")) ->  | L115: =IF(B114="","",INDIRECT("'"&B114&"'!$X$54")) ->  | M115: =IF(B114="","",INDIRECT("'"&B114&"'!$Z$54")) ->  | N115: =IF(B114="","",INDIRECT("'"&B114&"'!$AA$54")) ->  | O115: =SUM(F115:N115) -> 
E116: =IF(B114="","",INDIRECT("'"&B114&"'!$A$56")) ->  | F116: =IF(B114="","",INDIRECT("'"&B114&"'!$K$78")) ->  | G116: =IF(B114="","",INDIRECT("'"&B114&"'!$L$78")) ->  | H116: =IF(B114="","",INDIRECT("'"&B114&"'!$H$78")) ->  | I116: =IF(B114="","",INDIRECT("'"&B114&"'!$I$78")) ->  | J116: =IF(B114="","",INDIRECT("'"&B114&"'!$R$78")) ->  | K116: =IF(B114="","",INDIRECT("'"&B114&"'!$U$78")) ->  | L116: =IF(B114="","",INDIRECT("'"&B114&"'!$X$78")) ->  | M116: =IF(B114="","",INDIRECT("'"&B114&"'!$Z$78")) ->  | N116: =IF(B114="","",INDIRECT("'"&B114&"'!$AA$78")) ->  | O116: =SUM(F116:N116) -> 
E117: =IF(B114="","",INDIRECT("'"&B114&"'!$A$80")) ->  | F117: =IF(B114="","",INDIRECT("'"&B114&"'!$K$102")) ->  | G117: =IF(B114="","",INDIRECT("'"&B114&"'!$L$102")) ->  | H117: =IF(B114="","",INDIRECT("'"&B114&"'!$H$102")) ->  | I117: =IF(B114="","",INDIRECT("'"&B114&"'!$I$102")) ->  | J117: =IF(B114="","",INDIRECT("'"&B114&"'!$R$102")) ->  | K117: =IF(B114="","",INDIRECT("'"&B114&"'!$U$102")) ->  | L117: =IF(B114="","",INDIRECT("'"&B114&"'!$X$102")) ->  | M117: =IF(B114="","",INDIRECT("'"&B114&"'!$Z$102")) ->  | N117: =IF(B114="","",INDIRECT("'"&B114&"'!$AA$102")) -> 
E118: =IF(B114="","",INDIRECT("'"&B114&"'!$A$104")) ->  | F118: =IF(B114="","",INDIRECT("'"&B114&"'!$K$111")) ->  | G118: =IF(B114="","",INDIRECT("'"&B114&"'!$L$111")) ->  | H118: =IF(B114="","",INDIRECT("'"&B114&"'!$H$111")) ->  | I118: =IF(B114="","",INDIRECT("'"&B114&"'!$I$111")) ->  | J118: =IF(B114="","",INDIRECT("'"&B114&"'!$R$111")) ->  | K118: =IF(B114="","",INDIRECT("'"&B114&"'!$U$111")) ->  | L118: =IF(B114="","",INDIRECT("'"&B114&"'!$X$111")) ->  | M118: =IF(B114="","",INDIRECT("'"&B114&"'!$Z$111")) ->  | N118: =IF(B114="","",INDIRECT("'"&B114&"'!$AA$111")) -> 
E119: =IF(B114="","",INDIRECT("'"&B114&"'!$A$113")) ->  | F119: =IF(B114="","",INDIRECT("'"&B114&"'!$K$120")) ->  | G119: =IF(B114="","",INDIRECT("'"&B114&"'!$L$120")) ->  | H119: =IF(B114="","",INDIRECT("'"&B114&"'!$H$120")) ->  | I119: =IF(B114="","",INDIRECT("'"&B114&"'!$I$120")) ->  | J119: =IF(B114="","",INDIRECT("'"&B114&"'!$R$120")) ->  | K119: =IF(B114="","",INDIRECT("'"&B114&"'!$U$120")) ->  | L119: =IF(B114="","",INDIRECT("'"&B114&"'!$X$120")) ->  | M119: =IF(B114="","",INDIRECT("'"&B114&"'!$Z$120")) ->  | N119: =IF(B114="","",INDIRECT("'"&B114&"'!$AA$120")) -> 
E120: =IF(B114="","",INDIRECT("'"&B114&"'!$A$122")) ->  | F120: =IF(B114="","",INDIRECT("'"&B114&"'!$K$129")) ->  | G120: =IF(B114="","",INDIRECT("'"&B114&"'!$L$129")) ->  | H120: =IF(B114="","",INDIRECT("'"&B114&"'!$H$129")) ->  | I120: =IF(B114="","",INDIRECT("'"&B114&"'!$I$129")) ->  | J120: =IF(B114="","",INDIRECT("'"&B114&"'!$R$129")) ->  | K120: =IF(B114="","",INDIRECT("'"&B114&"'!$U$129")) ->  | L120: =IF(B114="","",INDIRECT("'"&B114&"'!$X$129")) ->  | M120: =IF(B114="","",INDIRECT("'"&B114&"'!$Z$129")) ->  | N120: =IF(B114="","",INDIRECT("'"&B114&"'!$AA$129")) -> 
E121: =IF(B114="","",INDIRECT("'"&B114&"'!$A$131")) ->  | F121: =IF(B114="","",INDIRECT("'"&B114&"'!$K$167")) ->  | G121: =IF(B114="","",INDIRECT("'"&B114&"'!$L$167")) ->  | H121: =IF(B114="","",INDIRECT("'"&B114&"'!$H$167")) ->  | I121: =IF(B114="","",INDIRECT("'"&B114&"'!$I$167")) ->  | J121: =IF(B114="","",INDIRECT("'"&B114&"'!$R$167")) ->  | K121: =IF(B114="","",INDIRECT("'"&B114&"'!$U$167")) ->  | L121: =IF(B114="","",INDIRECT("'"&B114&"'!$X$167")) ->  | M121: =IF(B114="","",INDIRECT("'"&B114&"'!$Z$167")) ->  | N121: =IF(B114="","",INDIRECT("'"&B114&"'!$AA$167")) -> 
B122: =MID(INDEX(nom_feuilles,ROW(Masque!K19)),SEARCH("]",INDEX(nom_feuilles,ROW(Masque!K19)))+1,30) ->  | C122: =IF(B122="","",INDIRECT("'"&B122&"'!$A$1")) ->  | D122: =IF(B122="","",INDIRECT("'"&B122&"'!$A$2")) ->  | E122: =IF(B122="","",INDIRECT("'"&B122&"'!$A$8")) ->  | F122: =IF(B122="","",INDIRECT("'"&B122&"'!$K$30")) ->  | G122: =IF(B122="","",INDIRECT("'"&B122&"'!$L$30")) ->  | H122: =IF(B122="","",INDIRECT("'"&B122&"'!$H$30")) ->  | I122: =IF(B122="","",INDIRECT("'"&B122&"'!$I$30")) ->  | J122: =IF(B122="","",INDIRECT("'"&B122&"'!$R$30")) ->  | K122: =IF(B122="","",INDIRECT("'"&B122&"'!$U$30")) ->  | L122: =IF(B122="","",INDIRECT("'"&B122&"'!$X$30")) ->  | M122: =IF(B122="","",INDIRECT("'"&B122&"'!$Z$30")) ->  | N122: =IF(B122="","",INDIRECT("'"&B122&"'!$AA$30")) ->  | O122: =SUM(F122:N122) ->  | P122: =SUM(O122:O129) ->  | Q122: =IF(B122="","",INDIRECT("'"&B122&"'!$H$4")) ->  | R122: =P122-Q122 -> 
E123: =IF(B122="","",INDIRECT("'"&B122&"'!$A$32")) ->  | F123: =IF(B122="","",INDIRECT("'"&B122&"'!$K$54")) ->  | G123: =IF(B122="","",INDIRECT("'"&B122&"'!$L$54")) ->  | H123: =IF(B122="","",INDIRECT("'"&B122&"'!$H$54")) ->  | I123: =IF(B122="","",INDIRECT("'"&B122&"'!$I$54")) ->  | J123: =IF(B122="","",INDIRECT("'"&B122&"'!$R$54")) ->  | K123: =IF(B122="","",INDIRECT("'"&B122&"'!$U$54")) ->  | L123: =IF(B122="","",INDIRECT("'"&B122&"'!$X$54")) ->  | M123: =IF(B122="","",INDIRECT("'"&B122&"'!$Z$54")) ->  | N123: =IF(B122="","",INDIRECT("'"&B122&"'!$AA$54")) ->  | O123: =SUM(F123:N123) -> 
E124: =IF(B122="","",INDIRECT("'"&B122&"'!$A$56")) ->  | F124: =IF(B122="","",INDIRECT("'"&B122&"'!$K$78")) ->  | G124: =IF(B122="","",INDIRECT("'"&B122&"'!$L$78")) ->  | H124: =IF(B122="","",INDIRECT("'"&B122&"'!$H$78")) ->  | I124: =IF(B122="","",INDIRECT("'"&B122&"'!$I$78")) ->  | J124: =IF(B122="","",INDIRECT("'"&B122&"'!$R$78")) ->  | K124: =IF(B122="","",INDIRECT("'"&B122&"'!$U$78")) ->  | L124: =IF(B122="","",INDIRECT("'"&B122&"'!$X$78")) ->  | M124: =IF(B122="","",INDIRECT("'"&B122&"'!$Z$78")) ->  | N124: =IF(B122="","",INDIRECT("'"&B122&"'!$AA$78")) ->  | O124: =SUM(F124:N124) -> 
E125: =IF(B122="","",INDIRECT("'"&B122&"'!$A$80")) ->  | F125: =IF(B122="","",INDIRECT("'"&B122&"'!$K$102")) ->  | G125: =IF(B122="","",INDIRECT("'"&B122&"'!$L$102")) ->  | H125: =IF(B122="","",INDIRECT("'"&B122&"'!$H$102")) ->  | I125: =IF(B122="","",INDIRECT("'"&B122&"'!$I$102")) ->  | J125: =IF(B122="","",INDIRECT("'"&B122&"'!$R$102")) ->  | K125: =IF(B122="","",INDIRECT("'"&B122&"'!$U$102")) ->  | L125: =IF(B122="","",INDIRECT("'"&B122&"'!$X$102")) ->  | M125: =IF(B122="","",INDIRECT("'"&B122&"'!$Z$102")) ->  | N125: =IF(B122="","",INDIRECT("'"&B122&"'!$AA$102")) -> 
E126: =IF(B122="","",INDIRECT("'"&B122&"'!$A$104")) ->  | F126: =IF(B122="","",INDIRECT("'"&B122&"'!$K$111")) ->  | G126: =IF(B122="","",INDIRECT("'"&B122&"'!$L$111")) ->  | H126: =IF(B122="","",INDIRECT("'"&B122&"'!$H$111")) ->  | I126: =IF(B122="","",INDIRECT("'"&B122&"'!$I$111")) ->  | J126: =IF(B122="","",INDIRECT("'"&B122&"'!$R$111")) ->  | K126: =IF(B122="","",INDIRECT("'"&B122&"'!$U$111")) ->  | L126: =IF(B122="","",INDIRECT("'"&B122&"'!$X$111")) ->  | M126: =IF(B122="","",INDIRECT("'"&B122&"'!$Z$111")) ->  | N126: =IF(B122="","",INDIRECT("'"&B122&"'!$AA$111")) -> 
E127: =IF(B122="","",INDIRECT("'"&B122&"'!$A$113")) ->  | F127: =IF(B122="","",INDIRECT("'"&B122&"'!$K$120")) ->  | G127: =IF(B122="","",INDIRECT("'"&B122&"'!$L$120")) ->  | H127: =IF(B122="","",INDIRECT("'"&B122&"'!$H$120")) ->  | I127: =IF(B122="","",INDIRECT("'"&B122&"'!$I$120")) ->  | J127: =IF(B122="","",INDIRECT("'"&B122&"'!$R$120")) ->  | K127: =IF(B122="","",INDIRECT("'"&B122&"'!$U$120")) ->  | L127: =IF(B122="","",INDIRECT("'"&B122&"'!$X$120")) ->  | M127: =IF(B122="","",INDIRECT("'"&B122&"'!$Z$120")) ->  | N127: =IF(B122="","",INDIRECT("'"&B122&"'!$AA$120")) -> 
E128: =IF(B122="","",INDIRECT("'"&B122&"'!$A$122")) ->  | F128: =IF(B122="","",INDIRECT("'"&B122&"'!$K$129")) ->  | G128: =IF(B122="","",INDIRECT("'"&B122&"'!$L$129")) ->  | H128: =IF(B122="","",INDIRECT("'"&B122&"'!$H$129")) ->  | I128: =IF(B122="","",INDIRECT("'"&B122&"'!$I$129")) ->  | J128: =IF(B122="","",INDIRECT("'"&B122&"'!$R$129")) ->  | K128: =IF(B122="","",INDIRECT("'"&B122&"'!$U$129")) ->  | L128: =IF(B122="","",INDIRECT("'"&B122&"'!$X$129")) ->  | M128: =IF(B122="","",INDIRECT("'"&B122&"'!$Z$129")) ->  | N128: =IF(B122="","",INDIRECT("'"&B122&"'!$AA$129")) -> 
E129: =IF(B122="","",INDIRECT("'"&B122&"'!$A$131")) ->  | F129: =IF(B122="","",INDIRECT("'"&B122&"'!$K$167")) ->  | G129: =IF(B122="","",INDIRECT("'"&B122&"'!$L$167")) ->  | H129: =IF(B122="","",INDIRECT("'"&B122&"'!$H$167")) ->  | I129: =IF(B122="","",INDIRECT("'"&B122&"'!$I$167")) ->  | J129: =IF(B122="","",INDIRECT("'"&B122&"'!$R$167")) ->  | K129: =IF(B122="","",INDIRECT("'"&B122&"'!$U$167")) ->  | L129: =IF(B122="","",INDIRECT("'"&B122&"'!$X$167")) ->  | M129: =IF(B122="","",INDIRECT("'"&B122&"'!$Z$167")) ->  | N129: =IF(B122="","",INDIRECT("'"&B122&"'!$AA$167")) -> 
B130: =MID(INDEX(nom_feuilles,ROW(Masque!K20)),SEARCH("]",INDEX(nom_feuilles,ROW(Masque!K20)))+1,30) ->  | C130: =IF(B130="","",INDIRECT("'"&B130&"'!$A$1")) ->  | D130: =IF(B130="","",INDIRECT("'"&B130&"'!$A$2")) ->  | E130: =IF(B130="","",INDIRECT("'"&B130&"'!$A$8")) ->  | F130: =IF(B130="","",INDIRECT("'"&B130&"'!$K$30")) ->  | G130: =IF(B130="","",INDIRECT("'"&B130&"'!$L$30")) ->  | H130: =IF(B130="","",INDIRECT("'"&B130&"'!$H$30")) ->  | I130: =IF(B130="","",INDIRECT("'"&B130&"'!$I$30")) ->  | J130: =IF(B130="","",INDIRECT("'"&B130&"'!$R$30")) ->  | K130: =IF(B130="","",INDIRECT("'"&B130&"'!$U$30")) ->  | L130: =IF(B130="","",INDIRECT("'"&B130&"'!$X$30")) ->  | M130: =IF(B130="","",INDIRECT("'"&B130&"'!$Z$30")) ->  | N130: =IF(B130="","",INDIRECT("'"&B130&"'!$AA$30")) ->  | O130: =SUM(F130:N130) ->  | P130: =SUM(O130:O137) ->  | Q130: =IF(B130="","",INDIRECT("'"&B130&"'!$H$4")) ->  | R130: =P130-Q130 -> 
E131: =IF(B130="","",INDIRECT("'"&B130&"'!$A$32")) ->  | F131: =IF(B130="","",INDIRECT("'"&B130&"'!$K$54")) ->  | G131: =IF(B130="","",INDIRECT("'"&B130&"'!$L$54")) ->  | H131: =IF(B130="","",INDIRECT("'"&B130&"'!$H$54")) ->  | I131: =IF(B130="","",INDIRECT("'"&B130&"'!$I$54")) ->  | J131: =IF(B130="","",INDIRECT("'"&B130&"'!$R$54")) ->  | K131: =IF(B130="","",INDIRECT("'"&B130&"'!$U$54")) ->  | L131: =IF(B130="","",INDIRECT("'"&B130&"'!$X$54")) ->  | M131: =IF(B130="","",INDIRECT("'"&B130&"'!$Z$54")) ->  | N131: =IF(B130="","",INDIRECT("'"&B130&"'!$AA$54")) ->  | O131: =SUM(F131:N131) -> 
E132: =IF(B130="","",INDIRECT("'"&B130&"'!$A$56")) ->  | F132: =IF(B130="","",INDIRECT("'"&B130&"'!$K$78")) ->  | G132: =IF(B130="","",INDIRECT("'"&B130&"'!$L$78")) ->  | H132: =IF(B130="","",INDIRECT("'"&B130&"'!$H$78")) ->  | I132: =IF(B130="","",INDIRECT("'"&B130&"'!$I$78")) ->  | J132: =IF(B130="","",INDIRECT("'"&B130&"'!$R$78")) ->  | K132: =IF(B130="","",INDIRECT("'"&B130&"'!$U$78")) ->  | L132: =IF(B130="","",INDIRECT("'"&B130&"'!$X$78")) ->  | M132: =IF(B130="","",INDIRECT("'"&B130&"'!$Z$78")) ->  | N132: =IF(B130="","",INDIRECT("'"&B130&"'!$AA$78")) ->  | O132: =SUM(F132:N132) -> 
E133: =IF(B130="","",INDIRECT("'"&B130&"'!$A$80")) ->  | F133: =IF(B130="","",INDIRECT("'"&B130&"'!$K$102")) ->  | G133: =IF(B130="","",INDIRECT("'"&B130&"'!$L$102")) ->  | H133: =IF(B130="","",INDIRECT("'"&B130&"'!$H$102")) ->  | I133: =IF(B130="","",INDIRECT("'"&B130&"'!$I$102")) ->  | J133: =IF(B130="","",INDIRECT("'"&B130&"'!$R$102")) ->  | K133: =IF(B130="","",INDIRECT("'"&B130&"'!$U$102")) ->  | L133: =IF(B130="","",INDIRECT("'"&B130&"'!$X$102")) ->  | M133: =IF(B130="","",INDIRECT("'"&B130&"'!$Z$102")) ->  | N133: =IF(B130="","",INDIRECT("'"&B130&"'!$AA$102")) -> 
E134: =IF(B130="","",INDIRECT("'"&B130&"'!$A$104")) ->  | F134: =IF(B130="","",INDIRECT("'"&B130&"'!$K$111")) ->  | G134: =IF(B130="","",INDIRECT("'"&B130&"'!$L$111")) ->  | H134: =IF(B130="","",INDIRECT("'"&B130&"'!$H$111")) ->  | I134: =IF(B130="","",INDIRECT("'"&B130&"'!$I$111")) ->  | J134: =IF(B130="","",INDIRECT("'"&B130&"'!$R$111")) ->  | K134: =IF(B130="","",INDIRECT("'"&B130&"'!$U$111")) ->  | L134: =IF(B130="","",INDIRECT("'"&B130&"'!$X$111")) ->  | M134: =IF(B130="","",INDIRECT("'"&B130&"'!$Z$111")) ->  | N134: =IF(B130="","",INDIRECT("'"&B130&"'!$AA$111")) -> 
E135: =IF(B130="","",INDIRECT("'"&B130&"'!$A$113")) ->  | F135: =IF(B130="","",INDIRECT("'"&B130&"'!$K$120")) ->  | G135: =IF(B130="","",INDIRECT("'"&B130&"'!$L$120")) ->  | H135: =IF(B130="","",INDIRECT("'"&B130&"'!$H$120")) ->  | I135: =IF(B130="","",INDIRECT("'"&B130&"'!$I$120")) ->  | J135: =IF(B130="","",INDIRECT("'"&B130&"'!$R$120")) ->  | K135: =IF(B130="","",INDIRECT("'"&B130&"'!$U$120")) ->  | L135: =IF(B130="","",INDIRECT("'"&B130&"'!$X$120")) ->  | M135: =IF(B130="","",INDIRECT("'"&B130&"'!$Z$120")) ->  | N135: =IF(B130="","",INDIRECT("'"&B130&"'!$AA$120")) -> 
E136: =IF(B130="","",INDIRECT("'"&B130&"'!$A$122")) ->  | F136: =IF(B130="","",INDIRECT("'"&B130&"'!$K$129")) ->  | G136: =IF(B130="","",INDIRECT("'"&B130&"'!$L$129")) ->  | H136: =IF(B130="","",INDIRECT("'"&B130&"'!$H$129")) ->  | I136: =IF(B130="","",INDIRECT("'"&B130&"'!$I$129")) ->  | J136: =IF(B130="","",INDIRECT("'"&B130&"'!$R$129")) ->  | K136: =IF(B130="","",INDIRECT("'"&B130&"'!$U$129")) ->  | L136: =IF(B130="","",INDIRECT("'"&B130&"'!$X$129")) ->  | M136: =IF(B130="","",INDIRECT("'"&B130&"'!$Z$129")) ->  | N136: =IF(B130="","",INDIRECT("'"&B130&"'!$AA$129")) -> 
E137: =IF(B130="","",INDIRECT("'"&B130&"'!$A$131")) ->  | F137: =IF(B130="","",INDIRECT("'"&B130&"'!$K$167")) ->  | G137: =IF(B130="","",INDIRECT("'"&B130&"'!$L$167")) ->  | H137: =IF(B130="","",INDIRECT("'"&B130&"'!$H$167")) ->  | I137: =IF(B130="","",INDIRECT("'"&B130&"'!$I$167")) ->  | J137: =IF(B130="","",INDIRECT("'"&B130&"'!$R$167")) ->  | K137: =IF(B130="","",INDIRECT("'"&B130&"'!$U$167")) ->  | L137: =IF(B130="","",INDIRECT("'"&B130&"'!$X$167")) ->  | M137: =IF(B130="","",INDIRECT("'"&B130&"'!$Z$167")) ->  | N137: =IF(B130="","",INDIRECT("'"&B130&"'!$AA$167")) -> 
B138: =MID(INDEX(nom_feuilles,ROW(Masque!K21)),SEARCH("]",INDEX(nom_feuilles,ROW(Masque!K21)))+1,30) ->  | C138: =IF(B138="","",INDIRECT("'"&B138&"'!$A$1")) ->  | D138: =IF(B138="","",INDIRECT("'"&B138&"'!$A$2")) ->  | E138: =IF(B138="","",INDIRECT("'"&B138&"'!$A$8")) ->  | F138: =IF(B138="","",INDIRECT("'"&B138&"'!$K$30")) ->  | G138: =IF(B138="","",INDIRECT("'"&B138&"'!$L$30")) ->  | H138: =IF(B138="","",INDIRECT("'"&B138&"'!$H$30")) ->  | I138: =IF(B138="","",INDIRECT("'"&B138&"'!$I$30")) ->  | J138: =IF(B138="","",INDIRECT("'"&B138&"'!$R$30")) ->  | K138: =IF(B138="","",INDIRECT("'"&B138&"'!$U$30")) ->  | L138: =IF(B138="","",INDIRECT("'"&B138&"'!$X$30")) ->  | M138: =IF(B138="","",INDIRECT("'"&B138&"'!$Z$30")) ->  | N138: =IF(B138="","",INDIRECT("'"&B138&"'!$AA$30")) ->  | O138: =SUM(F138:N138) ->  | P138: =SUM(O138:O145) ->  | Q138: =IF(B138="","",INDIRECT("'"&B138&"'!$H$4")) ->  | R138: =P138-Q138 -> 
E139: =IF(B138="","",INDIRECT("'"&B138&"'!$A$32")) ->  | F139: =IF(B138="","",INDIRECT("'"&B138&"'!$K$54")) ->  | G139: =IF(B138="","",INDIRECT("'"&B138&"'!$L$54")) ->  | H139: =IF(B138="","",INDIRECT("'"&B138&"'!$H$54")) ->  | I139: =IF(B138="","",INDIRECT("'"&B138&"'!$I$54")) ->  | J139: =IF(B138="","",INDIRECT("'"&B138&"'!$R$54")) ->  | K139: =IF(B138="","",INDIRECT("'"&B138&"'!$U$54")) ->  | L139: =IF(B138="","",INDIRECT("'"&B138&"'!$X$54")) ->  | M139: =IF(B138="","",INDIRECT("'"&B138&"'!$Z$54")) ->  | N139: =IF(B138="","",INDIRECT("'"&B138&"'!$AA$54")) ->  | O139: =SUM(F139:N139) -> 
E140: =IF(B138="","",INDIRECT("'"&B138&"'!$A$56")) ->  | F140: =IF(B138="","",INDIRECT("'"&B138&"'!$K$78")) ->  | G140: =IF(B138="","",INDIRECT("'"&B138&"'!$L$78")) ->  | H140: =IF(B138="","",INDIRECT("'"&B138&"'!$H$78")) ->  | I140: =IF(B138="","",INDIRECT("'"&B138&"'!$I$78")) ->  | J140: =IF(B138="","",INDIRECT("'"&B138&"'!$R$78")) ->  | K140: =IF(B138="","",INDIRECT("'"&B138&"'!$U$78")) ->  | L140: =IF(B138="","",INDIRECT("'"&B138&"'!$X$78")) ->  | M140: =IF(B138="","",INDIRECT("'"&B138&"'!$Z$78")) ->  | N140: =IF(B138="","",INDIRECT("'"&B138&"'!$AA$78")) ->  | O140: =SUM(F140:N140) -> 
E141: =IF(B138="","",INDIRECT("'"&B138&"'!$A$80")) ->  | F141: =IF(B138="","",INDIRECT("'"&B138&"'!$K$102")) ->  | G141: =IF(B138="","",INDIRECT("'"&B138&"'!$L$102")) ->  | H141: =IF(B138="","",INDIRECT("'"&B138&"'!$H$102")) ->  | I141: =IF(B138="","",INDIRECT("'"&B138&"'!$I$102")) ->  | J141: =IF(B138="","",INDIRECT("'"&B138&"'!$R$102")) ->  | K141: =IF(B138="","",INDIRECT("'"&B138&"'!$U$102")) ->  | L141: =IF(B138="","",INDIRECT("'"&B138&"'!$X$102")) ->  | M141: =IF(B138="","",INDIRECT("'"&B138&"'!$Z$102")) ->  | N141: =IF(B138="","",INDIRECT("'"&B138&"'!$AA$102")) -> 
E142: =IF(B138="","",INDIRECT("'"&B138&"'!$A$104")) ->  | F142: =IF(B138="","",INDIRECT("'"&B138&"'!$K$111")) ->  | G142: =IF(B138="","",INDIRECT("'"&B138&"'!$L$111")) ->  | H142: =IF(B138="","",INDIRECT("'"&B138&"'!$H$111")) ->  | I142: =IF(B138="","",INDIRECT("'"&B138&"'!$I$111")) ->  | J142: =IF(B138="","",INDIRECT("'"&B138&"'!$R$111")) ->  | K142: =IF(B138="","",INDIRECT("'"&B138&"'!$U$111")) ->  | L142: =IF(B138="","",INDIRECT("'"&B138&"'!$X$111")) ->  | M142: =IF(B138="","",INDIRECT("'"&B138&"'!$Z$111")) ->  | N142: =IF(B138="","",INDIRECT("'"&B138&"'!$AA$111")) -> 
E143: =IF(B138="","",INDIRECT("'"&B138&"'!$A$113")) ->  | F143: =IF(B138="","",INDIRECT("'"&B138&"'!$K$120")) ->  | G143: =IF(B138="","",INDIRECT("'"&B138&"'!$L$120")) ->  | H143: =IF(B138="","",INDIRECT("'"&B138&"'!$H$120")) ->  | I143: =IF(B138="","",INDIRECT("'"&B138&"'!$I$120")) ->  | J143: =IF(B138="","",INDIRECT("'"&B138&"'!$R$120")) ->  | K143: =IF(B138="","",INDIRECT("'"&B138&"'!$U$120")) ->  | L143: =IF(B138="","",INDIRECT("'"&B138&"'!$X$120")) ->  | M143: =IF(B138="","",INDIRECT("'"&B138&"'!$Z$120")) ->  | N143: =IF(B138="","",INDIRECT("'"&B138&"'!$AA$120")) -> 
E144: =IF(B138="","",INDIRECT("'"&B138&"'!$A$122")) ->  | F144: =IF(B138="","",INDIRECT("'"&B138&"'!$K$129")) ->  | G144: =IF(B138="","",INDIRECT("'"&B138&"'!$L$129")) ->  | H144: =IF(B138="","",INDIRECT("'"&B138&"'!$H$129")) ->  | I144: =IF(B138="","",INDIRECT("'"&B138&"'!$I$129")) ->  | J144: =IF(B138="","",INDIRECT("'"&B138&"'!$R$129")) ->  | K144: =IF(B138="","",INDIRECT("'"&B138&"'!$U$129")) ->  | L144: =IF(B138="","",INDIRECT("'"&B138&"'!$X$129")) ->  | M144: =IF(B138="","",INDIRECT("'"&B138&"'!$Z$129")) ->  | N144: =IF(B138="","",INDIRECT("'"&B138&"'!$AA$129")) -> 
E145: =IF(B138="","",INDIRECT("'"&B138&"'!$A$131")) ->  | F145: =IF(B138="","",INDIRECT("'"&B138&"'!$K$167")) ->  | G145: =IF(B138="","",INDIRECT("'"&B138&"'!$L$167")) ->  | H145: =IF(B138="","",INDIRECT("'"&B138&"'!$H$167")) ->  | I145: =IF(B138="","",INDIRECT("'"&B138&"'!$I$167")) ->  | J145: =IF(B138="","",INDIRECT("'"&B138&"'!$R$167")) ->  | K145: =IF(B138="","",INDIRECT("'"&B138&"'!$U$167")) ->  | L145: =IF(B138="","",INDIRECT("'"&B138&"'!$X$167")) ->  | M145: =IF(B138="","",INDIRECT("'"&B138&"'!$Z$167")) ->  | N145: =IF(B138="","",INDIRECT("'"&B138&"'!$AA$167")) -> 
B146: =MID(INDEX(nom_feuilles,ROW(Masque!K22)),SEARCH("]",INDEX(nom_feuilles,ROW(Masque!K22)))+1,30) ->  | C146: =IF(B146="","",INDIRECT("'"&B146&"'!$A$1")) ->  | D146: =IF(B146="","",INDIRECT("'"&B146&"'!$A$2")) ->  | E146: =IF(B146="","",INDIRECT("'"&B146&"'!$A$8")) ->  | F146: =IF(B146="","",INDIRECT("'"&B146&"'!$K$30")) ->  | G146: =IF(B146="","",INDIRECT("'"&B146&"'!$L$30")) ->  | H146: =IF(B146="","",INDIRECT("'"&B146&"'!$H$30")) ->  | I146: =IF(B146="","",INDIRECT("'"&B146&"'!$I$30")) ->  | J146: =IF(B146="","",INDIRECT("'"&B146&"'!$R$30")) ->  | K146: =IF(B146="","",INDIRECT("'"&B146&"'!$U$30")) ->  | L146: =IF(B146="","",INDIRECT("'"&B146&"'!$X$30")) ->  | M146: =IF(B146="","",INDIRECT("'"&B146&"'!$Z$30")) ->  | N146: =IF(B146="","",INDIRECT("'"&B146&"'!$AA$30")) ->  | P146: =SUM(O146:O153) ->  | Q146: =IF(B146="","",INDIRECT("'"&B146&"'!$H$4")) ->  | R146: =P146-Q146 -> 
E147: =IF(B146="","",INDIRECT("'"&B146&"'!$A$32")) ->  | F147: =IF(B146="","",INDIRECT("'"&B146&"'!$K$54")) ->  | G147: =IF(B146="","",INDIRECT("'"&B146&"'!$L$54")) ->  | H147: =IF(B146="","",INDIRECT("'"&B146&"'!$H$54")) ->  | I147: =IF(B146="","",INDIRECT("'"&B146&"'!$I$54")) ->  | J147: =IF(B146="","",INDIRECT("'"&B146&"'!$R$54")) ->  | K147: =IF(B146="","",INDIRECT("'"&B146&"'!$U$54")) ->  | L147: =IF(B146="","",INDIRECT("'"&B146&"'!$X$54")) ->  | M147: =IF(B146="","",INDIRECT("'"&B146&"'!$Z$54")) ->  | N147: =IF(B146="","",INDIRECT("'"&B146&"'!$AA$54")) -> 
E148: =IF(B146="","",INDIRECT("'"&B146&"'!$A$56")) ->  | F148: =IF(B146="","",INDIRECT("'"&B146&"'!$K$78")) ->  | G148: =IF(B146="","",INDIRECT("'"&B146&"'!$L$78")) ->  | H148: =IF(B146="","",INDIRECT("'"&B146&"'!$H$78")) ->  | I148: =IF(B146="","",INDIRECT("'"&B146&"'!$I$78")) ->  | J148: =IF(B146="","",INDIRECT("'"&B146&"'!$R$78")) ->  | K148: =IF(B146="","",INDIRECT("'"&B146&"'!$U$78")) ->  | L148: =IF(B146="","",INDIRECT("'"&B146&"'!$X$78")) ->  | M148: =IF(B146="","",INDIRECT("'"&B146&"'!$Z$78")) ->  | N148: =IF(B146="","",INDIRECT("'"&B146&"'!$AA$78")) ->  | O148: =SUM(F148:N148) -> 
E149: =IF(B146="","",INDIRECT("'"&B146&"'!$A$80")) ->  | F149: =IF(B146="","",INDIRECT("'"&B146&"'!$K$102")) ->  | G149: =IF(B146="","",INDIRECT("'"&B146&"'!$L$102")) ->  | H149: =IF(B146="","",INDIRECT("'"&B146&"'!$H$102")) ->  | I149: =IF(B146="","",INDIRECT("'"&B146&"'!$I$102")) ->  | J149: =IF(B146="","",INDIRECT("'"&B146&"'!$R$102")) ->  | K149: =IF(B146="","",INDIRECT("'"&B146&"'!$U$102")) ->  | L149: =IF(B146="","",INDIRECT("'"&B146&"'!$X$102")) ->  | M149: =IF(B146="","",INDIRECT("'"&B146&"'!$Z$102")) ->  | N149: =IF(B146="","",INDIRECT("'"&B146&"'!$AA$102")) -> 
E150: =IF(B146="","",INDIRECT("'"&B146&"'!$A$104")) ->  | F150: =IF(B146="","",INDIRECT("'"&B146&"'!$K$111")) ->  | G150: =IF(B146="","",INDIRECT("'"&B146&"'!$L$111")) ->  | H150: =IF(B146="","",INDIRECT("'"&B146&"'!$H$111")) ->  | I150: =IF(B146="","",INDIRECT("'"&B146&"'!$I$111")) ->  | J150: =IF(B146="","",INDIRECT("'"&B146&"'!$R$111")) ->  | K150: =IF(B146="","",INDIRECT("'"&B146&"'!$U$111")) ->  | L150: =IF(B146="","",INDIRECT("'"&B146&"'!$X$111")) ->  | M150: =IF(B146="","",INDIRECT("'"&B146&"'!$Z$111")) ->  | N150: =IF(B146="","",INDIRECT("'"&B146&"'!$AA$111")) -> 
E151: =IF(B146="","",INDIRECT("'"&B146&"'!$A$113")) ->  | F151: =IF(B146="","",INDIRECT("'"&B146&"'!$K$120")) ->  | G151: =IF(B146="","",INDIRECT("'"&B146&"'!$L$120")) ->  | H151: =IF(B146="","",INDIRECT("'"&B146&"'!$H$120")) ->  | I151: =IF(B146="","",INDIRECT("'"&B146&"'!$I$120")) ->  | J151: =IF(B146="","",INDIRECT("'"&B146&"'!$R$120")) ->  | K151: =IF(B146="","",INDIRECT("'"&B146&"'!$U$120")) ->  | L151: =IF(B146="","",INDIRECT("'"&B146&"'!$X$120")) ->  | M151: =IF(B146="","",INDIRECT("'"&B146&"'!$Z$120")) ->  | N151: =IF(B146="","",INDIRECT("'"&B146&"'!$AA$120")) -> 
E152: =IF(B146="","",INDIRECT("'"&B146&"'!$A$122")) ->  | F152: =IF(B146="","",INDIRECT("'"&B146&"'!$K$129")) ->  | G152: =IF(B146="","",INDIRECT("'"&B146&"'!$L$129")) ->  | H152: =IF(B146="","",INDIRECT("'"&B146&"'!$H$129")) ->  | I152: =IF(B146="","",INDIRECT("'"&B146&"'!$I$129")) ->  | J152: =IF(B146="","",INDIRECT("'"&B146&"'!$R$129")) ->  | K152: =IF(B146="","",INDIRECT("'"&B146&"'!$U$129")) ->  | L152: =IF(B146="","",INDIRECT("'"&B146&"'!$X$129")) ->  | M152: =IF(B146="","",INDIRECT("'"&B146&"'!$Z$129")) ->  | N152: =IF(B146="","",INDIRECT("'"&B146&"'!$AA$129")) -> 
E153: =IF(B146="","",INDIRECT("'"&B146&"'!$A$131")) ->  | F153: =IF(B146="","",INDIRECT("'"&B146&"'!$K$167")) ->  | G153: =IF(B146="","",INDIRECT("'"&B146&"'!$L$167")) ->  | H153: =IF(B146="","",INDIRECT("'"&B146&"'!$H$167")) ->  | I153: =IF(B146="","",INDIRECT("'"&B146&"'!$I$167")) ->  | J153: =IF(B146="","",INDIRECT("'"&B146&"'!$R$167")) ->  | K153: =IF(B146="","",INDIRECT("'"&B146&"'!$U$167")) ->  | L153: =IF(B146="","",INDIRECT("'"&B146&"'!$X$167")) ->  | M153: =IF(B146="","",INDIRECT("'"&B146&"'!$Z$167")) ->  | N153: =IF(B146="","",INDIRECT("'"&B146&"'!$AA$167")) -> 
B154: =MID(INDEX(nom_feuilles,ROW(Masque!K23)),SEARCH("]",INDEX(nom_feuilles,ROW(Masque!K23)))+1,30) ->  | C154: =IF(B154="","",INDIRECT("'"&B154&"'!$A$1")) ->  | D154: =IF(B154="","",INDIRECT("'"&B154&"'!$A$2")) ->  | E154: =IF(B154="","",INDIRECT("'"&B154&"'!$A$8")) ->  | F154: =IF(B154="","",INDIRECT("'"&B154&"'!$K$30")) ->  | G154: =IF(B154="","",INDIRECT("'"&B154&"'!$L$30")) ->  | H154: =IF(B154="","",INDIRECT("'"&B154&"'!$H$30")) ->  | I154: =IF(B154="","",INDIRECT("'"&B154&"'!$I$30")) ->  | J154: =IF(B154="","",INDIRECT("'"&B154&"'!$R$30")) ->  | K154: =IF(B154="","",INDIRECT("'"&B154&"'!$U$30")) ->  | L154: =IF(B154="","",INDIRECT("'"&B154&"'!$X$30")) ->  | M154: =IF(B154="","",INDIRECT("'"&B154&"'!$Z$30")) ->  | N154: =IF(B154="","",INDIRECT("'"&B154&"'!$AA$30")) ->  | P154: =SUM(O154:O161) ->  | Q154: =IF(B154="","",INDIRECT("'"&B154&"'!$H$4")) ->  | R154: =P154-Q154 -> 
E155: =IF(B154="","",INDIRECT("'"&B154&"'!$A$32")) ->  | F155: =IF(B154="","",INDIRECT("'"&B154&"'!$K$54")) ->  | G155: =IF(B154="","",INDIRECT("'"&B154&"'!$L$54")) ->  | H155: =IF(B154="","",INDIRECT("'"&B154&"'!$H$54")) ->  | I155: =IF(B154="","",INDIRECT("'"&B154&"'!$I$54")) ->  | J155: =IF(B154="","",INDIRECT("'"&B154&"'!$R$54")) ->  | K155: =IF(B154="","",INDIRECT("'"&B154&"'!$U$54")) ->  | L155: =IF(B154="","",INDIRECT("'"&B154&"'!$X$54")) ->  | M155: =IF(B154="","",INDIRECT("'"&B154&"'!$Z$54")) ->  | N155: =IF(B154="","",INDIRECT("'"&B154&"'!$AA$54")) -> 
E156: =IF(B154="","",INDIRECT("'"&B154&"'!$A$56")) ->  | F156: =IF(B154="","",INDIRECT("'"&B154&"'!$K$78")) ->  | G156: =IF(B154="","",INDIRECT("'"&B154&"'!$L$78")) ->  | H156: =IF(B154="","",INDIRECT("'"&B154&"'!$H$78")) ->  | I156: =IF(B154="","",INDIRECT("'"&B154&"'!$I$78")) ->  | J156: =IF(B154="","",INDIRECT("'"&B154&"'!$R$78")) ->  | K156: =IF(B154="","",INDIRECT("'"&B154&"'!$U$78")) ->  | L156: =IF(B154="","",INDIRECT("'"&B154&"'!$X$78")) ->  | M156: =IF(B154="","",INDIRECT("'"&B154&"'!$Z$78")) ->  | N156: =IF(B154="","",INDIRECT("'"&B154&"'!$AA$78")) -> 
E157: =IF(B154="","",INDIRECT("'"&B154&"'!$A$80")) ->  | F157: =IF(B154="","",INDIRECT("'"&B154&"'!$K$102")) ->  | G157: =IF(B154="","",INDIRECT("'"&B154&"'!$L$102")) ->  | H157: =IF(B154="","",INDIRECT("'"&B154&"'!$H$102")) ->  | I157: =IF(B154="","",INDIRECT("'"&B154&"'!$I$102")) ->  | J157: =IF(B154="","",INDIRECT("'"&B154&"'!$R$102")) ->  | K157: =IF(B154="","",INDIRECT("'"&B154&"'!$U$102")) ->  | L157: =IF(B154="","",INDIRECT("'"&B154&"'!$X$102")) ->  | M157: =IF(B154="","",INDIRECT("'"&B154&"'!$Z$102")) ->  | N157: =IF(B154="","",INDIRECT("'"&B154&"'!$AA$102")) -> 
E158: =IF(B154="","",INDIRECT("'"&B154&"'!$A$104")) ->  | F158: =IF(B154="","",INDIRECT("'"&B154&"'!$K$111")) ->  | G158: =IF(B154="","",INDIRECT("'"&B154&"'!$L$111")) ->  | H158: =IF(B154="","",INDIRECT("'"&B154&"'!$H$111")) ->  | I158: =IF(B154="","",INDIRECT("'"&B154&"'!$I$111")) ->  | J158: =IF(B154="","",INDIRECT("'"&B154&"'!$R$111")) ->  | K158: =IF(B154="","",INDIRECT("'"&B154&"'!$U$111")) ->  | L158: =IF(B154="","",INDIRECT("'"&B154&"'!$X$111")) ->  | M158: =IF(B154="","",INDIRECT("'"&B154&"'!$Z$111")) ->  | N158: =IF(B154="","",INDIRECT("'"&B154&"'!$AA$111")) -> 
E159: =IF(B154="","",INDIRECT("'"&B154&"'!$A$113")) ->  | F159: =IF(B154="","",INDIRECT("'"&B154&"'!$K$120")) ->  | G159: =IF(B154="","",INDIRECT("'"&B154&"'!$L$120")) ->  | H159: =IF(B154="","",INDIRECT("'"&B154&"'!$H$120")) ->  | I159: =IF(B154="","",INDIRECT("'"&B154&"'!$I$120")) ->  | J159: =IF(B154="","",INDIRECT("'"&B154&"'!$R$120")) ->  | K159: =IF(B154="","",INDIRECT("'"&B154&"'!$U$120")) ->  | L159: =IF(B154="","",INDIRECT("'"&B154&"'!$X$120")) ->  | M159: =IF(B154="","",INDIRECT("'"&B154&"'!$Z$120")) ->  | N159: =IF(B154="","",INDIRECT("'"&B154&"'!$AA$120")) -> 
E160: =IF(B154="","",INDIRECT("'"&B154&"'!$A$122")) ->  | F160: =IF(B154="","",INDIRECT("'"&B154&"'!$K$129")) ->  | G160: =IF(B154="","",INDIRECT("'"&B154&"'!$L$129")) ->  | H160: =IF(B154="","",INDIRECT("'"&B154&"'!$H$129")) ->  | I160: =IF(B154="","",INDIRECT("'"&B154&"'!$I$129")) ->  | J160: =IF(B154="","",INDIRECT("'"&B154&"'!$R$129")) ->  | K160: =IF(B154="","",INDIRECT("'"&B154&"'!$U$129")) ->  | L160: =IF(B154="","",INDIRECT("'"&B154&"'!$X$129")) ->  | M160: =IF(B154="","",INDIRECT("'"&B154&"'!$Z$129")) ->  | N160: =IF(B154="","",INDIRECT("'"&B154&"'!$AA$129")) -> 
E161: =IF(B154="","",INDIRECT("'"&B154&"'!$A$131")) ->  | F161: =IF(B154="","",INDIRECT("'"&B154&"'!$K$167")) ->  | G161: =IF(B154="","",INDIRECT("'"&B154&"'!$L$167")) ->  | H161: =IF(B154="","",INDIRECT("'"&B154&"'!$H$167")) ->  | I161: =IF(B154="","",INDIRECT("'"&B154&"'!$I$167")) ->  | J161: =IF(B154="","",INDIRECT("'"&B154&"'!$R$167")) ->  | K161: =IF(B154="","",INDIRECT("'"&B154&"'!$U$167")) ->  | L161: =IF(B154="","",INDIRECT("'"&B154&"'!$X$167")) ->  | M161: =IF(B154="","",INDIRECT("'"&B154&"'!$Z$167")) ->  | N161: =IF(B154="","",INDIRECT("'"&B154&"'!$AA$167")) -> 
B162: =MID(INDEX(nom_feuilles,ROW(Masque!K24)),SEARCH("]",INDEX(nom_feuilles,ROW(Masque!K24)))+1,30) ->  | C162: =IF(B162="","",INDIRECT("'"&B162&"'!$A$1")) ->  | D162: =IF(B162="","",INDIRECT("'"&B162&"'!$A$2")) ->  | E162: =IF(B162="","",INDIRECT("'"&B162&"'!$A$8")) ->  | F162: =IF(B162="","",INDIRECT("'"&B162&"'!$K$30")) ->  | G162: =IF(B162="","",INDIRECT("'"&B162&"'!$L$30")) ->  | H162: =IF(B162="","",INDIRECT("'"&B162&"'!$H$30")) ->  | I162: =IF(B162="","",INDIRECT("'"&B162&"'!$I$30")) ->  | J162: =IF(B162="","",INDIRECT("'"&B162&"'!$R$30")) ->  | K162: =IF(B162="","",INDIRECT("'"&B162&"'!$U$30")) ->  | L162: =IF(B162="","",INDIRECT("'"&B162&"'!$X$30")) ->  | M162: =IF(B162="","",INDIRECT("'"&B162&"'!$Z$30")) ->  | N162: =IF(B162="","",INDIRECT("'"&B162&"'!$AA$30")) ->  | O162: =SUM(F162:N162) ->  | P162: =SUM(O162:O169) ->  | Q162: =IF(B162="","",INDIRECT("'"&B162&"'!$H$4")) ->  | R162: =P162-Q162 -> 
E163: =IF(B162="","",INDIRECT("'"&B162&"'!$A$32")) ->  | F163: =IF(B162="","",INDIRECT("'"&B162&"'!$K$54")) ->  | G163: =IF(B162="","",INDIRECT("'"&B162&"'!$L$54")) ->  | H163: =IF(B162="","",INDIRECT("'"&B162&"'!$H$54")) ->  | I163: =IF(B162="","",INDIRECT("'"&B162&"'!$I$54")) ->  | J163: =IF(B162="","",INDIRECT("'"&B162&"'!$R$54")) ->  | K163: =IF(B162="","",INDIRECT("'"&B162&"'!$U$54")) ->  | L163: =IF(B162="","",INDIRECT("'"&B162&"'!$X$54")) ->  | M163: =IF(B162="","",INDIRECT("'"&B162&"'!$Z$54")) ->  | N163: =IF(B162="","",INDIRECT("'"&B162&"'!$AA$54")) ->  | O163: =SUM(F163:N163) -> 
E164: =IF(B162="","",INDIRECT("'"&B162&"'!$A$56")) ->  | F164: =IF(B162="","",INDIRECT("'"&B162&"'!$K$78")) ->  | G164: =IF(B162="","",INDIRECT("'"&B162&"'!$L$78")) ->  | H164: =IF(B162="","",INDIRECT("'"&B162&"'!$H$78")) ->  | I164: =IF(B162="","",INDIRECT("'"&B162&"'!$I$78")) ->  | J164: =IF(B162="","",INDIRECT("'"&B162&"'!$R$78")) ->  | K164: =IF(B162="","",INDIRECT("'"&B162&"'!$U$78")) ->  | L164: =IF(B162="","",INDIRECT("'"&B162&"'!$X$78")) ->  | M164: =IF(B162="","",INDIRECT("'"&B162&"'!$Z$78")) ->  | N164: =IF(B162="","",INDIRECT("'"&B162&"'!$AA$78")) ->  | O164: =SUM(F164:N164) -> 
E165: =IF(B162="","",INDIRECT("'"&B162&"'!$A$80")) ->  | F165: =IF(B162="","",INDIRECT("'"&B162&"'!$K$102")) ->  | G165: =IF(B162="","",INDIRECT("'"&B162&"'!$L$102")) ->  | H165: =IF(B162="","",INDIRECT("'"&B162&"'!$H$102")) ->  | I165: =IF(B162="","",INDIRECT("'"&B162&"'!$I$102")) ->  | J165: =IF(B162="","",INDIRECT("'"&B162&"'!$R$102")) ->  | K165: =IF(B162="","",INDIRECT("'"&B162&"'!$U$102")) ->  | L165: =IF(B162="","",INDIRECT("'"&B162&"'!$X$102")) ->  | M165: =IF(B162="","",INDIRECT("'"&B162&"'!$Z$102")) ->  | N165: =IF(B162="","",INDIRECT("'"&B162&"'!$AA$102")) -> 
E166: =IF(B162="","",INDIRECT("'"&B162&"'!$A$104")) ->  | F166: =IF(B162="","",INDIRECT("'"&B162&"'!$K$111")) ->  | G166: =IF(B162="","",INDIRECT("'"&B162&"'!$L$111")) ->  | H166: =IF(B162="","",INDIRECT("'"&B162&"'!$H$111")) ->  | I166: =IF(B162="","",INDIRECT("'"&B162&"'!$I$111")) ->  | J166: =IF(B162="","",INDIRECT("'"&B162&"'!$R$111")) ->  | K166: =IF(B162="","",INDIRECT("'"&B162&"'!$U$111")) ->  | L166: =IF(B162="","",INDIRECT("'"&B162&"'!$X$111")) ->  | M166: =IF(B162="","",INDIRECT("'"&B162&"'!$Z$111")) ->  | N166: =IF(B162="","",INDIRECT("'"&B162&"'!$AA$111")) -> 
E167: =IF(B162="","",INDIRECT("'"&B162&"'!$A$113")) ->  | F167: =IF(B162="","",INDIRECT("'"&B162&"'!$K$120")) ->  | G167: =IF(B162="","",INDIRECT("'"&B162&"'!$L$120")) ->  | H167: =IF(B162="","",INDIRECT("'"&B162&"'!$H$120")) ->  | I167: =IF(B162="","",INDIRECT("'"&B162&"'!$I$120")) ->  | J167: =IF(B162="","",INDIRECT("'"&B162&"'!$R$120")) ->  | K167: =IF(B162="","",INDIRECT("'"&B162&"'!$U$120")) ->  | L167: =IF(B162="","",INDIRECT("'"&B162&"'!$X$120")) ->  | M167: =IF(B162="","",INDIRECT("'"&B162&"'!$Z$120")) ->  | N167: =IF(B162="","",INDIRECT("'"&B162&"'!$AA$120")) -> 
E168: =IF(B162="","",INDIRECT("'"&B162&"'!$A$122")) ->  | F168: =IF(B162="","",INDIRECT("'"&B162&"'!$K$129")) ->  | G168: =IF(B162="","",INDIRECT("'"&B162&"'!$L$129")) ->  | H168: =IF(B162="","",INDIRECT("'"&B162&"'!$H$129")) ->  | I168: =IF(B162="","",INDIRECT("'"&B162&"'!$I$129")) ->  | J168: =IF(B162="","",INDIRECT("'"&B162&"'!$R$129")) ->  | K168: =IF(B162="","",INDIRECT("'"&B162&"'!$U$129")) ->  | L168: =IF(B162="","",INDIRECT("'"&B162&"'!$X$129")) ->  | M168: =IF(B162="","",INDIRECT("'"&B162&"'!$Z$129")) ->  | N168: =IF(B162="","",INDIRECT("'"&B162&"'!$AA$129")) -> 
E169: =IF(B162="","",INDIRECT("'"&B162&"'!$A$131")) ->  | F169: =IF(B162="","",INDIRECT("'"&B162&"'!$K$167")) ->  | G169: =IF(B162="","",INDIRECT("'"&B162&"'!$L$167")) ->  | H169: =IF(B162="","",INDIRECT("'"&B162&"'!$H$167")) ->  | I169: =IF(B162="","",INDIRECT("'"&B162&"'!$I$167")) ->  | J169: =IF(B162="","",INDIRECT("'"&B162&"'!$R$167")) ->  | K169: =IF(B162="","",INDIRECT("'"&B162&"'!$U$167")) ->  | L169: =IF(B162="","",INDIRECT("'"&B162&"'!$X$167")) ->  | M169: =IF(B162="","",INDIRECT("'"&B162&"'!$Z$167")) ->  | N169: =IF(B162="","",INDIRECT("'"&B162&"'!$AA$167")) -> 
B170: =MID(INDEX(nom_feuilles,ROW(Masque!K25)),SEARCH("]",INDEX(nom_feuilles,ROW(Masque!K25)))+1,30) ->  | C170: =IF(B170="","",INDIRECT("'"&B170&"'!$A$1")) ->  | D170: =IF(B170="","",INDIRECT("'"&B170&"'!$A$2")) ->  | E170: =IF(B170="","",INDIRECT("'"&B170&"'!$A$8")) ->  | F170: =IF(B170="","",INDIRECT("'"&B170&"'!$K$30")) ->  | G170: =IF(B170="","",INDIRECT("'"&B170&"'!$L$30")) ->  | H170: =IF(B170="","",INDIRECT("'"&B170&"'!$H$30")) ->  | I170: =IF(B170="","",INDIRECT("'"&B170&"'!$I$30")) ->  | J170: =IF(B170="","",INDIRECT("'"&B170&"'!$R$30")) ->  | K170: =IF(B170="","",INDIRECT("'"&B170&"'!$U$30")) ->  | L170: =IF(B170="","",INDIRECT("'"&B170&"'!$X$30")) ->  | M170: =IF(B170="","",INDIRECT("'"&B170&"'!$Z$30")) ->  | N170: =IF(B170="","",INDIRECT("'"&B170&"'!$AA$30")) ->  | P170: =SUM(O170:O177) ->  | Q170: =IF(B170="","",INDIRECT("'"&B170&"'!$H$4")) ->  | R170: =P170-Q170 -> 
E171: =IF(B170="","",INDIRECT("'"&B170&"'!$A$32")) ->  | F171: =IF(B170="","",INDIRECT("'"&B170&"'!$K$54")) ->  | G171: =IF(B170="","",INDIRECT("'"&B170&"'!$L$54")) ->  | H171: =IF(B170="","",INDIRECT("'"&B170&"'!$H$54")) ->  | I171: =IF(B170="","",INDIRECT("'"&B170&"'!$I$54")) ->  | J171: =IF(B170="","",INDIRECT("'"&B170&"'!$R$54")) ->  | K171: =IF(B170="","",INDIRECT("'"&B170&"'!$U$54")) ->  | L171: =IF(B170="","",INDIRECT("'"&B170&"'!$X$54")) ->  | M171: =IF(B170="","",INDIRECT("'"&B170&"'!$Z$54")) ->  | N171: =IF(B170="","",INDIRECT("'"&B170&"'!$AA$54")) -> 
E172: =IF(B170="","",INDIRECT("'"&B170&"'!$A$56")) ->  | F172: =IF(B170="","",INDIRECT("'"&B170&"'!$K$78")) ->  | G172: =IF(B170="","",INDIRECT("'"&B170&"'!$L$78")) ->  | H172: =IF(B170="","",INDIRECT("'"&B170&"'!$H$78")) ->  | I172: =IF(B170="","",INDIRECT("'"&B170&"'!$I$78")) ->  | J172: =IF(B170="","",INDIRECT("'"&B170&"'!$R$78")) ->  | K172: =IF(B170="","",INDIRECT("'"&B170&"'!$U$78")) ->  | L172: =IF(B170="","",INDIRECT("'"&B170&"'!$X$78")) ->  | M172: =IF(B170="","",INDIRECT("'"&B170&"'!$Z$78")) ->  | N172: =IF(B170="","",INDIRECT("'"&B170&"'!$AA$78")) -> 
E173: =IF(B170="","",INDIRECT("'"&B170&"'!$A$80")) ->  | F173: =IF(B170="","",INDIRECT("'"&B170&"'!$K$102")) ->  | G173: =IF(B170="","",INDIRECT("'"&B170&"'!$L$102")) ->  | H173: =IF(B170="","",INDIRECT("'"&B170&"'!$H$102")) ->  | I173: =IF(B170="","",INDIRECT("'"&B170&"'!$I$102")) ->  | J173: =IF(B170="","",INDIRECT("'"&B170&"'!$R$102")) ->  | K173: =IF(B170="","",INDIRECT("'"&B170&"'!$U$102")) ->  | L173: =IF(B170="","",INDIRECT("'"&B170&"'!$X$102")) ->  | M173: =IF(B170="","",INDIRECT("'"&B170&"'!$Z$102")) ->  | N173: =IF(B170="","",INDIRECT("'"&B170&"'!$AA$102")) -> 
E174: =IF(B170="","",INDIRECT("'"&B170&"'!$A$104")) ->  | F174: =IF(B170="","",INDIRECT("'"&B170&"'!$K$111")) ->  | G174: =IF(B170="","",INDIRECT("'"&B170&"'!$L$111")) ->  | H174: =IF(B170="","",INDIRECT("'"&B170&"'!$H$111")) ->  | I174: =IF(B170="","",INDIRECT("'"&B170&"'!$I$111")) ->  | J174: =IF(B170="","",INDIRECT("'"&B170&"'!$R$111")) ->  | K174: =IF(B170="","",INDIRECT("'"&B170&"'!$U$111")) ->  | L174: =IF(B170="","",INDIRECT("'"&B170&"'!$X$111")) ->  | M174: =IF(B170="","",INDIRECT("'"&B170&"'!$Z$111")) ->  | N174: =IF(B170="","",INDIRECT("'"&B170&"'!$AA$111")) -> 
E175: =IF(B170="","",INDIRECT("'"&B170&"'!$A$113")) ->  | F175: =IF(B170="","",INDIRECT("'"&B170&"'!$K$120")) ->  | G175: =IF(B170="","",INDIRECT("'"&B170&"'!$L$120")) ->  | H175: =IF(B170="","",INDIRECT("'"&B170&"'!$H$120")) ->  | I175: =IF(B170="","",INDIRECT("'"&B170&"'!$I$120")) ->  | J175: =IF(B170="","",INDIRECT("'"&B170&"'!$R$120")) ->  | K175: =IF(B170="","",INDIRECT("'"&B170&"'!$U$120")) ->  | L175: =IF(B170="","",INDIRECT("'"&B170&"'!$X$120")) ->  | M175: =IF(B170="","",INDIRECT("'"&B170&"'!$Z$120")) ->  | N175: =IF(B170="","",INDIRECT("'"&B170&"'!$AA$120")) -> 
E176: =IF(B170="","",INDIRECT("'"&B170&"'!$A$122")) ->  | F176: =IF(B170="","",INDIRECT("'"&B170&"'!$K$129")) ->  | G176: =IF(B170="","",INDIRECT("'"&B170&"'!$L$129")) ->  | H176: =IF(B170="","",INDIRECT("'"&B170&"'!$H$129")) ->  | I176: =IF(B170="","",INDIRECT("'"&B170&"'!$I$129")) ->  | J176: =IF(B170="","",INDIRECT("'"&B170&"'!$R$129")) ->  | K176: =IF(B170="","",INDIRECT("'"&B170&"'!$U$129")) ->  | L176: =IF(B170="","",INDIRECT("'"&B170&"'!$X$129")) ->  | M176: =IF(B170="","",INDIRECT("'"&B170&"'!$Z$129")) ->  | N176: =IF(B170="","",INDIRECT("'"&B170&"'!$AA$129")) -> 
E177: =IF(B170="","",INDIRECT("'"&B170&"'!$A$131")) ->  | F177: =IF(B170="","",INDIRECT("'"&B170&"'!$K$167")) ->  | G177: =IF(B170="","",INDIRECT("'"&B170&"'!$L$167")) ->  | H177: =IF(B170="","",INDIRECT("'"&B170&"'!$H$167")) ->  | I177: =IF(B170="","",INDIRECT("'"&B170&"'!$I$167")) ->  | J177: =IF(B170="","",INDIRECT("'"&B170&"'!$R$167")) ->  | K177: =IF(B170="","",INDIRECT("'"&B170&"'!$U$167")) ->  | L177: =IF(B170="","",INDIRECT("'"&B170&"'!$X$167")) ->  | M177: =IF(B170="","",INDIRECT("'"&B170&"'!$Z$167")) ->  | N177: =IF(B170="","",INDIRECT("'"&B170&"'!$AA$167")) -> 
B178: =MID(INDEX(nom_feuilles,ROW(Masque!K26)),SEARCH("]",INDEX(nom_feuilles,ROW(Masque!K26)))+1,30) ->  | C178: =IF(B178="","",INDIRECT("'"&B178&"'!$A$1")) ->  | D178: =IF(B178="","",INDIRECT("'"&B178&"'!$A$2")) ->  | E178: =IF(B178="","",INDIRECT("'"&B178&"'!$A$8")) ->  | F178: =IF(B178="","",INDIRECT("'"&B178&"'!$K$30")) ->  | G178: =IF(B178="","",INDIRECT("'"&B178&"'!$L$30")) ->  | H178: =IF(B178="","",INDIRECT("'"&B178&"'!$H$30")) ->  | I178: =IF(B178="","",INDIRECT("'"&B178&"'!$I$30")) ->  | J178: =IF(B178="","",INDIRECT("'"&B178&"'!$R$30")) ->  | K178: =IF(B178="","",INDIRECT("'"&B178&"'!$U$30")) ->  | L178: =IF(B178="","",INDIRECT("'"&B178&"'!$X$30")) ->  | M178: =IF(B178="","",INDIRECT("'"&B178&"'!$Z$30")) ->  | N178: =IF(B178="","",INDIRECT("'"&B178&"'!$AA$30")) ->  | P178: =SUM(O178:O185) ->  | Q178: =IF(B178="","",INDIRECT("'"&B178&"'!$H$4")) ->  | R178: =P178-Q178 -> 
E179: =IF(B178="","",INDIRECT("'"&B178&"'!$A$32")) ->  | F179: =IF(B178="","",INDIRECT("'"&B178&"'!$K$54")) ->  | G179: =IF(B178="","",INDIRECT("'"&B178&"'!$L$54")) ->  | H179: =IF(B178="","",INDIRECT("'"&B178&"'!$H$54")) ->  | I179: =IF(B178="","",INDIRECT("'"&B178&"'!$I$54")) ->  | J179: =IF(B178="","",INDIRECT("'"&B178&"'!$R$54")) ->  | K179: =IF(B178="","",INDIRECT("'"&B178&"'!$U$54")) ->  | L179: =IF(B178="","",INDIRECT("'"&B178&"'!$X$54")) ->  | M179: =IF(B178="","",INDIRECT("'"&B178&"'!$Z$54")) ->  | N179: =IF(B178="","",INDIRECT("'"&B178&"'!$AA$54")) -> 
E180: =IF(B178="","",INDIRECT("'"&B178&"'!$A$56")) ->  | F180: =IF(B178="","",INDIRECT("'"&B178&"'!$K$78")) ->  | G180: =IF(B178="","",INDIRECT("'"&B178&"'!$L$78")) ->  | H180: =IF(B178="","",INDIRECT("'"&B178&"'!$H$78")) ->  | I180: =IF(B178="","",INDIRECT("'"&B178&"'!$I$78")) ->  | J180: =IF(B178="","",INDIRECT("'"&B178&"'!$R$78")) ->  | K180: =IF(B178="","",INDIRECT("'"&B178&"'!$U$78")) ->  | L180: =IF(B178="","",INDIRECT("'"&B178&"'!$X$78")) ->  | M180: =IF(B178="","",INDIRECT("'"&B178&"'!$Z$78")) ->  | N180: =IF(B178="","",INDIRECT("'"&B178&"'!$AA$78")) -> 
E181: =IF(B178="","",INDIRECT("'"&B178&"'!$A$80")) ->  | F181: =IF(B178="","",INDIRECT("'"&B178&"'!$K$102")) ->  | G181: =IF(B178="","",INDIRECT("'"&B178&"'!$L$102")) ->  | H181: =IF(B178="","",INDIRECT("'"&B178&"'!$H$102")) ->  | I181: =IF(B178="","",INDIRECT("'"&B178&"'!$I$102")) ->  | J181: =IF(B178="","",INDIRECT("'"&B178&"'!$R$102")) ->  | K181: =IF(B178="","",INDIRECT("'"&B178&"'!$U$102")) ->  | L181: =IF(B178="","",INDIRECT("'"&B178&"'!$X$102")) ->  | M181: =IF(B178="","",INDIRECT("'"&B178&"'!$Z$102")) ->  | N181: =IF(B178="","",INDIRECT("'"&B178&"'!$AA$102")) -> 
E182: =IF(B178="","",INDIRECT("'"&B178&"'!$A$104")) ->  | F182: =IF(B178="","",INDIRECT("'"&B178&"'!$K$111")) ->  | G182: =IF(B178="","",INDIRECT("'"&B178&"'!$L$111")) ->  | H182: =IF(B178="","",INDIRECT("'"&B178&"'!$H$111")) ->  | I182: =IF(B178="","",INDIRECT("'"&B178&"'!$I$111")) ->  | J182: =IF(B178="","",INDIRECT("'"&B178&"'!$R$111")) ->  | K182: =IF(B178="","",INDIRECT("'"&B178&"'!$U$111")) ->  | L182: =IF(B178="","",INDIRECT("'"&B178&"'!$X$111")) ->  | M182: =IF(B178="","",INDIRECT("'"&B178&"'!$Z$111")) ->  | N182: =IF(B178="","",INDIRECT("'"&B178&"'!$AA$111")) -> 
E183: =IF(B178="","",INDIRECT("'"&B178&"'!$A$113")) ->  | F183: =IF(B178="","",INDIRECT("'"&B178&"'!$K$120")) ->  | G183: =IF(B178="","",INDIRECT("'"&B178&"'!$L$120")) ->  | H183: =IF(B178="","",INDIRECT("'"&B178&"'!$H$120")) ->  | I183: =IF(B178="","",INDIRECT("'"&B178&"'!$I$120")) ->  | J183: =IF(B178="","",INDIRECT("'"&B178&"'!$R$120")) ->  | K183: =IF(B178="","",INDIRECT("'"&B178&"'!$U$120")) ->  | L183: =IF(B178="","",INDIRECT("'"&B178&"'!$X$120")) ->  | M183: =IF(B178="","",INDIRECT("'"&B178&"'!$Z$120")) ->  | N183: =IF(B178="","",INDIRECT("'"&B178&"'!$AA$120")) -> 
E184: =IF(B178="","",INDIRECT("'"&B178&"'!$A$122")) ->  | F184: =IF(B178="","",INDIRECT("'"&B178&"'!$K$129")) ->  | G184: =IF(B178="","",INDIRECT("'"&B178&"'!$L$129")) ->  | H184: =IF(B178="","",INDIRECT("'"&B178&"'!$H$129")) ->  | I184: =IF(B178="","",INDIRECT("'"&B178&"'!$I$129")) ->  | J184: =IF(B178="","",INDIRECT("'"&B178&"'!$R$129")) ->  | K184: =IF(B178="","",INDIRECT("'"&B178&"'!$U$129")) ->  | L184: =IF(B178="","",INDIRECT("'"&B178&"'!$X$129")) ->  | M184: =IF(B178="","",INDIRECT("'"&B178&"'!$Z$129")) ->  | N184: =IF(B178="","",INDIRECT("'"&B178&"'!$AA$129")) -> 
E185: =IF(B178="","",INDIRECT("'"&B178&"'!$A$131")) ->  | F185: =IF(B178="","",INDIRECT("'"&B178&"'!$K$167")) ->  | G185: =IF(B178="","",INDIRECT("'"&B178&"'!$L$167")) ->  | H185: =IF(B178="","",INDIRECT("'"&B178&"'!$H$167")) ->  | I185: =IF(B178="","",INDIRECT("'"&B178&"'!$I$167")) ->  | J185: =IF(B178="","",INDIRECT("'"&B178&"'!$R$167")) ->  | K185: =IF(B178="","",INDIRECT("'"&B178&"'!$U$167")) ->  | L185: =IF(B178="","",INDIRECT("'"&B178&"'!$X$167")) ->  | M185: =IF(B178="","",INDIRECT("'"&B178&"'!$Z$167")) ->  | N185: =IF(B178="","",INDIRECT("'"&B178&"'!$AA$167")) -> 
B186: =MID(INDEX(nom_feuilles,ROW(Masque!K27)),SEARCH("]",INDEX(nom_feuilles,ROW(Masque!K27)))+1,30) ->  | C186: =IF(B186="","",INDIRECT("'"&B186&"'!$A$1")) ->  | D186: =IF(B186="","",INDIRECT("'"&B186&"'!$A$2")) ->  | E186: =IF(B186="","",INDIRECT("'"&B186&"'!$A$8")) ->  | F186: =IF(B186="","",INDIRECT("'"&B186&"'!$K$30")) ->  | G186: =IF(B186="","",INDIRECT("'"&B186&"'!$L$30")) ->  | H186: =IF(B186="","",INDIRECT("'"&B186&"'!$H$30")) ->  | I186: =IF(B186="","",INDIRECT("'"&B186&"'!$I$30")) ->  | J186: =IF(B186="","",INDIRECT("'"&B186&"'!$R$30")) ->  | K186: =IF(B186="","",INDIRECT("'"&B186&"'!$U$30")) ->  | L186: =IF(B186="","",INDIRECT("'"&B186&"'!$X$30")) ->  | M186: =IF(B186="","",INDIRECT("'"&B186&"'!$Z$30")) ->  | N186: =IF(B186="","",INDIRECT("'"&B186&"'!$AA$30")) ->  | O186: =SUM(F186:N186) ->  | P186: =SUM(O186:O193) ->  | Q186: =IF(B186="","",INDIRECT("'"&B186&"'!$H$4")) ->  | R186: =P186-Q186 -> 
E187: =IF(B186="","",INDIRECT("'"&B186&"'!$A$32")) ->  | F187: =IF(B186="","",INDIRECT("'"&B186&"'!$K$54")) ->  | G187: =IF(B186="","",INDIRECT("'"&B186&"'!$L$54")) ->  | H187: =IF(B186="","",INDIRECT("'"&B186&"'!$H$54")) ->  | I187: =IF(B186="","",INDIRECT("'"&B186&"'!$I$54")) ->  | J187: =IF(B186="","",INDIRECT("'"&B186&"'!$R$54")) ->  | K187: =IF(B186="","",INDIRECT("'"&B186&"'!$U$54")) ->  | L187: =IF(B186="","",INDIRECT("'"&B186&"'!$X$54")) ->  | M187: =IF(B186="","",INDIRECT("'"&B186&"'!$Z$54")) ->  | N187: =IF(B186="","",INDIRECT("'"&B186&"'!$AA$54")) -> 
E188: =IF(B186="","",INDIRECT("'"&B186&"'!$A$56")) ->  | F188: =IF(B186="","",INDIRECT("'"&B186&"'!$K$78")) ->  | G188: =IF(B186="","",INDIRECT("'"&B186&"'!$L$78")) ->  | H188: =IF(B186="","",INDIRECT("'"&B186&"'!$H$78")) ->  | I188: =IF(B186="","",INDIRECT("'"&B186&"'!$I$78")) ->  | J188: =IF(B186="","",INDIRECT("'"&B186&"'!$R$78")) ->  | K188: =IF(B186="","",INDIRECT("'"&B186&"'!$U$78")) ->  | L188: =IF(B186="","",INDIRECT("'"&B186&"'!$X$78")) ->  | M188: =IF(B186="","",INDIRECT("'"&B186&"'!$Z$78")) ->  | N188: =IF(B186="","",INDIRECT("'"&B186&"'!$AA$78")) -> 
E189: =IF(B186="","",INDIRECT("'"&B186&"'!$A$80")) ->  | F189: =IF(B186="","",INDIRECT("'"&B186&"'!$K$102")) ->  | G189: =IF(B186="","",INDIRECT("'"&B186&"'!$L$102")) ->  | H189: =IF(B186="","",INDIRECT("'"&B186&"'!$H$102")) ->  | I189: =IF(B186="","",INDIRECT("'"&B186&"'!$I$102")) ->  | J189: =IF(B186="","",INDIRECT("'"&B186&"'!$R$102")) ->  | K189: =IF(B186="","",INDIRECT("'"&B186&"'!$U$102")) ->  | L189: =IF(B186="","",INDIRECT("'"&B186&"'!$X$102")) ->  | M189: =IF(B186="","",INDIRECT("'"&B186&"'!$Z$102")) ->  | N189: =IF(B186="","",INDIRECT("'"&B186&"'!$AA$102")) -> 
E190: =IF(B186="","",INDIRECT("'"&B186&"'!$A$104")) ->  | F190: =IF(B186="","",INDIRECT("'"&B186&"'!$K$111")) ->  | G190: =IF(B186="","",INDIRECT("'"&B186&"'!$L$111")) ->  | H190: =IF(B186="","",INDIRECT("'"&B186&"'!$H$111")) ->  | I190: =IF(B186="","",INDIRECT("'"&B186&"'!$I$111")) ->  | J190: =IF(B186="","",INDIRECT("'"&B186&"'!$R$111")) ->  | K190: =IF(B186="","",INDIRECT("'"&B186&"'!$U$111")) ->  | L190: =IF(B186="","",INDIRECT("'"&B186&"'!$X$111")) ->  | M190: =IF(B186="","",INDIRECT("'"&B186&"'!$Z$111")) ->  | N190: =IF(B186="","",INDIRECT("'"&B186&"'!$AA$111")) -> 
E191: =IF(B186="","",INDIRECT("'"&B186&"'!$A$113")) ->  | F191: =IF(B186="","",INDIRECT("'"&B186&"'!$K$120")) ->  | G191: =IF(B186="","",INDIRECT("'"&B186&"'!$L$120")) ->  | H191: =IF(B186="","",INDIRECT("'"&B186&"'!$H$120")) ->  | I191: =IF(B186="","",INDIRECT("'"&B186&"'!$I$120")) ->  | J191: =IF(B186="","",INDIRECT("'"&B186&"'!$R$120")) ->  | K191: =IF(B186="","",INDIRECT("'"&B186&"'!$U$120")) ->  | L191: =IF(B186="","",INDIRECT("'"&B186&"'!$X$120")) ->  | M191: =IF(B186="","",INDIRECT("'"&B186&"'!$Z$120")) ->  | N191: =IF(B186="","",INDIRECT("'"&B186&"'!$AA$120")) -> 
E192: =IF(B186="","",INDIRECT("'"&B186&"'!$A$122")) ->  | F192: =IF(B186="","",INDIRECT("'"&B186&"'!$K$129")) ->  | G192: =IF(B186="","",INDIRECT("'"&B186&"'!$L$129")) ->  | H192: =IF(B186="","",INDIRECT("'"&B186&"'!$H$129")) ->  | I192: =IF(B186="","",INDIRECT("'"&B186&"'!$I$129")) ->  | J192: =IF(B186="","",INDIRECT("'"&B186&"'!$R$129")) ->  | K192: =IF(B186="","",INDIRECT("'"&B186&"'!$U$129")) ->  | L192: =IF(B186="","",INDIRECT("'"&B186&"'!$X$129")) ->  | M192: =IF(B186="","",INDIRECT("'"&B186&"'!$Z$129")) ->  | N192: =IF(B186="","",INDIRECT("'"&B186&"'!$AA$129")) -> 
E193: =IF(B186="","",INDIRECT("'"&B186&"'!$A$131")) ->  | F193: =IF(B186="","",INDIRECT("'"&B186&"'!$K$167")) ->  | G193: =IF(B186="","",INDIRECT("'"&B186&"'!$L$167")) ->  | H193: =IF(B186="","",INDIRECT("'"&B186&"'!$H$167")) ->  | I193: =IF(B186="","",INDIRECT("'"&B186&"'!$I$167")) ->  | J193: =IF(B186="","",INDIRECT("'"&B186&"'!$R$167")) ->  | K193: =IF(B186="","",INDIRECT("'"&B186&"'!$U$167")) ->  | L193: =IF(B186="","",INDIRECT("'"&B186&"'!$X$167")) ->  | M193: =IF(B186="","",INDIRECT("'"&B186&"'!$Z$167")) ->  | N193: =IF(B186="","",INDIRECT("'"&B186&"'!$AA$167")) -> 
B194: =MID(INDEX(nom_feuilles,ROW(Masque!K28)),SEARCH("]",INDEX(nom_feuilles,ROW(Masque!K28)))+1,30) ->  | D194: =IF(B194="","",INDIRECT("'"&B194&"'!$A$2")) ->  | E194: =IF(B194="","",INDIRECT("'"&B194&"'!$A$8")) ->  | F194: =IF(B194="","",INDIRECT("'"&B194&"'!$K$30")) ->  | G194: =IF(B194="","",INDIRECT("'"&B194&"'!$L$30")) ->  | H194: =IF(B194="","",INDIRECT("'"&B194&"'!$H$30")) ->  | I194: =IF(B194="","",INDIRECT("'"&B194&"'!$I$30")) ->  | J194: =IF(B194="","",INDIRECT("'"&B194&"'!$R$30")) ->  | K194: =IF(B194="","",INDIRECT("'"&B194&"'!$U$30")) ->  | L194: =IF(B194="","",INDIRECT("'"&B194&"'!$X$30")) ->  | M194: =IF(B194="","",INDIRECT("'"&B194&"'!$Z$30")) ->  | N194: =IF(B194="","",INDIRECT("'"&B194&"'!$AA$30")) ->  | P194: =SUM(O194:O201) ->  | Q194: =IF(B194="","",INDIRECT("'"&B194&"'!$H$4")) ->  | R194: =P194-Q194 -> 
E195: =IF(B194="","",INDIRECT("'"&B194&"'!$A$32")) ->  | F195: =IF(B194="","",INDIRECT("'"&B194&"'!$K$54")) ->  | G195: =IF(B194="","",INDIRECT("'"&B194&"'!$L$54")) ->  | H195: =IF(B194="","",INDIRECT("'"&B194&"'!$H$54")) ->  | I195: =IF(B194="","",INDIRECT("'"&B194&"'!$I$54")) ->  | J195: =IF(B194="","",INDIRECT("'"&B194&"'!$R$54")) ->  | K195: =IF(B194="","",INDIRECT("'"&B194&"'!$U$54")) ->  | L195: =IF(B194="","",INDIRECT("'"&B194&"'!$X$54")) ->  | M195: =IF(B194="","",INDIRECT("'"&B194&"'!$Z$54")) ->  | N195: =IF(B194="","",INDIRECT("'"&B194&"'!$AA$54")) -> 
E196: =IF(B194="","",INDIRECT("'"&B194&"'!$A$56")) ->  | F196: =IF(B194="","",INDIRECT("'"&B194&"'!$K$78")) ->  | G196: =IF(B194="","",INDIRECT("'"&B194&"'!$L$78")) ->  | H196: =IF(B194="","",INDIRECT("'"&B194&"'!$H$78")) ->  | I196: =IF(B194="","",INDIRECT("'"&B194&"'!$I$78")) ->  | J196: =IF(B194="","",INDIRECT("'"&B194&"'!$R$78")) ->  | K196: =IF(B194="","",INDIRECT("'"&B194&"'!$U$78")) ->  | L196: =IF(B194="","",INDIRECT("'"&B194&"'!$X$78")) ->  | M196: =IF(B194="","",INDIRECT("'"&B194&"'!$Z$78")) ->  | N196: =IF(B194="","",INDIRECT("'"&B194&"'!$AA$78")) -> 
E197: =IF(B194="","",INDIRECT("'"&B194&"'!$A$80")) ->  | F197: =IF(B194="","",INDIRECT("'"&B194&"'!$K$102")) ->  | G197: =IF(B194="","",INDIRECT("'"&B194&"'!$L$102")) ->  | H197: =IF(B194="","",INDIRECT("'"&B194&"'!$H$102")) ->  | I197: =IF(B194="","",INDIRECT("'"&B194&"'!$I$102")) ->  | J197: =IF(B194="","",INDIRECT("'"&B194&"'!$R$102")) ->  | K197: =IF(B194="","",INDIRECT("'"&B194&"'!$U$102")) ->  | L197: =IF(B194="","",INDIRECT("'"&B194&"'!$X$102")) ->  | M197: =IF(B194="","",INDIRECT("'"&B194&"'!$Z$102")) ->  | N197: =IF(B194="","",INDIRECT("'"&B194&"'!$AA$102")) -> 
E198: =IF(B194="","",INDIRECT("'"&B194&"'!$A$104")) ->  | F198: =IF(B194="","",INDIRECT("'"&B194&"'!$K$111")) ->  | G198: =IF(B194="","",INDIRECT("'"&B194&"'!$L$111")) ->  | H198: =IF(B194="","",INDIRECT("'"&B194&"'!$H$111")) ->  | I198: =IF(B194="","",INDIRECT("'"&B194&"'!$I$111")) ->  | J198: =IF(B194="","",INDIRECT("'"&B194&"'!$R$111")) ->  | K198: =IF(B194="","",INDIRECT("'"&B194&"'!$U$111")) ->  | L198: =IF(B194="","",INDIRECT("'"&B194&"'!$X$111")) ->  | M198: =IF(B194="","",INDIRECT("'"&B194&"'!$Z$111")) ->  | N198: =IF(B194="","",INDIRECT("'"&B194&"'!$AA$111")) -> 
E199: =IF(B194="","",INDIRECT("'"&B194&"'!$A$113")) ->  | F199: =IF(B194="","",INDIRECT("'"&B194&"'!$K$120")) ->  | G199: =IF(B194="","",INDIRECT("'"&B194&"'!$L$120")) ->  | H199: =IF(B194="","",INDIRECT("'"&B194&"'!$H$120")) ->  | I199: =IF(B194="","",INDIRECT("'"&B194&"'!$I$120")) ->  | J199: =IF(B194="","",INDIRECT("'"&B194&"'!$R$120")) ->  | K199: =IF(B194="","",INDIRECT("'"&B194&"'!$U$120")) ->  | L199: =IF(B194="","",INDIRECT("'"&B194&"'!$X$120")) ->  | M199: =IF(B194="","",INDIRECT("'"&B194&"'!$Z$120")) ->  | N199: =IF(B194="","",INDIRECT("'"&B194&"'!$AA$120")) -> 
E200: =IF(B194="","",INDIRECT("'"&B194&"'!$A$122")) ->  | F200: =IF(B194="","",INDIRECT("'"&B194&"'!$K$129")) ->  | G200: =IF(B194="","",INDIRECT("'"&B194&"'!$L$129")) ->  | H200: =IF(B194="","",INDIRECT("'"&B194&"'!$H$129")) ->  | I200: =IF(B194="","",INDIRECT("'"&B194&"'!$I$129")) ->  | J200: =IF(B194="","",INDIRECT("'"&B194&"'!$R$129")) ->  | K200: =IF(B194="","",INDIRECT("'"&B194&"'!$U$129")) ->  | L200: =IF(B194="","",INDIRECT("'"&B194&"'!$X$129")) ->  | M200: =IF(B194="","",INDIRECT("'"&B194&"'!$Z$129")) ->  | N200: =IF(B194="","",INDIRECT("'"&B194&"'!$AA$129")) -> 
E201: =IF(B194="","",INDIRECT("'"&B194&"'!$A$131")) ->  | F201: =IF(B194="","",INDIRECT("'"&B194&"'!$K$167")) ->  | G201: =IF(B194="","",INDIRECT("'"&B194&"'!$L$167")) ->  | H201: =IF(B194="","",INDIRECT("'"&B194&"'!$H$167")) ->  | I201: =IF(B194="","",INDIRECT("'"&B194&"'!$I$167")) ->  | J201: =IF(B194="","",INDIRECT("'"&B194&"'!$R$167")) ->  | K201: =IF(B194="","",INDIRECT("'"&B194&"'!$U$167")) ->  | L201: =IF(B194="","",INDIRECT("'"&B194&"'!$X$167")) ->  | M201: =IF(B194="","",INDIRECT("'"&B194&"'!$Z$167")) ->  | N201: =IF(B194="","",INDIRECT("'"&B194&"'!$AA$167")) -> 
... 121 more rows

Sheet RECAP
C1: Date | D1: Informations personnelles | H1: Factures | J1: Salaires | N1: Détails | O1: Hôtel | U1: Repas | V1: Transport | Z1: Location
D2: Nom | E2: Prénom | F2: Instrument | G2: Fonction | H2: Cession | I2: Frais de Prod | J2: Net | K2: Brut | L2: Charges | M2: Total | N2: Coord | O2: S | P2: T | Q2: Nuits | R2: Total Nuitées | S2: Date arrivée | T2: Date Départ | U2: Ticket Resto | V2: Date arrivée | W2: Date Départ | X2: Coûts de transport | Y2: Trajet | Z2: Location Son | AA2: Location Studio
J3: (Vide) | K3: 0 € | L3: 0 € | M3: 0 € | R3: 0 €
J4: (Vide) | K4: 0 € | L4: 0 € | M4: 0 € | R4: 0 €
J5: (Vide) | K5: 0 € | L5: 0 € | M5: 0 € | R5: 0 €
J6: (Vide) | K6: 0 € | L6: 0 € | M6: 0 € | R6: 0 €
J7: (Vide) | K7: 0 € | L7: 0 € | M7: 0 € | R7: 0 €
J8: (Vide) | K8: 0 € | L8: 0 € | M8: 0 € | R8: 0 €
J9: (Vide) | K9: 0 € | L9: 0 € | M9: 0 € | R9: 0 €
J10: (Vide) | K10: 0 € | L10: 0 € | M10: 0 € | R10: 0 €
J11: (Vide) | K11: 0 € | L11: 0 € | M11: 0 € | R11: 0 €
J12: (Vide) | K12: 0 € | L12: 0 € | M12: 0 € | R12: 0 €
J13: (Vide) | K13: 0 € | L13: 0 € | M13: 0 € | R13: 0 €
J14: (Vide) | K14: 0 € | L14: 0 € | M14: 0 € | R14: 0 €
J15: (Vide) | K15: 0 € | L15: 0 € | M15: 0 € | R15: 0 €
J16: (Vide) | K16: 0 € | L16: 0 € | M16: 0 € | R16: 0 €
J17: (Vide) | K17: 0 € | L17: 0 € | M17: 0 € | R17: 0 €
J18: (Vide) | K18: 0 € | L18: 0 € | M18: 0 € | R18: 0 €
J19: (Vide) | K19: 0 € | L19: 0 € | M19: 0 € | R19: 0 €
J20: (Vide) | K20: 0 € | L20: 0 € | M20: 0 € | R20: 0 €
J21: (Vide) | K21: 0 € | L21: 0 € | M21: 0 € | R21: 0 €
J22: (Vide) | K22: 0 € | L22: 0 € | M22: 0 € | R22: 0 €
J23: (Vide) | K23: 0 € | L23: 0 € | M23: 0 € | R23: 0 €
J24: (Vide) | K24: 0 € | L24: 0 € | M24: 0 € | R24: 0 €
J25: (Vide) | K25: 0 € | L25: 0 € | M25: 0 € | R25: 0 €
J26: (Vide) | K26: 0 € | L26: 0 € | M26: 0 € | R26: 0 €
J27: (Vide) | K27: 0 € | L27: 0 € | M27: 0 € | R27: 0 €
J28: (Vide) | K28: 0 € | L28: 0 € | M28: 0 € | R28: 0 €
J29: (Vide) | K29: 0 € | L29: 0 € | M29: 0 € | R29: 0 €
J30: (Vide) | K30: 0 € | L30: 0 € | M30: 0 € | R30: 0 €
J31: (Vide) | K31: 0 € | L31: 0 € | M31: 0 € | R31: 0 €
J32: (Vide) | K32: 0 € | L32: 0 € | M32: 0 € | R32: 0 €
J33: (Vide) | K33: 0 € | L33: 0 € | M33: 0 € | R33: 0 €
J34: (Vide) | K34: 0 € | L34: 0 € | M34: 0 € | R34: 0 €
J35: (Vide) | K35: 0 € | L35: 0 € | M35: 0 € | R35: 0 €
J36: (Vide) | K36: 0 € | L36: 0 € | M36: 0 € | R36: 0 €
J37: (Vide) | K37: 0 € | L37: 0 € | M37: 0 € | R37: 0 €
J38: (Vide) | K38: 0 € | L38: 0 € | M38: 0 € | R38: 0 €
J39: (Vide) | K39: 0 € | L39: 0 € | M39: 0 € | R39: 0 €
J40: (Vide) | K40: 0 € | L40: 0 € | M40: 0 € | R40: 0 €
J41: (Vide) | K41: 0 € | L41: 0 € | M41: 0 € | R41: 0 €
J42: (Vide) | K42: 0 € | L42: 0 € | M42: 0 € | R42: 0 €
J43: (Vide) | K43: 0 € | L43: 0 € | M43: 0 € | R43: 0 €
J44: (Vide) | K44: 0 € | L44: 0 € | M44: 0 € | R44: 0 €
J45: (Vide) | K45: 0 € | L45: 0 € | M45: 0 € | R45: 0 €
J46: (Vide) | K46: 0 € | L46: 0 € | M46: 0 € | R46: 0 €
J47: (Vide) | K47: 0 € | L47: 0 € | M47: 0 € | R47: 0 €
J48: (Vide) | K48: 0 € | L48: 0 € | M48: 0 € | R48: 0 €
J49: (Vide) | K49: 0 € | L49: 0 € | M49: 0 € | R49: 0 €
J50: (Vide) | K50: 0 € | L50: 0 € | M50: 0 € | R50: 0 €
J51: (Vide) | K51: 0 € | L51: 0 € | M51: 0 € | R51: 0 €
J52: (Vide) | K52: 0 € | L52: 0 € | M52: 0 € | R52: 0 €
J53: (Vide) | K53: 0 € | L53: 0 € | M53: 0 € | R53: 0 €
J54: (Vide) | K54: 0 € | L54: 0 € | M54: 0 € | R54: 0 €
J55: (Vide) | K55: 0 € | L55: 0 € | M55: 0 € | R55: 0 €
J56: (Vide) | K56: 0 € | L56: 0 € | M56: 0 € | R56: 0 €
J57: (Vide) | K57: 0 € | L57: 0 € | M57: 0 € | R57: 0 €
J58: (Vide) | K58: 0 € | L58: 0 € | M58: 0 € | R58: 0 €
J59: (Vide) | K59: 0 € | L59: 0 € | M59: 0 € | R59: 0 €
J60: (Vide) | K60: 0 € | L60: 0 € | M60: 0 € | R60: 0 €
J61: (Vide) | K61: 0 € | L61: 0 € | M61: 0 € | R61: 0 €
J62: (Vide) | K62: 0 € | L62: 0 € | M62: 0 € | R62: 0 €
J63: (Vide) | K63: 0 € | L63: 0 € | M63: 0 € | R63: 0 €
J64: (Vide) | K64: 0 € | L64: 0 € | M64: 0 € | R64: 0 €
J65: (Vide) | K65: 0 € | L65: 0 € | M65: 0 € | R65: 0 €
J66: (Vide) | K66: 0 € | L66: 0 € | M66: 0 € | R66: 0 €
J67: (Vide) | K67: 0 € | L67: 0 € | M67: 0 € | R67: 0 €
J68: (Vide) | K68: 0 € | L68: 0 € | M68: 0 € | R68: 0 €
J69: (Vide) | K69: 0 € | L69: 0 € | M69: 0 € | R69: 0 €
J70: (Vide) | K70: 0 € | L70: 0 € | M70: 0 € | R70: 0 €
J71: (Vide) | K71: 0 € | L71: 0 € | M71: 0 € | R71: 0 €
J72: (Vide) | K72: 0 € | L72: 0 € | M72: 0 € | R72: 0 €
J73: (Vide) | K73: 0 € | L73: 0 € | M73: 0 € | R73: 0 €
J74: (Vide) | K74: 0 € | L74: 0 € | M74: 0 € | R74: 0 €
J75: (Vide) | K75: 0 € | L75: 0 € | M75: 0 € | R75: 0 €
J76: (Vide) | K76: 0 € | L76: 0 € | M76: 0 € | R76: 0 €
J77: (Vide) | K77: 0 € | L77: 0 € | M77: 0 € | R77: 0 €
J78: (Vide) | K78: 0 € | L78: 0 € | M78: 0 € | R78: 0 €
J79: (Vide) | K79: 0 € | L79: 0 € | M79: 0 € | R79: 0 €
J80: (Vide) | K80: 0 € | L80: 0 € | M80: 0 € | R80: 0 €
J81: (Vide) | K81: 0 € | L81: 0 € | M81: 0 € | R81: 0 €
J82: (Vide) | K82: 0 € | L82: 0 € | M82: 0 € | R82: 0 €
J83: (Vide) | K83: 0 € | L83: 0 € | M83: 0 € | R83: 0 €
J84: (Vide) | K84: 0 € | L84: 0 € | M84: 0 € | R84: 0 €
J85: (Vide) | K85: 0 € | L85: 0 € | M85: 0 € | R85: 0 €
J86: (Vide) | K86: 0 € | L86: 0 € | M86: 0 € | R86: 0 €
J87: (Vide) | K87: 0 € | L87: 0 € | M87: 0 € | R87: 0 €
J88: (Vide) | K88: 0 € | L88: 0 € | M88: 0 € | R88: 0 €
J89: (Vide) | K89: 0 € | L89: 0 € | M89: 0 € | R89: 0 €
J90: (Vide) | K90: 0 € | L90: 0 € | M90: 0 € | R90: 0 €
J91: (Vide) | K91: 0 € | L91: 0 € | M91: 0 € | R91: 0 €
J92: (Vide) | K92: 0 € | L92: 0 € | M92: 0 € | R92: 0 €
J93: (Vide) | K93: 0 € | L93: 0 € | M93: 0 € | R93: 0 €
J94: (Vide) | K94: 0 € | L94: 0 € | M94: 0 € | R94: 0 €
J95: (Vide) | K95: 0 € | L95: 0 € | M95: 0 € | R95: 0 €
J96: (Vide) | K96: 0 € | L96: 0 € | M96: 0 € | R96: 0 €
J97: (Vide) | K97: 0 € | L97: 0 € | M97: 0 € | R97: 0 €
J98: (Vide) | K98: 0 € | L98: 0 € | M98: 0 € | R98: 0 €
J99: (Vide) | K99: 0 € | L99: 0 € | M99: 0 € | R99: 0 €
J100: (Vide) | K100: 0 € | L100: 0 € | M100: 0 € | R100: 0 €
J101: (Vide) | K101: 0 € | L101: 0 € | M101: 0 € | R101: 0 €
J102: (Vide) | K102: 0 € | L102: 0 € | M102: 0 € | R102: 0 €
J103: (Vide) | K103: 0 € | L103: 0 € | M103: 0 € | R103: 0 €
J104: (Vide) | K104: 0 € | L104: 0 € | M104: 0 € | R104: 0 €
J105: (Vide) | K105: 0 € | L105: 0 € | M105: 0 € | R105: 0 €
J106: (Vide) | K106: 0 € | L106: 0 € | M106: 0 € | R106: 0 €
J107: (Vide) | K107: 0 € | L107: 0 € | M107: 0 € | R107: 0 €
J108: (Vide) | K108: 0 € | L108: 0 € | M108: 0 € | R108: 0 €
J109: (Vide) | K109: 0 € | L109: 0 € | M109: 0 € | R109: 0 €
J110: (Vide) | K110: 0 € | L110: 0 € | M110: 0 € | R110: 0 €
J111: (Vide) | K111: 0 € | L111: 0 € | M111: 0 € | R111: 0 €
J112: (Vide) | K112: 0 € | L112: 0 € | M112: 0 € | R112: 0 €
J113: (Vide) | K113: 0 € | L113: 0 € | M113: 0 € | R113: 0 €
J114: (Vide) | K114: 0 € | L114: 0 € | M114: 0 € | R114: 0 €
J115: (Vide) | K115: 0 € | L115: 0 € | M115: 0 € | R115: 0 €
J116: (Vide) | K116: 0 € | L116: 0 € | M116: 0 € | R116: 0 €
J117: (Vide) | K117: 0 € | L117: 0 € | M117: 0 € | R117: 0 €
J118: (Vide) | K118: 0 € | L118: 0 € | M118: 0 € | R118: 0 €
J119: (Vide) | K119: 0 € | L119: 0 € | M119: 0 € | R119: 0 €
J120: (Vide) | K120: 0 € | L120: 0 € | M120: 0 € | R120: 0 €
J121: (Vide) | K121: 0 € | L121: 0 € | M121: 0 € | R121: 0 €
J122: (Vide) | K122: 0 € | L122: 0 € | M122: 0 € | R122: 0 €
J123: (Vide) | K123: 0 € | L123: 0 € | M123: 0 € | R123: 0 €
J124: (Vide) | K124: 0 € | L124: 0 € | M124: 0 € | R124: 0 €
J125: (Vide) | K125: 0 € | L125: 0 € | M125: 0 € | R125: 0 €
J126: (Vide) | K126: 0 € | L126: 0 € | M126: 0 € | R126: 0 €
J127: (Vide) | K127: 0 € | L127: 0 € | M127: 0 € | R127: 0 €
J128: (Vide) | K128: 0 € | L128: 0 € | M128: 0 € | R128: 0 €
J129: (Vide) | K129: 0 € | L129: 0 € | M129: 0 € | R129: 0 €
J130: (Vide) | K130: 0 € | L130: 0 € | M130: 0 € | R130: 0 €
J131: (Vide) | K131: 0 € | L131: 0 € | M131: 0 € | R131: 0 €

Sheet A-Modèle
A1: DATE | F1: Ne pas toucher | G1: Remplir les cases | H1: Liste déroulante | I1: Contrat Fait | J1: Contrat Envoyé | K1: Contrat Reçu
A2: LIEU
D4: CHARGES | E4: =H30+I30+M30+R30+U30+X30+Z30+AA30+H54+I54+M54+R54+U54+X54+Z54+AA54+H78+I78+M78+R78+U78+X78+Z78+AA78+H102+I102+M102+R102+U102+X102+Z102+AA102+H111+I111+M111+R111+U111+X111+Z111+AA111+H120+I120+H129+I129+M120+M129+R120+R129+U120+U129+X129+X120+Z129+Z120+AA120+AA129+AA167+Z167+X167+U167+R167+M167+I167+H167 -> 0 € | G4: RECETTES | H4: =J4+J5+L4 -> 0 € | I4: Cession Ville | J4: 0 € | K4: Actions Q | L4: 0 €
I5: Sub' Ville | J5: 0 €
A8: Plateau 1 (Concert) | C8: Date | D8: Informations personnelles | H8: Factures | J8: Salaires | N8: Détails | O8: Hôtel | U8: Repas | V8: Transport | Z8: Location
D9: Nom | E9: Prénom | F9: Instrument | G9: Fonction | H9: Cession | I9: Frais de Prod | J9: Net | K9: Brut | L9: Charges | M9: Total | N9: Coord | O9: S | P9: T | Q9: Nuits | R9: Total Nuitées | S9: Date arrivée | T9: Date Départ | U9: Ticket Resto | V9: Date arrivée | W9: Date Départ | X9: Coûts de transport | Y9: Trajet | Z9: Location Son | AA9: Location Studio
J10: (Vide) | K10: =VLOOKUP(J10,NetBrut,2,0) -> 0 € | L10: =VLOOKUP(K10,BrutCharges,2,0) -> 0 € | M10: =K10+L10 -> 0 € | R10: =+IF(O10>0,O10*Q10*Masque!$H$3,P10*Q10*Masque!$H$4) -> 0 €
J11: (Vide) | K11: 0 € | L11: 0 € | M11: =K11+L11 -> 0 € | R11: =+IF(O11>0,O11*Q11*Masque!$H$3,P11*Q11*Masque!$H$4) -> 0 €
J12: (Vide) | K12: 0 € | L12: 0 € | M12: 0 € | R12: =+IF(O12>0,O12*Q12*Masque!$H$3,P12*Q12*Masque!$H$4) -> 0 €
J13: (Vide) | K13: 0 € | L13: 0 € | M13: 0 € | R13: =+IF(O13>0,O13*Q13*Masque!$H$3,P13*Q13*Masque!$H$4) -> 0 €
J14: (Vide) | K14: 0 € | L14: 0 € | M14: 0 € | R14: =+IF(O14>0,O14*Q14*Masque!$H$3,P14*Q14*Masque!$H$4) -> 0 €
J15: (Vide) | K15: 0 € | L15: 0 € | M15: 0 € | R15: =+IF(O15>0,O15*Q15*Masque!$H$3,P15*Q15*Masque!$H$4) -> 0 €
J16: (Vide) | K16: 0 € | L16: 0 € | M16: 0 € | R16: =+IF(O16>0,O16*Q16*Masque!$H$3,P16*Q16*Masque!$H$4) -> 0 €
J17: (Vide) | K17: 0 € | L17: 0 € | M17: 0 € | R17: =+IF(O17>0,O17*Q17*Masque!$H$3,P17*Q17*Masque!$H$4) -> 0 €
J18: (Vide) | K18: 0 € | L18: 0 € | M18: 0 € | R18: =+IF(O18>0,O18*Q18*Masque!$H$3,P18*Q18*Masque!$H$4) -> 0 €
J19: (Vide) | K19: 0 € | L19: 0 € | M19: 0 € | R19: =+IF(O19>0,O19*Q19*Masque!$H$3,P19*Q19*Masque!$H$4) -> 0 €
J20: (Vide) | K20: 0 € | L20: 0 € | M20: 0 € | R20: =+IF(O20>0,O20*Q20*Masque!$H$3,P20*Q20*Masque!$H$4) -> 0 €
J21: (Vide) | K21: 0 € | L21: 0 € | M21: 0 € | R21: =+IF(O21>0,O21*Q21*Masque!$H$3,P21*Q21*Masque!$H$4) -> 0 €
J22: (Vide) | K22: 0 € | L22: 0 € | M22: 0 € | R22: =+IF(O22>0,O22*Q22*Masque!$H$3,P22*Q22*Masque!$H$4) -> 0 €
J23: (Vide) | K23: 0 € | L23: 0 € | M23: 0 € | R23: =+IF(O23>0,O23*Q23*Masque!$H$3,P23*Q23*Masque!$H$4) -> 0 €
J24: (Vide) | K24: 0 € | L24: 0 € | M24: 0 € | R24: =+IF(O24>0,O24*Q24*Masque!$H$3,P24*Q24*Masque!$H$4) -> 0 €
J25: (Vide) | K25: 0 € | L25: 0 € | M25: 0 € | R25: =+IF(O25>0,O25*Q25*Masque!$H$3,P25*Q25*Masque!$H$4) -> 0 €
J26: (Vide) | K26: 0 € | L26: 0 € | M26: 0 € | R26: =+IF(O26>0,O26*Q26*Masque!$H$3,P26*Q26*Masque!$H$4) -> 0 €
J27: (Vide) | K27: 0 € | L27: 0 € | M27: 0 € | R27: =+IF(O27>0,O27*Q27*Masque!$H$3,P27*Q27*Masque!$H$4) -> 0 €
J28: (Vide) | K28: 0 € | L28: 0 € | M28: 0 € | R28: =+IF(O28>0,O28*Q28*Masque!$H$3,P28*Q28*Masque!$H$4) -> 0 €
J29: (Vide) | K29: 0 € | L29: =VLOOKUP(K29,BrutCharges,2,0) -> 0 € | M29: =K29+L29 -> 0 € | R29: =+IF(O29>0,O29*Q29*Masque!$H$3,P29*Q29*Masque!$H$4) -> 0 €
G30: Total | H30: =SUM(H10:H29) -> 0 € | I30: =SUM(I10:I29) -> 0 € | K30: =SUM(K10:K29) -> 0 € | L30: =SUM(L10:L29) -> 0 € | M30: =SUM(M10:M29) -> 0 € | O30: =SUM(O10:O29) -> 0 | P30: =SUM(P10:P29) -> 0 | R30: =SUM(R10:R29) -> 0 € | T30: Total | U30: =SUM(U10:U29)*14 -> 0 | X30: =SUM(X10:X29) -> 0 | Z30: =SUM(Z10:Z29) -> 0 | AA30: =SUM(AA10:AA29) -> 0
A32: Plateau 2 (Concert) | C32: Date | D32: Informations personnelles | H32: Factures | J32: Salaires | N32: Détails | O32: Hôtel | U32: Repas | V32: Transport | Z32: Location
D33: Nom | E33: Prénom | F33: Instrument | G33: Fonction | H33: Cession | I33: Frais de Prod | J33: Net | K33: Brut | L33: Charges | M33: Total | N33: Coord | O33: S | P33: T | Q33: Nuits | R33: Total Nuitées | S33: Date arrivée | T33: Date Départ | U33: Ticket Resto | V33: Date arrivée | W33: Date Départ | X33: Coûts de transport | Y33: Trajet | Z33: Location Son | AA33: Location Studio
J34: (Vide) | K34: =VLOOKUP(J34,NetBrut,2,0) -> 0 € | L34: =VLOOKUP(K34,BrutCharges,2,0) -> 0 € | M34: =K34+L34 -> 0 € | R34: =+IF(O34>0,O34*Q34*Masque!$H$3,P34*Q34*Masque!$H$4) -> 0 €
J35: (Vide) | K35: 0 € | L35: 0 € | M35: =K35+L35 -> 0 € | R35: =+IF(O35>0,O35*Q35*Masque!$H$3,P35*Q35*Masque!$H$4) -> 0 €
J36: (Vide) | K36: 0 € | L36: 0 € | M36: 0 € | R36: =+IF(O36>0,O36*Q36*Masque!$H$3,P36*Q36*Masque!$H$4) -> 0 €
J37: (Vide) | K37: 0 € | L37: 0 € | M37: 0 € | R37: =+IF(O37>0,O37*Q37*Masque!$H$3,P37*Q37*Masque!$H$4) -> 0 €
J38: (Vide) | K38: 0 € | L38: 0 € | M38: 0 € | R38: =+IF(O38>0,O38*Q38*Masque!$H$3,P38*Q38*Masque!$H$4) -> 0 €
J39: (Vide) | K39: 0 € | L39: 0 € | M39: 0 € | R39: =+IF(O39>0,O39*Q39*Masque!$H$3,P39*Q39*Masque!$H$4) -> 0 €
J40: (Vide) | K40: 0 € | L40: 0 € | M40: 0 € | R40: =+IF(O40>0,O40*Q40*Masque!$H$3,P40*Q40*Masque!$H$4) -> 0 €
J41: (Vide) | K41: 0 € | L41: 0 € | M41: 0 € | R41: =+IF(O41>0,O41*Q41*Masque!$H$3,P41*Q41*Masque!$H$4) -> 0 €
J42: (Vide) | K42: 0 € | L42: 0 € | M42: 0 € | R42: =+IF(O42>0,O42*Q42*Masque!$H$3,P42*Q42*Masque!$H$4) -> 0 €
J43: (Vide) | K43: 0 € | L43: 0 € | M43: 0 € | R43: =+IF(O43>0,O43*Q43*Masque!$H$3,P43*Q43*Masque!$H$4) -> 0 €
J44: (Vide) | K44: 0 € | L44: 0 € | M44: 0 € | R44: =+IF(O44>0,O44*Q44*Masque!$H$3,P44*Q44*Masque!$H$4) -> 0 €
J45: (Vide) | K45: 0 € | L45: 0 € | M45: 0 € | R45: =+IF(O45>0,O45*Q45*Masque!$H$3,P45*Q45*Masque!$H$4) -> 0 €
J46: (Vide) | K46: 0 € | L46: 0 € | M46: 0 € | R46: =+IF(O46>0,O46*Q46*Masque!$H$3,P46*Q46*Masque!$H$4) -> 0 €
J47: (Vide) | K47: 0 € | L47: 0 € | M47: 0 € | R47: =+IF(O47>0,O47*Q47*Masque!$H$3,P47*Q47*Masque!$H$4) -> 0 €
J48: (Vide) | K48: 0 € | L48: 0 € | M48: 0 € | R48: =+IF(O48>0,O48*Q48*Masque!$H$3,P48*Q48*Masque!$H$4) -> 0 €
J49: (Vide) | K49: 0 € | L49: 0 € | M49: 0 € | R49: =+IF(O49>0,O49*Q49*Masque!$H$3,P49*Q49*Masque!$H$4) -> 0 €
J50: (Vide) | K50: 0 € | L50: 0 € | M50: 0 € | R50: =+IF(O50>0,O50*Q50*Masque!$H$3,P50*Q50*Masque!$H$4) -> 0 €
J51: (Vide) | K51: 0 € | L51: 0 € | M51: 0 € | R51: =+IF(O51>0,O51*Q51*Masque!$H$3,P51*Q51*Masque!$H$4) -> 0 €
J52: (Vide) | K52: 0 € | L52: 0 € | M52: 0 € | R52: =+IF(O52>0,O52*Q52*Masque!$H$3,P52*Q52*Masque!$H$4) -> 0 €
J53: (Vide) | K53: 0 € | L53: 0 € | M53: 0 € | R53: =+IF(O53>0,O53*Q53*Masque!$H$3,P53*Q53*Masque!$H$4) -> 0 €
G54: Total | H54: =SUM(H34:H53) -> 0 € | I54: =SUM(I34:I53) -> 0 € | K54: =SUM(K34:K53) -> 0 € | L54: =SUM(L34:L53) -> 0 € | M54: =SUM(M34:M53) -> 0 € | O54: =SUM(O34:O53) -> 0 | P54: =SUM(P34:P53) -> 0 | R54: =SUM(R34:R53) -> 0 € | T54: Total | U54: =SUM(U34:U53)*14 -> 0 | X54: =SUM(X34:X53) -> 0 | Z54: =SUM(Z34:Z53) -> 0 | AA54: =SUM(AA34:AA53) -> 0
A56: Plateau 1 (Résidence) | C56: Date | D56: Informations personnelles | H56: Factures | J56: Salaires | N56: Détails | O56: Hôtel | U56: Repas | V56: Transport | Z56: Location
D57: Nom | E57: Prénom | F57: Instrument | G57: Fonction | H57: Cession | I57: Frais de Prod | J57: Net | K57: Brut | L57: Charges | M57: Total | N57: Coord | O57: S | P57: T | Q57: Nuits | R57: Total Nuitées | S57: Date arrivée | T57: Date Départ | U57: Ticket Resto | V57: Date arrivée | W57: Date Départ | X57: Coûts de transport | Y57: Trajet | Z57: Location Son | AA57: Location Studio
J58: (Vide) | K58: =VLOOKUP(J58,NetBrut,2,0) -> 0 € | L58: =VLOOKUP(K58,BrutCharges,2,0) -> 0 € | M58: =K58+L58 -> 0 € | R58: =+IF(O58>0,O58*Q58*Masque!$H$3,P58*Q58*Masque!$H$4) -> 0 €
J59: (Vide) | K59: 0 € | L59: 0 € | M59: =K59+L59 -> 0 € | R59: =+IF(O59>0,O59*Q59*Masque!$H$3,P59*Q59*Masque!$H$4) -> 0 €
J60: (Vide) | K60: 0 € | L60: 0 € | M60: 0 € | R60: =+IF(O60>0,O60*Q60*Masque!$H$3,P60*Q60*Masque!$H$4) -> 0 €
J61: (Vide) | K61: 0 € | L61: 0 € | M61: 0 € | R61: =+IF(O61>0,O61*Q61*Masque!$H$3,P61*Q61*Masque!$H$4) -> 0 €
J62: (Vide) | K62: 0 € | L62: 0 € | M62: 0 € | R62: =+IF(O62>0,O62*Q62*Masque!$H$3,P62*Q62*Masque!$H$4) -> 0 €
J63: (Vide) | K63: 0 € | L63: 0 € | M63: 0 € | R63: =+IF(O63>0,O63*Q63*Masque!$H$3,P63*Q63*Masque!$H$4) -> 0 €
J64: (Vide) | K64: 0 € | L64: 0 € | M64: 0 € | R64: =+IF(O64>0,O64*Q64*Masque!$H$3,P64*Q64*Masque!$H$4) -> 0 €
J65: (Vide) | K65: 0 € | L65: 0 € | M65: 0 € | R65: =+IF(O65>0,O65*Q65*Masque!$H$3,P65*Q65*Masque!$H$4) -> 0 €
J66: (Vide) | K66: 0 € | L66: 0 € | M66: 0 € | R66: =+IF(O66>0,O66*Q66*Masque!$H$3,P66*Q66*Masque!$H$4) -> 0 €
J67: (Vide) | K67: 0 € | L67: 0 € | M67: 0 € | R67: =+IF(O67>0,O67*Q67*Masque!$H$3,P67*Q67*Masque!$H$4) -> 0 €
J68: (Vide) | K68: 0 € | L68: 0 € | M68: 0 € | R68: =+IF(O68>0,O68*Q68*Masque!$H$3,P68*Q68*Masque!$H$4) -> 0 €
J69: (Vide) | K69: 0 € | L69: 0 € | M69: 0 € | R69: =+IF(O69>0,O69*Q69*Masque!$H$3,P69*Q69*Masque!$H$4) -> 0 €
J70: (Vide) | K70: 0 € | L70: 0 € | M70: 0 € | R70: =+IF(O70>0,O70*Q70*Masque!$H$3,P70*Q70*Masque!$H$4) -> 0 €
J71: (Vide) | K71: 0 € | L71: 0 € | M71: 0 € | R71: =+IF(O71>0,O71*Q71*Masque!$H$3,P71*Q71*Masque!$H$4) -> 0 €
J72: (Vide) | K72: 0 € | L72: 0 € | M72: 0 € | R72: =+IF(O72>0,O72*Q72*Masque!$H$3,P72*Q72*Masque!$H$4) -> 0 €
J73: (Vide) | K73: 0 € | L73: 0 € | M73: 0 € | R73: =+IF(O73>0,O73*Q73*Masque!$H$3,P73*Q73*Masque!$H$4) -> 0 €
J74: (Vide) | K74: 0 € | L74: 0 € | M74: 0 € | R74: =+IF(O74>0,O74*Q74*Masque!$H$3,P74*Q74*Masque!$H$4) -> 0 €
J75: (Vide) | K75: 0 € | L75: 0 € | M75: 0 € | R75: =+IF(O75>0,O75*Q75*Masque!$H$3,P75*Q75*Masque!$H$4) -> 0 €
J76: (Vide) | K76: 0 € | L76: 0 € | M76: 0 € | R76: =+IF(O76>0,O76*Q76*Masque!$H$3,P76*Q76*Masque!$H$4) -> 0 €
J77: (Vide) | K77: 0 € | L77: 0 € | M77: 0 € | R77: =+IF(O77>0,O77*Q77*Masque!$H$3,P77*Q77*Masque!$H$4) -> 0 €
G78: Total | H78: =SUM(H58:H77) -> 0 € | I78: =SUM(I58:I77) -> 0 € | K78: =SUM(K58:K77) -> 0 € | L78: =SUM(L58:L77) -> 0 € | M78: =SUM(M58:M77) -> 0 € | O78: =SUM(O58:O77) -> 0 | P78: =SUM(P58:P77) -> 0 | R78: =SUM(R58:R77) -> 0 € | T78: Total | U78: =SUM(U58:U77)*14 -> 0 | X78: =SUM(X58:X77) -> 0 | Z78: =SUM(Z58:Z77) -> 0 | AA78: =SUM(AA58:AA77) -> 0
A80: Plateau 2 (Résidence) | C80: Date | D80: Informations personnelles | H80: Factures | J80: Salaires | N80: Détails | O80: Hôtel | U80: Repas | V80: Transport | Z80: Location
D81: Nom | E81: Prénom | F81: Instrument | G81: Fonction | H81: Cession | I81: Frais de Prod | J81: Net | K81: Brut | L81: Charges | M81: Total | N81: Coord | O81: S | P81: T | Q81: Nuits | R81: Total Nuitées | S81: Date arrivée | T81: Date Départ | U81: Ticket Resto | V81: Date arrivée | W81: Date Départ | X81: Coûts de transport | Y81: Trajet | Z81: Location Son | AA81: Location Studio
J82: (Vide) | K82: =VLOOKUP(J82,NetBrut,2,0) -> 0 € | L82: =VLOOKUP(K82,BrutCharges,2,0) -> 0 € | M82: =K82+L82 -> 0 € | R82: =+IF(O82>0,O82*Q82*Masque!$H$3,P82*Q82*Masque!$H$4) -> 0 €
J83: (Vide) | K83: 0 € | L83: 0 € | M83: =K83+L83 -> 0 € | R83: =+IF(O83>0,O83*Q83*Masque!$H$3,P83*Q83*Masque!$H$4) -> 0 €
J84: (Vide) | K84: 0 € | L84: 0 € | M84: 0 € | R84: =+IF(O84>0,O84*Q84*Masque!$H$3,P84*Q84*Masque!$H$4) -> 0 €
J85: (Vide) | K85: 0 € | L85: 0 € | M85: 0 € | R85: =+IF(O85>0,O85*Q85*Masque!$H$3,P85*Q85*Masque!$H$4) -> 0 €
J86: (Vide) | K86: 0 € | L86: 0 € | M86: 0 € | R86: =+IF(O86>0,O86*Q86*Masque!$H$3,P86*Q86*Masque!$H$4) -> 0 €
J87: (Vide) | K87: 0 € | L87: 0 € | M87: 0 € | R87: =+IF(O87>0,O87*Q87*Masque!$H$3,P87*Q87*Masque!$H$4) -> 0 €
J88: (Vide) | K88: 0 € | L88: 0 € | M88: 0 € | R88: =+IF(O88>0,O88*Q88*Masque!$H$3,P88*Q88*Masque!$H$4) -> 0 €
J89: (Vide) | K89: 0 € | L89: 0 € | M89: 0 € | R89: =+IF(O89>0,O89*Q89*Masque!$H$3,P89*Q89*Masque!$H$4) -> 0 €
J90: (Vide) | K90: 0 € | L90: 0 € | M90: 0 € | R90: =+IF(O90>0,O90*Q90*Masque!$H$3,P90*Q90*Masque!$H$4) -> 0 €
J91: (Vide) | K91: 0 € | L91: 0 € | M91: 0 € | R91: =+IF(O91>0,O91*Q91*Masque!$H$3,P91*Q91*Masque!$H$4) -> 0 €
J92: (Vide) | K92: 0 € | L92: 0 € | M92: 0 € | R92: =+IF(O92>0,O92*Q92*Masque!$H$3,P92*Q92*Masque!$H$4) -> 0 €
J93: (Vide) | K93: 0 € | L93: 0 € | M93: 0 € | R93: =+IF(O93>0,O93*Q93*Masque!$H$3,P93*Q93*Masque!$H$4) -> 0 €
J94: (Vide) | K94: 0 € | L94: 0 € | M94: 0 € | R94: =+IF(O94>0,O94*Q94*Masque!$H$3,P94*Q94*Masque!$H$4) -> 0 €
J95: (Vide) | K95: 0 € | L95: 0 € | M95: 0 € | R95: =+IF(O95>0,O95*Q95*Masque!$H$3,P95*Q95*Masque!$H$4) -> 0 €
J96: (Vide) | K96: 0 € | L96: 0 € | M96: 0 € | R96: =+IF(O96>0,O96*Q96*Masque!$H$3,P96*Q96*Masque!$H$4) -> 0 €
J97: (Vide) | K97: 0 € | L97: 0 € | M97: 0 € | R97: =+IF(O97>0,O97*Q97*Masque!$H$3,P97*Q97*Masque!$H$4) -> 0 €
J98: (Vide) | K98: 0 € | L98: 0 € | M98: 0 € | R98: =+IF(O98>0,O98*Q98*Masque!$H$3,P98*Q98*Masque!$H$4) -> 0 €
J99: (Vide) | K99: 0 € | L99: 0 € | M99: 0 € | R99: =+IF(O99>0,O99*Q99*Masque!$H$3,P99*Q99*Masque!$H$4) -> 0 €
J100: (Vide) | K100: 0 € | L100: 0 € | M100: 0 € | R100: =+IF(O100>0,O100*Q100*Masque!$H$3,P100*Q100*Masque!$H$4) -> 0 €
J101: (Vide) | K101: 0 € | L101: 0 € | M101: 0 € | R101: =+IF(O101>0,O101*Q101*Masque!$H$3,P101*Q101*Masque!$H$4) -> 0 €
G102: Total | H102: =SUM(H82:H101) -> 0 € | I102: =SUM(I82:I101) -> 0 € | K102: =SUM(K82:K101) -> 0 € | L102: =SUM(L82:L101) -> 0 € | M102: =SUM(M82:M101) -> 0 € | O102: =SUM(O82:O101) -> 0 | P102: =SUM(P82:P101) -> 0 | R102: =SUM(R82:R101) -> 0 € | T102: Total | U102: =SUM(U82:U101)*14 -> 0 | X102: =SUM(X82:X101) -> 0 | Z102: =SUM(Z82:Z101) -> 0 | AA102: =SUM(AA82:AA101) -> 0
A104: Techniciens Plateau 1 | C104: Date | D104: Informations personnelles | H104: Factures | J104: Salaires | N104: Détails | O104: Hôtel | U104: Repas | V104: Transport | Z104: Location
D105: Nom | E105: Prénom | F105: Instrument | G105: Fonction | H105: Facture | I105: Frais de Prod | J105: Net | K105: Brut | L105: Charges | M105: Total | N105: Coord | O105: S | P105: T | Q105: Nuits | R105: Total Nuitées | S105: Date arrivée | T105: Date Départ | U105: Ticket Resto | V105: Date arrivée | W105: Date Départ | X105: Coûts de transport | Y105: Trajet | Z105: Location Son | AA105: Location Studio
J106: (Vide) | K106: =VLOOKUP(J106,NetBrut,2,0) -> 0 € | L106: =VLOOKUP(K106,BrutCharges,2,0) -> 0 € | M106: 0 € | R106: =+IF(O106>0,O106*Q106*Masque!$H$3,P106*Q106*Masque!$H$4) -> 0 €
J107: (Vide) | K107: 0 € | L107: 0 € | M107: 0 € | R107: =+IF(O107>0,O107*Q107*Masque!$H$3,P107*Q107*Masque!$H$4) -> 0 €
J108: (Vide) | K108: 0 € | L108: 0 € | M108: 0 € | R108: =+IF(O108>0,O108*Q108*Masque!$H$3,P108*Q108*Masque!$H$4) -> 0 €
J109: (Vide) | K109: 0 € | L109: 0 € | M109: 0 € | R109: =+IF(O109>0,O109*Q109*Masque!$H$3,P109*Q109*Masque!$H$4) -> 0 €
J110: (Vide) | K110: 0 € | L110: 0 € | M110: 0 € | R110: =+IF(O110>0,O110*Q110*Masque!$H$3,P110*Q110*Masque!$H$4) -> 0 €
G111: Total | H111: =SUM(H106:H110) -> 0 € | I111: =SUM(I106:I110) -> 0 € | K111: =SUM(K106:K110) -> 0 € | L111: =SUM(L106:L110) -> 0 € | M111: =SUM(M106:M110) -> 0 € | O111: =SUM(O106:O110) -> 0 | P111: =SUM(P106:P110) -> 0 | R111: =SUM(R106:R110) -> 0 € | T111: Total | U111: =SUM(U106:U110)*14 -> 0 | X111: =SUM(X106:X110) -> 0 | Z111: =SUM(Z106:Z110) -> 0 | AA111: =SUM(AA106:AA110) -> 0
A113: Techniciens Plateau 2 | C113: Date | D113: Informations personnelles | H113: Factures | J113: Salaires | N113: Détails | O113: Hôtel | U113: Repas | V113: Transport | Z113: Location
D114: Nom | E114: Prénom | F114: Instrument | G114: Fonction | H114: Facture | I114: Frais de Prod | J114: Net | K114: Brut | L114: Charges | M114: Total | N114: Coord | O114: S | P114: T | Q114: Nuits | R114: Total Nuitées | S114: Date arrivée | T114: Date Départ | U114: Ticket Resto | V114: Date arrivée | W114: Date Départ | X114: Coûts de transport | Y114: Trajet | Z114: Location Son | AA114: Location Studio
J115: (Vide) | K115: =VLOOKUP(J115,NetBrut,2,0) -> 0 € | L115: =VLOOKUP(K115,BrutCharges,2,0) -> 0 € | M115: =K115+L115 -> 0 € | R115: =+IF(O115>0,O115*Q115*Masque!$H$3,P115*Q115*Masque!$H$4) -> 0 €
J116: (Vide) | K116: 0 € | L116: 0 € | M116: 0 € | R116: =+IF(O116>0,O116*Q116*Masque!$H$3,P116*Q116*Masque!$H$4) -> 0 €
J117: (Vide) | K117: 0 € | L117: 0 € | M117: 0 € | R117: =+IF(O117>0,O117*Q117*Masque!$H$3,P117*Q117*Masque!$H$4) -> 0 €
J118: (Vide) | K118: 0 € | L118: 0 € | M118: 0 € | R118: =+IF(O118>0,O118*Q118*Masque!$H$3,P118*Q118*Masque!$H$4) -> 0 €
J119: (Vide) | K119: 0 € | L119: 0 € | M119: 0 € | R119: =+IF(O119>0,O119*Q119*Masque!$H$3,P119*Q119*Masque!$H$4) -> 0 €
G120: Total | H120: =SUM(H115:H119) -> 0 € | I120: =SUM(I115:I119) -> 0 € | K120: =SUM(K115:K119) -> 0 € | L120: =SUM(L115:L119) -> 0 € | M120: =SUM(M115:M119) -> 0 € | O120: =SUM(O115:O119) -> 0 | P120: =SUM(P115:P119) -> 0 | R120: =SUM(R115:R119) -> 0 € | T120: Total | U120: =SUM(U115:U119)*14 -> 0 | X120: =SUM(X115:X119) -> 0 | Z120: =SUM(Z115:Z119) -> 0 | AA120: =SUM(AA115:AA119) -> 0
A122: Techniciens Africolor | C122: Date | D122: Informations personnelles | H122: Factures | J122: Salaires | N122: Détails | O122: Hôtel | U122: Repas | V122: Transport | Z122: Location
D123: Nom | E123: Prénom | F123: Instrument | G123: Fonction | H123: Facture | I123: Frais de Prod | J123: Net | K123: Brut | L123: Charges | M123: Total | N123: Coord | O123: S | P123: T | Q123: Nuits | R123: Total Nuitées | S123: Date arrivée | T123: Date Départ | U123: Ticket Resto | V123: Date arrivée | W123: Date Départ | X123: Coûts de transport | Y123: Trajet | Z123: Location Son | AA123: Location Studio
J124: (Vide) | K124: 0 € | L124: 0 € | M124: 0 € | R124: =+IF(O124>0,O124*Q124*Masque!$H$3,P124*Q124*Masque!$H$4) -> 0 €
J125: (Vide) | K125: 0 € | L125: 0 € | M125: 0 € | R125: =+IF(O125>0,O125*Q125*Masque!$H$3,P125*Q125*Masque!$H$4) -> 0 €
J126: (Vide) | K126: 0 € | L126: 0 € | M126: 0 € | R126: =+IF(O126>0,O126*Q126*Masque!$H$3,P126*Q126*Masque!$H$4) -> 0 €
J127: (Vide) | K127: 0 € | L127: 0 € | M127: 0 € | R127: =+IF(O127>0,O127*Q127*Masque!$H$3,P127*Q127*Masque!$H$4) -> 0 €
J128: (Vide) | K128: 0 € | L128: 0 € | M128: 0 € | R128: =+IF(O128>0,O128*Q128*Masque!$H$3,P128*Q128*Masque!$H$4) -> 0 €
G129: Total | H129: =SUM(H124:H128) -> 0 € | I129: =SUM(I124:I128) -> 0 € | K129: =SUM(K124:K128) -> 0 € | L129: =SUM(L124:L128) -> 0 € | M129: =SUM(M124:M128) -> 0 € | O129: =SUM(O124:O128) -> 0 | P129: =SUM(P124:P128) -> 0 | R129: =SUM(R124:R128) -> 0 € | T129: Total | U129: =SUM(U124:U128)*14 -> 0 | X129: =SUM(X124:X128) -> 0 | Z129: =SUM(Z124:Z128) -> 0 | AA129: =SUM(AA124:AA128) -> 0
A131: Actions Culturelles | C131: Date | D131: Informations personnelles | H131: Factures | J131: Salaires | N131: Détails | O131: Hôtel | U131: Repas | V131: Transport | Z131: Location
D132: Nom | E132: Prénom | F132: Instrument | G132: Fonction | H132: Facture | I132: Frais de Prod | J132: Net | K132: Brut | L132: Charges | M132: Total | N132: Coord | O132: S | P132: T | Q132: Nuits | R132: Total Nuitées | S132: Date arrivée | T132: Date Départ | U132: Ticket Resto | V132: Date arrivée | W132: Date Départ | X132: Coûts de transport | Y132: Trajet | Z132: Location Son | AA132: Location Studio
J133: (Vide) | K133: 0 € | L133: 0 € | M133: 0 € | R133: =+IF(O133>0,O133*Q133*Masque!$H$3,P133*Q133*Masque!$H$4) -> 0 €
J134: (Vide) | K134: 0 € | L134: 0 € | M134: 0 € | R134: =+IF(O134>0,O134*Q134*Masque!$H$3,P134*Q134*Masque!$H$4) -> 0 €
J135: (Vide) | K135: 0 € | L135: 0 € | M135: 0 € | R135: =+IF(O135>0,O135*Q135*Masque!$H$3,P135*Q135*Masque!$H$4) -> 0 €
J136: (Vide) | K136: 0 € | L136: 0 € | M136: 0 € | R136: =+IF(O136>0,O136*Q136*Masque!$H$3,P136*Q136*Masque!$H$4) -> 0 €
J137: (Vide) | K137: =VLOOKUP(J137,NetBrut,2,0) -> 0 € | L137: =VLOOKUP(K137,BrutCharges,2,0) -> 0 € | M137: =K137+L137 -> 0 € | R137: =+IF(O137>0,O137*Q137*Masque!$H$3,P137*Q137*Masque!$H$4) -> 0 €
J138: (Vide) | K138: 0 € | L138: 0 € | M138: 0 € | R138: =+IF(O138>0,O138*Q138*Masque!$H$3,P138*Q138*Masque!$H$4) -> 0 €
J139: (Vide) | K139: 0 € | L139: 0 € | M139: 0 € | R139: =+IF(O139>0,O139*Q139*Masque!$H$3,P139*Q139*Masque!$H$4) -> 0 €
J140: (Vide) | K140: 0 € | L140: 0 € | M140: 0 € | R140: =+IF(O140>0,O140*Q140*Masque!$H$3,P140*Q140*Masque!$H$4) -> 0 €
J141: (Vide) | K141: 0 € | L141: 0 € | M141: 0 € | R141: =+IF(O141>0,O141*Q141*Masque!$H$3,P141*Q141*Masque!$H$4) -> 0 €
J142: (Vide) | K142: 0 € | L142: 0 € | M142: 0 € | R142: =+IF(O142>0,O142*Q142*Masque!$H$3,P142*Q142*Masque!$H$4) -> 0 €
J143: (Vide) | K143: 0 € | L143: 0 € | M143: 0 € | R143: =+IF(O143>0,O143*Q143*Masque!$H$3,P143*Q143*Masque!$H$4) -> 0 €
J144: (Vide) | K144: 0 € | L144: 0 € | M144: 0 € | R144: =+IF(O144>0,O144*Q144*Masque!$H$3,P144*Q144*Masque!$H$4) -> 0 €
J145: (Vide) | K145: 0 € | L145: 0 € | M145: 0 € | R145: =+IF(O145>0,O145*Q145*Masque!$H$3,P145*Q145*Masque!$H$4) -> 0 €
J146: (Vide) | K146: 0 € | L146: 0 € | M146: 0 € | R146: =+IF(O146>0,O146*Q146*Masque!$H$3,P146*Q146*Masque!$H$4) -> 0 €
J147: (Vide) | K147: 0 € | L147: 0 € | M147: 0 € | R147: =+IF(O147>0,O147*Q147*Masque!$H$3,P147*Q147*Masque!$H$4) -> 0 €
J148: (Vide) | K148: 0 € | L148: 0 € | M148: 0 € | R148: =+IF(O148>0,O148*Q148*Masque!$H$3,P148*Q148*Masque!$H$4) -> 0 €
J149: (Vide) | K149: 0 € | L149: 0 € | M149: 0 € | R149: =+IF(O149>0,O149*Q149*Masque!$H$3,P149*Q149*Masque!$H$4) -> 0 €
J150: (Vide) | K150: 0 € | L150: 0 € | M150: =K150+L150 -> 0 € | R150: =+IF(O150>0,O150*Q150*Masque!$H$3,P150*Q150*Masque!$H$4) -> 0 €
J151: (Vide) | K151: 0 € | L151: 0 € | M151: 0 € | R151: =+IF(O151>0,O151*Q151*Masque!$H$3,P151*Q151*Masque!$H$4) -> 0 €
J152: (Vide) | K152: 0 € | L152: 0 € | M152: 0 € | R152: =+IF(O152>0,O152*Q152*Masque!$H$3,P152*Q152*Masque!$H$4) -> 0 €
J153: (Vide) | K153: 0 € | L153: 0 € | M153: 0 € | R153: =+IF(O153>0,O153*Q153*Masque!$H$3,P153*Q153*Masque!$H$4) -> 0 €
J154: (Vide) | K154: 0 € | L154: 0 € | M154: 0 € | R154: =+IF(O154>0,O154*Q154*Masque!$H$3,P154*Q154*Masque!$H$4) -> 0 €
J155: (Vide) | K155: 0 € | L155: 0 € | M155: 0 € | R155: =+IF(O155>0,O155*Q155*Masque!$H$3,P155*Q155*Masque!$H$4) -> 0 €
J156: (Vide) | K156: 0 € | L156: 0 € | M156: 0 € | R156: =+IF(O156>0,O156*Q156*Masque!$H$3,P156*Q156*Masque!$H$4) -> 0 €
J157: (Vide) | K157: 0 € | L157: 0 € | M157: 0 € | R157: =+IF(O157>0,O157*Q157*Masque!$H$3,P157*Q157*Masque!$H$4) -> 0 €
J158: (Vide) | K158: 0 € | L158: 0 € | M158: 0 € | R158: =+IF(O158>0,O158*Q158*Masque!$H$3,P158*Q158*Masque!$H$4) -> 0 €
J159: (Vide) | K159: 0 € | L159: 0 € | M159: 0 € | R159: =+IF(O159>0,O159*Q159*Masque!$H$3,P159*Q159*Masque!$H$4) -> 0 €
J160: (Vide) | K160: 0 € | L160: 0 € | M160: 0 € | R160: =+IF(O160>0,O160*Q160*Masque!$H$3,P160*Q160*Masque!$H$4) -> 0 €
J161: (Vide) | K161: 0 € | L161: 0 € | M161: 0 € | R161: =+IF(O161>0,O161*Q161*Masque!$H$3,P161*Q161*Masque!$H$4) -> 0 €
J162: (Vide) | K162: 0 € | L162: 0 € | M162: 0 € | R162: =+IF(O162>0,O162*Q162*Masque!$H$3,P162*Q162*Masque!$H$4) -> 0 €
J163: (Vide) | K163: 0 € | L163: 0 € | M163: 0 € | R163: =+IF(O163>0,O163*Q163*Masque!$H$3,P163*Q163*Masque!$H$4) -> 0 €
J164: (Vide) | K164: 0 € | L164: 0 € | M164: 0 € | R164: =+IF(O164>0,O164*Q164*Masque!$H$3,P164*Q164*Masque!$H$4) -> 0 €
J165: (Vide) | K165: 0 € | L165: 0 € | M165: 0 € | R165: =+IF(O165>0,O165*Q165*Masque!$H$3,P165*Q165*Masque!$H$4) -> 0 €
J166: (Vide) | K166: 0 € | L166: 0 € | M166: 0 € | R166: =+IF(O166>0,O166*Q166*Masque!$H$3,P166*Q166*Masque!$H$4) -> 0 €
G167: Total | H167: =SUM(H133:H166) -> 0 € | I167: =SUM(I133:I166) -> 0 € | K167: =SUM(K133:K166) -> 0 € | L167: =SUM(L133:L166) -> 0 € | M167: =SUM(M133:M166) -> 0 € | O167: =SUM(O133:O166) -> 0 | P167: =SUM(P133:P166) -> 0 | R167: =SUM(R133:R166) -> 0 € | T167: Total | U167: =SUM(U133:U166)*14 -> 0 | X167: =SUM(X133:X166) -> 0 | Z167: =SUM(Z133:Z166) -> 0 | AA167: =SUM(AA133:AA166) -> 0
